Workbook

Sheet Setup
A1: Singles | B1: 16 | D1: Θέσεις | E1: seed
A2: Draw16_S | D2: 3-4 | E2: =VALUE(LEFT(F2,1)) -> 4 | F2: 4 3
A3: Διοργανωτής: | B3: ΣΤ' ΕΝΩΣΗ | E3: =VALUE(RIGHT(F2,1)) -> 3 | Z3: Tour lookup
A4: Έδρα αγώνων: | B4: ΣΑ ΤΡΙΠΟΛΗΣ | Z4: =$B$8 -> 43232
A5: grade: | B5: Ε3 | Z5: =TRIM(IF(OR($B$5="Παν",$B$5="ΠανΑΓ",$B$5="Open",$B$5="OpenΑΓ"),$B$5&" ("&VLOOKUP($B$4,tables!$X:$Z,3,FALSE)&")"&" "&$B$13,$B$7&" ("&VLOOKUP($B$4,tables!$X:$Z,3,FALSE)&")")) -> Ε3 19η (ΣΤ)
A6: Κατηγορία: | B6: Κ14 | T6: Tournament ID | Z6: =VLOOKUP($B$4,tables!$X:$Z,2,FALSE) -> 294
A7: Τίτλος Τουρνουά: | B7: Ε3 19η | D7: 1 2 3 4 14 15 7 9 12 10 6 11 16 8 13 5 | T7: =$Z$9 ->  | Z7: S
A8: Έναρξη Κ.Τ.: | B8: 2018-05-12 | D8: 1 2 3 4 | T8: =LOWER(B21) -> ε3 19η στ κ14 s md | Z8: =TRIM(IF(SUBSTITUTE($B$6,"1","")<>$B$6,SUBSTITUTE(UPPER($B$6),"D",""),"")) -> Κ14
A9: Λήξη τουρνουά: | B9: 2018-05-13 | D9: 0 0 0 0 0 0 0 0 0 0 0 0 0 0 0 0 0 0 0 0 0 0 0 0 0 0 0 0 0 0 0 0 0 0 0 0 0 0 0 0 | Z9: =VLOOKUP($Z$4&$Z$5&$Z$6&$Z$7&$Z$8,tables!$AI:$AQ,9,FALSE) -> 
A10: Βδομάδα: | B10: ="βδ.: "&TEXT(WEEKNUM(B8,2),"00")&"η" -> βδ.: 19η | Z10: =VLOOKUP(B6,tables!AS1:AT51,2,FALSE) -> 10
A11: Επιδιατητής: | B11: ΚΑΛΟΓΡΗ Σ | D11: 0 | E11: seed | F11: space pos | G11: Index | H11: Value | T11: γραφή σκορ: | U11: 62 76(4)
A12: Τηλέφωνο τουρνουά: | D12: =IF(E12="-","-",IF(E12>0,D11+1,0)) -> 1 | E12: =IF(F12>0,VALUE(MID($D$7,1,F12-1)),"-") -> 1 | F12: =IF(LEN($D$7)>1,FIND(" ",$D$7,1),0) -> 2 | G12: 1 | H12: 1 | U12: wo ret med
A13: =IF(SUBSTITUTE($B$6,"1","")<>$B$6, SUBSTITUTE(SUBSTITUTE(SUBSTITUTE(SUBSTITUTE(SUBSTITUTE(UPPER(LEFT($B$6)),"A","B"),"Α","B"),"K","G"),"Κ","G"),"Μ","X"),"") -> G | B13: =IF(SUBSTITUTE($B$6,"1","")<>$B$6,VALUE(SUBSTITUTE(SUBSTITUTE(SUBSTITUTE(SUBSTITUTE(SUBSTITUTE(UPPER(LEFT($B$6,3)),"A",""),"Α",""),"K",""),"Κ",""),"Μ","")), $B$6) -> 14 | D13: =IF(E13="-","-",IF(E13>0,D12+1,0)) -> 2 | E13: =IF(F13>0,VALUE(MID($D$7,F12+1,F13-F12-1)),"-") -> 2 | F13: =IF(AND(F12>0,LEN($D$7)>F12+1),FIND(" ",$D$7,F12+1),0) -> 4 | G13: 2 | H13: 2
D14: =IF(E14="-","-",IF(E14>0,D13+1,0)) -> 3 | E14: 3 | F14: 6 | G14: 3 | H14: 3
D15: =IF(E15="-","-",IF(E15>0,D14+1,0)) -> 4 | E15: =IF(F15>0,VALUE(MID($D$7,F14+1,F15-F14-1)),"-") -> 4 | F15: 8 | G15: 4 | H15: 4
D16: 5 | E16: =IF(F16>0,VALUE(MID($D$7,F15+1,F16-F15-1)),"-") -> 14 | F16: 11 | G16: 5 | H16: 14 | T16: msg
A17: Χωρίς νίκη βαθμοί γύρου: | B17: 17_32 | D17: 6 | E17: =IF(F17>0,VALUE(MID($D$7,F16+1,F17-F16-1)),"-") -> 15 | F17: 14 | G17: 6 | H17: 15 | T17: =IF(NOW()>B22,"Invalid program!","") -> 
A18: Πλήθος bye (0-7): | B18: =COUNTBLANK(ALMD!D3:D18) -> 0 | D18: 7 | E18: 7 | F18: 16 | G18: 7 | H18: 7
A19: Θέσεις seeded: | B19: 4 | D19: 8 | E19: 9 | F19: 18 | G19: 8 | H19: 9
D20: 9 | E20: 12 | F20: 21 | G20: 9 | H20: 12
A21: Όνομα Excel αρχείου: | B21: =LOWER(IF(SUBSTITUTE($B$6,"1","")<>$B$6,$B$5&" "&MID($B$10,6,2)&"η "&VLOOKUP($B$4,tables!$X:$Z,3,FALSE)&" "&LEFT($B$6)&$B$13&" S MD",$B$5&" "&MID($B$10,6,2)&"η "&VLOOKUP($B$4,tables!$X:$Z,3,FALSE)&" "&$B$13&" S MD")) -> ε3 19η στ κ14 s md | D21: 10 | E21: 10 | F21: 24 | G21: 10 | H21: 10
A22: exp. | B22: 2018-05-31 | D22: 11 | E22: 6 | F22: 26 | G22: 11 | H22: 6
D23: 12 | E23: 11 | F23: 29 | G23: 12 | H23: 11
A24: Κλήρωση MD: | B24: 2018-05-12T12:00:21 | D24: 13 | E24: 16 | F24: 32 | G24: 13 | H24: 16
D25: 14 | E25: 8 | F25: 34 | G25: 14 | H25: 8
D26: 15 | E26: 13 | F26: 37 | G26: 15 | H26: 13
D27: 16 | E27: 5 | F27: 39 | G27: 16 | H27: 5
A28: =RandNumbers(3,4) -> 3 4
A29: =LEFT(D9,$B$18*2)&LEFT(D8,$B$19*2)& RandNumbers($B$19+1,16-$B$18)&" " -> 1 2 3 4 10 8 11 13 9 7 15 6 5 14 12 16

Sheet ALMD
A1: =Setup!$B$3&", "&Setup!$B$7&", "&Setup!$B$4&", "&DAY(Setup!$B$8)&"/"&MONTH(Setup!$B$8)&"-"&DAY(Setup!$B$9)&"/"&MONTH(Setup!$B$9)&"/"&YEAR(Setup!$B$9) -> ΣΤ' ΕΝΩΣΗ, Ε3 19η, ΣΑ ΤΡΙΠΟΛΗΣ, 12/5-13/5/2018 | H1: =Setup!$B$6&" /md" -> Κ14 /md | I1: =Setup!$B$6&" /md" -> Κ14 /md
A2: α/α | B2: από | C2: Α.Μ. | D2: Ονοματεπώνυμο | E2: Γέννηση | F2: Σύλλογος | G2: βαθμοί | H2: Τηλέφωνο | I2: Υπογραφή | J2: SortPts | K2: Rnd
A3: 1 | C3: 26198 | D3: ΛΑΜΠΡΟΠΟΥΛΟΥ ΒΑΣΙΛΙΚΗ | E3: 2004-01-05 | F3: ΑΕΚ ΤΡΙΠΟΛΗΣ | G3: 121 | J3: =IF(D3>" ",G3+K3,0) -> 121.0042626 | K3: 0.004262552663 | L3: =TRIM(IF(LEN(D3)<2,"",LEFT(D3,MIN(20,FIND(" ",D3)-1))&MID(D3,FIND(" ",D3),2)&" ("&LEFT(F3,12)&")")) -> ΛΑΜΠΡΟΠΟΥΛΟΥ Β (ΑΕΚ ΤΡΙΠΟΛΗΣ)
A4: 2 | C4: 37585 | D4: ΣΤΡΑΤΗ ΓΕΩΡΓΙΑ-ΑΝΔΡΙΑΝΑ | E4: 2005-08-18 | F4: ΑΟΑ ΠΑΤΡΩΝ | G4: 95 | J4: 95.00436055 | K4: 0.00436055152 | L4: =TRIM(IF(LEN(D4)<2,"",LEFT(D4,MIN(20,FIND(" ",D4)-1))&MID(D4,FIND(" ",D4),2)&" ("&LEFT(F4,12)&")")) -> ΣΤΡΑΤΗ Γ (ΑΟΑ ΠΑΤΡΩΝ)
A5: 3 | C5: 37337 | D5: ΔΕΛΗ ΜΑΡΙΑ | E5: 2004-08-26 | F5: ΡΗΓΑΣ ΑΟΑ ΑΡΓΟΛΙΔΑΣ | G5: 65.5 | J5: 65.50288286 | K5: 0.002882863069 | L5: ΔΕΛΗ Μ (ΡΗΓΑΣ ΑΟΑ ΑΡ)
A6: 4 | B6: alt | C6: 90169 | D6: ΑΣΕΝΟΒΑ ΓΚΕΡΓΚΑΝΑ | E6: 2005-06-29 | F6: ΟΑ ΚΑΛΑΜΑΤΑΣ | G6: 52.1 | J6: 52.1013468 | K6: 0.001346797691 | L6: ΑΣΕΝΟΒΑ Γ (ΟΑ ΚΑΛΑΜΑΤΑΣ)
A7: 5 | C7: 33668 | D7: ΚΑΛΤΕΖΙΩΤΗ ΕΛΕΝΗ-ΜΑΡΙΑ | E7: 2004-05-17 | F7: ΣΑ ΤΡΙΠΟΛΗΣ | G7: 45.5 | J7: 45.50101433 | K7: 0.001014334363 | L7: ΚΑΛΤΕΖΙΩΤΗ Ε (ΣΑ ΤΡΙΠΟΛΗΣ)
A8: 6 | B8: alt | C8: 38948 | D8: ΠΑΠΑΚΩΝΣΤΑΝΤΙΝΟΥ ΜΑΡΙΑ-ΙΩΑΝΝΑ | E8: 2006-11-09 | F8: ΟΑ ΚΑΛΑΜΑΤΑΣ | G8: 43 | J8: 43.00035067 | K8: 0.0003506675601 | L8: ΠΑΠΑΚΩΝΣΤΑΝΤΙΝΟΥ Μ (ΟΑ ΚΑΛΑΜΑΤΑΣ)
A9: 7 | C9: 35659 | D9: ΜΑΚΡΥΓΕΩΡΓΟΥ ΧΡΙΣΤΙΝΑ | E9: 2005-06-13 | F9: ΑΟΑ ΠΑΤΡΩΝ | G9: 40 | J9: 40.00007113 | K9: 7.11289637e-05 | L9: ΜΑΚΡΥΓΕΩΡΓΟΥ Χ (ΑΟΑ ΠΑΤΡΩΝ)
A10: 8 | C10: 39327 | D10: ΜΠΟΥΖΟΥ ΕΛΕΝΗ-ΙΩΑΝΝΑ | E10: 2005-03-08 | F10: ΣΑ ΤΡΙΠΟΛΗΣ | G10: 28.5 | J10: 28.50016722 | K10: 0.0001672249229 | L10: ΜΠΟΥΖΟΥ Ε (ΣΑ ΤΡΙΠΟΛΗΣ)
A11: 9 | C11: 36781 | D11: ΚΟΚΚΙΝΟΥ ΑΙΚΑΤΕΡΙΝΗ | E11: 2004-08-26 | F11: ΧΡΥΣΟΣ ΟΑ | G11: 28 | J11: 28.00326681 | K11: 0.003266814777 | L11: ΚΟΚΚΙΝΟΥ Α (ΧΡΥΣΟΣ ΟΑ)
A12: 10 | C12: 38845 | D12: ΤΣΙΛΙΜΠΗ ΔΗΜΗΤΡΑ-ΑΙΚΑΤΕΡΙΝΗ | E12: 2005-10-14 | F12: ΡΗΓΑΣ ΑΟΑ ΑΡΓΟΛΙΔΑΣ | G12: 18.3 | J12: 18.3036066 | K12: 0.003606599166 | L12: ΤΣΙΛΙΜΠΗ Δ (ΡΗΓΑΣ ΑΟΑ ΑΡ)
A13: 11 | C13: 38401 | D13: ΚΛΑΟΥΔΑΤΟΥ ΔΑΝΑΗ | E13: 2007-03-17 | F13: ΧΡΥΣΟΣ ΟΑ | G13: 16.8 | J13: 16.80265468 | K13: 0.00265468216 | L13: ΚΛΑΟΥΔΑΤΟΥ Δ (ΧΡΥΣΟΣ ΟΑ)
A14: 12 | C14: 34396 | D14: ΜΗΤΡΟΠΟΥΛΟΥ ΑΘΑΝΑΣΙΑ | E14: 2005-01-21 | F14: ΣΑ ΤΡΙΠΟΛΗΣ | G14: 15 | J14: 15.0001683 | K14: 0.000168296628 | L14: ΜΗΤΡΟΠΟΥΛΟΥ Α (ΣΑ ΤΡΙΠΟΛΗΣ)
A15: 13 | C15: 40340 | D15: ΝΙΚΟΛΑΚΟΠΟΥΛΟΥ ΑΝΝΑ-ΜΑΡΙΑ | E15: 2006-03-05 | F15: ΧΡΥΣΟΣ ΟΑ | G15: 13.8 | J15: 13.80288364 | K15: 0.002883644554 | L15: ΝΙΚΟΛΑΚΟΠΟΥΛΟΥ Α (ΧΡΥΣΟΣ ΟΑ)
A16: 14 | C16: 40747 | D16: ΤΟΥΜΠΑΝΙΑΡΗ ΜΑΡΙΑ | E16: 2005-06-13 | F16: ΟΑ ΚΟΡΙΝΘΟΥ | G16: 4.5 | J16: 4.501027573 | K16: 0.001027572822 | L16: ΤΟΥΜΠΑΝΙΑΡΗ Μ (ΟΑ ΚΟΡΙΝΘΟΥ)
A17: 15 | C17: 41973 | D17: ΣΑΚΚΕΛΑΡΟΠΟΥΛΟΥ ΕΥΑΓΓΕΛΙΑ | E17: 2006-02-27 | F17: ΧΡΥΣΟΣ ΟΑ | G17: 2.4 | J17: 2.404432771 | K17: 0.004432771317 | L17: ΣΑΚΚΕΛΑΡΟΠΟΥΛΟΥ Ε (ΧΡΥΣΟΣ ΟΑ)
A18: 16 | C18: 40755 | D18: ΣΤΟΚΑ ΕΛΕΝΗ | E18: 2007-03-20 | F18: ΑΟ ΠΟΣΕΙΔΩΝ ΛΟΥΤΡΑΚΙΟΥ | G18: 1.5 | J18: 1.500066224 | K18: 6.622421487e-05 | L18: ΣΤΟΚΑ Ε (ΑΟ ΠΟΣΕΙΔΩΝ )
H20: επιδιαιτητής:
H21: =Setup!$B$11 -> ΚΑΛΟΓΡΗ Σ
B22: Walk-over
B23: α/α | C23: Α.Μ. | D23: Ονοματεπώνυμο | E23: med
B24: 1
B25: 2
B26: 3
B27: 4
B28: 5

Sheet MD
A1: =Setup!$B$3&", "&Setup!$B$7&", "&Setup!$B$4&", "&DAY(Setup!$B$8)&"/"&MONTH(Setup!$B$8)&"-"&DAY(Setup!$B$9)&"/"&MONTH(Setup!$B$9)&"/"&YEAR(Setup!$B$9) -> ΣΤ' ΕΝΩΣΗ, Ε3 19η, ΣΑ ΤΡΙΠΟΛΗΣ, 12/5-13/5/2018 | U1: =Setup!B6 -> Κ14 | V1: ="bye: "&COUNTIF(J5:J20,"bye") -> bye: 0
B2: =Setup!$B$18 -> 0 | I2: ="αλλαγές: "&TEXT(HOUR(NOW()),"00")&":"&TEXT(MINUTE(NOW()),"00")&", "&DAY(TODAY())&"/"&MONTH(TODAY())&"/"&YEAR(TODAY()) -> αλλαγές: 18:18, 23/5/2018
J3: 16 | O3: 8 | R3: 4 | U3: 2
A4: α/α | C4: ByeOrder | D4: ByeSum | E4: ByeCnt | F4: από | G4: seed | H4: Pts | I4: Α.Μ. | J4: Ονοματεπώνυμο | K4: επώνυμο | L4: Σύλλογος
A5: 1 | B5: 1 | E5: 0 | F5: =IF(NOT($G5="-"),VLOOKUP($G5,ALMD!$A$3:$H$18,2,FALSE),"") -> 0 | G5: =VLOOKUP($B5,Setup!$G$12:$H$27,2,FALSE) -> 1 | H5: =IF($G5>0,VLOOKUP($G5,ALMD!$A$3:$H$18,7,FALSE),0) -> 121 | I5: =IF(Setup!$B$24="",0,IF($G5>0,VLOOKUP($G5,ALMD!$A$3:$H$18,3,FALSE),0)) -> 26198 | J5: =IF($I5>0,VLOOKUP($I5,ALMD!$C$3:$H$18,2,FALSE),"bye") -> ΛΑΜΠΡΟΠΟΥΛΟΥ ΒΑΣΙΛΙΚΗ | K5: =IF(NOT(I5>0),"",LEFT(J5,MIN(15,FIND(" ",J5)-1))&MID(J5,FIND(" ",J5),2)) -> ΛΑΜΠΡΟΠΟΥΛΟΥ Β | L5: =IF($I5>0,VLOOKUP($I5,ALMD!$C$3:$H$18,4,FALSE),"") -> ΑΕΚ ΤΡΙΠΟΛΗΣ | M5: 1 | N5: =IF(OR(M5=1,M5=2),IF(M5=1,I5,I6),"") -> 26198 | O5: =IF(OR(M5=1,M5=2),IF(M5=1,K5,K6),"") -> ΛΑΜΠΡΟΠΟΥΛΟΥ Β
A6: 2 | B6: =1-D6+4 -> 5 | C6: 1 | D6: =E6 -> 0 | E6: =IF($B$2>=C6,1,0) -> 0 | F6: =IF(NOT($G6="-"),VLOOKUP($G6,ALMD!$A$3:$H$18,2,FALSE),"") -> 0 | G6: =IF($B$2>=C6,"-",VLOOKUP($B6,Setup!$G$12:$H$27,2,FALSE)) -> 14 | H6: =IF(NOT($G6="-"),VLOOKUP($G6,ALMD!$A$3:$H$18,7,FALSE),0) -> 4.5 | I6: =IF(Setup!$B$24="",0,IF(NOT($G6="-"),VLOOKUP($G6,ALMD!$A$3:$H$18,3,FALSE),0)) -> 40747 | J6: =IF($I6>0,VLOOKUP($I6,ALMD!$C$3:$H$18,2,FALSE),"bye") -> ΤΟΥΜΠΑΝΙΑΡΗ ΜΑΡΙΑ | K6: =IF(NOT(I6>0),"",LEFT(J6,MIN(15,FIND(" ",J6)-1))&MID(J6,FIND(" ",J6),2)) -> ΤΟΥΜΠΑΝΙΑΡΗ Μ | L6: =IF($I6>0,VLOOKUP($I6,ALMD!$C$3:$H$18,4,FALSE),"") -> ΟΑ ΚΟΡΙΝΘΟΥ | O6: 40 40 | P6: 1 | Q6: =IF(OR(P6=1,P6=2),IF(P6=1,N5,N7),"") -> 26198 | R6: =IF(OR(P6=1,P6=2),IF(OR(AND(O6="",I5>0,I6>0),AND(O8="",I7>0,I8>0)),"* αποτέλεσμα! *",IF(P6=1,O5,O7)),"") -> ΛΑΜΠΡΟΠΟΥΛΟΥ Β
A7: 3 | B7: =2-D7+4 -> 6 | D7: =D6+E7 -> 0 | E7: 0 | F7: =IF(NOT($G7="-"),VLOOKUP($G7,ALMD!$A$3:$H$18,2,FALSE),"") -> 0 | G7: =VLOOKUP($B7,Setup!$G$12:$H$27,2,FALSE) -> 15 | H7: =IF($G7>0,VLOOKUP($G7,ALMD!$A$3:$H$18,7,FALSE),0) -> 2.4 | I7: =IF(Setup!$B$24="",0,IF($G7>0,VLOOKUP($G7,ALMD!$A$3:$H$18,3,FALSE),0)) -> 41973 | J7: =IF($I7>0,VLOOKUP($I7,ALMD!$C$3:$H$18,2,FALSE),"bye") -> ΣΑΚΚΕΛΑΡΟΠΟΥΛΟΥ ΕΥΑΓΓΕΛΙΑ | K7: ΣΑΚΚΕΛΑΡΟΠΟΥΛΟΥ Ε | L7: =IF($I7>0,VLOOKUP($I7,ALMD!$C$3:$H$18,4,FALSE),"") -> ΧΡΥΣΟΣ ΟΑ | M7: 2 | N7: =IF(OR(M7=1,M7=2),IF(M7=1,I7,I8),"") -> 35659 | O7: =IF(OR(M7=1,M7=2),IF(M7=1,K7,K8),"") -> ΜΑΚΡΥΓΕΩΡΓΟΥ Χ | R7: 41 42
A8: 4 | B8: =3-D8+4 -> 7 | C8: 7 | D8: 0 | E8: =IF($B$2>=C8,1,0) -> 0 | F8: =IF(NOT($G8="-"),VLOOKUP($G8,ALMD!$A$3:$H$18,2,FALSE),"") -> 0 | G8: =IF($B$2>=C8,"-",VLOOKUP($B8,Setup!$G$12:$H$27,2,FALSE)) -> 7 | H8: =IF(NOT($G8="-"),VLOOKUP($G8,ALMD!$A$3:$H$18,7,FALSE),0) -> 40 | I8: =IF(Setup!$B$24="",0,IF(NOT($G8="-"),VLOOKUP($G8,ALMD!$A$3:$H$18,3,FALSE),0)) -> 35659 | J8: =IF($I8>0,VLOOKUP($I8,ALMD!$C$3:$H$18,2,FALSE),"bye") -> ΜΑΚΡΥΓΕΩΡΓΟΥ ΧΡΙΣΤΙΝΑ | K8: ΜΑΚΡΥΓΕΩΡΓΟΥ Χ | L8: =IF($I8>0,VLOOKUP($I8,ALMD!$C$3:$H$18,4,FALSE),"") -> ΑΟΑ ΠΑΤΡΩΝ | O8: 40 41 | S8: 1 | T8: =IF(OR(S8=1,S8=2),IF(S8=1,Q6,Q10),"") -> 26198 | U8: =IF(OR(S8=1,S8=2),IF(OR(AND(R7="",N5>0,N7>0),AND(R11="",N9>0,N11>0)),"* αποτέλεσμα! *",IF(S8=1,R6,R10)),"") -> ΛΑΜΠΡΟΠΟΥΛΟΥ Β
A9: 5 | B9: =VALUE(Setup!E2) -> 4 | D9: 0 | E9: 0 | F9: =IF(NOT($G9="-"),VLOOKUP($G9,ALMD!$A$3:$H$18,2,FALSE),"") -> alt | G9: =VLOOKUP($B9,Setup!$G$12:$H$27,2,FALSE) -> 4 | H9: =IF($G9>0,VLOOKUP($G9,ALMD!$A$3:$H$18,7,FALSE),0) -> 52.1 | I9: =IF(Setup!$B$24="",0,IF($G9>0,VLOOKUP($G9,ALMD!$A$3:$H$18,3,FALSE),0)) -> 90169 | J9: =IF($I9>0,VLOOKUP($I9,ALMD!$C$3:$H$18,2,FALSE),"bye") -> ΑΣΕΝΟΒΑ ΓΚΕΡΓΚΑΝΑ | K9: ΑΣΕΝΟΒΑ Γ | L9: =IF($I9>0,VLOOKUP($I9,ALMD!$C$3:$H$18,4,FALSE),"") -> ΟΑ ΚΑΛΑΜΑΤΑΣ | M9: 1 | N9: =IF(OR(M9=1,M9=2),IF(M9=1,I9,I10),"") -> 90169 | O9: =IF(OR(M9=1,M9=2),IF(M9=1,K9,K10),"") -> ΑΣΕΝΟΒΑ Γ | U9: 61 61
A10: 6 | B10: =4-D10+4 -> 8 | C10: =IF(Setup!E2=3,3,4) -> 4 | D10: 0 | E10: =IF($B$2>=C10,1,0) -> 0 | F10: =IF(NOT($G10="-"),VLOOKUP($G10,ALMD!$A$3:$H$18,2,FALSE),"") -> 0 | G10: =IF($B$2>=C10,"-",VLOOKUP($B10,Setup!$G$12:$H$27,2,FALSE)) -> 9 | H10: =IF(NOT($G10="-"),VLOOKUP($G10,ALMD!$A$3:$H$18,7,FALSE),0) -> 28 | I10: =IF(Setup!$B$24="",0,IF(NOT($G10="-"),VLOOKUP($G10,ALMD!$A$3:$H$18,3,FALSE),0)) -> 36781 | J10: =IF($I10>0,VLOOKUP($I10,ALMD!$C$3:$H$18,2,FALSE),"bye") -> ΚΟΚΚΙΝΟΥ ΑΙΚΑΤΕΡΙΝΗ | K10: ΚΟΚΚΙΝΟΥ Α | L10: =IF($I10>0,VLOOKUP($I10,ALMD!$C$3:$H$18,4,FALSE),"") -> ΧΡΥΣΟΣ ΟΑ | O10: 41 40 | P10: 1 | Q10: =IF(OR(P10=1,P10=2),IF(P10=1,N9,N11),"") -> 90169 | R10: =IF(OR(P10=1,P10=2),IF(OR(AND(O10="",I9>0,I10>0),AND(O12="",I11>0,I12>0)),"* αποτέλεσμα! *",IF(P10=1,O9,O11)),"") -> ΑΣΕΝΟΒΑ Γ
A11: 7 | B11: =5-D11+4 -> 9 | C11: 5 | D11: 0 | E11: =IF($B$2>=C11,1,0) -> 0 | F11: =IF(NOT($G11="-"),VLOOKUP($G11,ALMD!$A$3:$H$18,2,FALSE),"") -> 0 | G11: =IF($B$2>=C11,"-",VLOOKUP($B11,Setup!$G$12:$H$27,2,FALSE)) -> 12 | H11: =IF(NOT($G11="-"),VLOOKUP($G11,ALMD!$A$3:$H$18,7,FALSE),0) -> 15 | I11: =IF(Setup!$B$24="",0,IF(NOT($G11="-"),VLOOKUP($G11,ALMD!$A$3:$H$18,3,FALSE),0)) -> 34396 | J11: =IF($I11>0,VLOOKUP($I11,ALMD!$C$3:$H$18,2,FALSE),"bye") -> ΜΗΤΡΟΠΟΥΛΟΥ ΑΘΑΝΑΣΙΑ | K11: ΜΗΤΡΟΠΟΥΛΟΥ Α | L11: =IF($I11>0,VLOOKUP($I11,ALMD!$C$3:$H$18,4,FALSE),"") -> ΣΑ ΤΡΙΠΟΛΗΣ | M11: 1 | N11: =IF(OR(M11=1,M11=2),IF(M11=1,I11,I12),"") -> 34396 | O11: =IF(OR(M11=1,M11=2),IF(M11=1,K11,K12),"") -> ΜΗΤΡΟΠΟΥΛΟΥ Α | R11: 41 42
A12: 8 | B12: =6-D12+4 -> 10 | D12: 0 | E12: 0 | F12: =IF(NOT($G12="-"),VLOOKUP($G12,ALMD!$A$3:$H$18,2,FALSE),"") -> 0 | G12: =VLOOKUP($B12,Setup!$G$12:$H$27,2,FALSE) -> 10 | H12: =IF($G12>0,VLOOKUP($G12,ALMD!$A$3:$H$18,7,FALSE),0) -> 18.3 | I12: =IF(Setup!$B$24="",0,IF($G12>0,VLOOKUP($G12,ALMD!$A$3:$H$18,3,FALSE),0)) -> 38845 | J12: =IF($I12>0,VLOOKUP($I12,ALMD!$C$3:$H$18,2,FALSE),"bye") -> ΤΣΙΛΙΜΠΗ ΔΗΜΗΤΡΑ-ΑΙΚΑΤΕΡΙΝΗ | K12: ΤΣΙΛΙΜΠΗ Δ | L12: =IF($I12>0,VLOOKUP($I12,ALMD!$C$3:$H$18,4,FALSE),"") -> ΡΗΓΑΣ ΑΟΑ ΑΡΓΟΛΙΔΑΣ | O12: 41 53 | S12: 1 | T12: =IF(OR(S12=1,S12=2),IF(S12=1,T8,T16),"") -> 26198 | U12: =IF(OR(S12=1,S12=2),IF(S12=1,U8,U16),"") -> ΛΑΜΠΡΟΠΟΥΛΟΥ Β
A13: 9 | B13: =VALUE(Setup!E3) -> 3 | D13: 0 | E13: 0 | F13: =IF(NOT($G13="-"),VLOOKUP($G13,ALMD!$A$3:$H$18,2,FALSE),"") -> 0 | G13: =VLOOKUP($B13,Setup!$G$12:$H$27,2,FALSE) -> 3 | H13: =IF($G13>0,VLOOKUP($G13,ALMD!$A$3:$H$18,7,FALSE),0) -> 65.5 | I13: =IF(Setup!$B$24="",0,IF($G13>0,VLOOKUP($G13,ALMD!$A$3:$H$18,3,FALSE),0)) -> 37337 | J13: =IF($I13>0,VLOOKUP($I13,ALMD!$C$3:$H$18,2,FALSE),"bye") -> ΔΕΛΗ ΜΑΡΙΑ | K13: ΔΕΛΗ Μ | L13: =IF($I13>0,VLOOKUP($I13,ALMD!$C$3:$H$18,4,FALSE),"") -> ΡΗΓΑΣ ΑΟΑ ΑΡΓΟΛΙΔΑΣ | M13: 2 | N13: =IF(OR(M13=1,M13=2),IF(M13=1,I13,I14),"") -> 38948 | O13: =IF(OR(M13=1,M13=2),IF(M13=1,K13,K14),"") -> ΠΑΠΑΚΩΝΣΤΑΝΤΙΝΟ Μ | U13: 61 64
A14: 10 | B14: =7-D14+4 -> 11 | C14: =IF(Setup!E2=3,4,3) -> 3 | D14: 0 | E14: =IF($B$2>=C14,1,0) -> 0 | F14: =IF(NOT($G14="-"),VLOOKUP($G14,ALMD!$A$3:$H$18,2,FALSE),"") -> alt | G14: =IF($B$2>=C14,"-",VLOOKUP($B14,Setup!$G$12:$H$27,2,FALSE)) -> 6 | H14: =IF(NOT($G14="-"),VLOOKUP($G14,ALMD!$A$3:$H$18,7,FALSE),0) -> 43 | I14: =IF(Setup!$B$24="",0,IF(NOT($G14="-"),VLOOKUP($G14,ALMD!$A$3:$H$18,3,FALSE),0)) -> 38948 | J14: =IF($I14>0,VLOOKUP($I14,ALMD!$C$3:$H$18,2,FALSE),"bye") -> ΠΑΠΑΚΩΝΣΤΑΝΤΙΝΟΥ ΜΑΡΙΑ-ΙΩΑΝΝΑ | K14: ΠΑΠΑΚΩΝΣΤΑΝΤΙΝΟ Μ | L14: =IF($I14>0,VLOOKUP($I14,ALMD!$C$3:$H$18,4,FALSE),"") -> ΟΑ ΚΑΛΑΜΑΤΑΣ | O14: 54(1) 40 | P14: 1 | Q14: =IF(OR(P14=1,P14=2),IF(P14=1,N13,N15),"") -> 38948 | R14: =IF(OR(P14=1,P14=2),IF(OR(AND(O14="",I13>0,I14>0),AND(O16="",I15>0,I16>0)),"* αποτέλεσμα! *",IF(P14=1,O13,O15)),"") -> ΠΑΠΑΚΩΝΣΤΑΝΤΙΝΟ Μ
A15: 11 | B15: =8-D15+4 -> 12 | D15: 0 | E15: 0 | F15: =IF(NOT($G15="-"),VLOOKUP($G15,ALMD!$A$3:$H$18,2,FALSE),"") -> 0 | G15: =VLOOKUP($B15,Setup!$G$12:$H$27,2,FALSE) -> 11 | H15: =IF($G15>0,VLOOKUP($G15,ALMD!$A$3:$H$18,7,FALSE),0) -> 16.8 | I15: =IF(Setup!$B$24="",0,IF($G15>0,VLOOKUP($G15,ALMD!$A$3:$H$18,3,FALSE),0)) -> 38401 | J15: =IF($I15>0,VLOOKUP($I15,ALMD!$C$3:$H$18,2,FALSE),"bye") -> ΚΛΑΟΥΔΑΤΟΥ ΔΑΝΑΗ | K15: ΚΛΑΟΥΔΑΤΟΥ Δ | L15: =IF($I15>0,VLOOKUP($I15,ALMD!$C$3:$H$18,4,FALSE),"") -> ΧΡΥΣΟΣ ΟΑ | M15: 1 | N15: =IF(OR(M15=1,M15=2),IF(M15=1,I15,I16),"") -> 38401 | O15: =IF(OR(M15=1,M15=2),IF(M15=1,K15,K16),"") -> ΚΛΑΟΥΔΑΤΟΥ Δ | R15: 40 40
A16: 12 | B16: =9-D16+4 -> 13 | C16: 6 | D16: 0 | E16: =IF($B$2>=C16,1,0) -> 0 | F16: =IF(NOT($G16="-"),VLOOKUP($G16,ALMD!$A$3:$H$18,2,FALSE),"") -> 0 | G16: =IF($B$2>=C16,"-",VLOOKUP($B16,Setup!$G$12:$H$27,2,FALSE)) -> 16 | H16: =IF(NOT($G16="-"),VLOOKUP($G16,ALMD!$A$3:$H$18,7,FALSE),0) -> 1.5 | I16: =IF(Setup!$B$24="",0,IF(NOT($G16="-"),VLOOKUP($G16,ALMD!$A$3:$H$18,3,FALSE),0)) -> 40755 | J16: =IF($I16>0,VLOOKUP($I16,ALMD!$C$3:$H$18,2,FALSE),"bye") -> ΣΤΟΚΑ ΕΛΕΝΗ | K16: ΣΤΟΚΑ Ε | L16: =IF($I16>0,VLOOKUP($I16,ALMD!$C$3:$H$18,4,FALSE),"") -> ΑΟ ΠΟΣΕΙΔΩΝ ΛΟΥΤΡΑΚΙΟΥ | O16: 41 53 | S16: 2 | T16: =IF(OR(S16=1,S16=2),IF(S16=1,Q14,Q18),"") -> 37585 | U16: =IF(OR(S16=1,S16=2),IF(OR(AND(R15="",N13>0,N15>0),AND(R19="",N17>0,N19>0)),"* αποτέλεσμα! *",IF(S16=1,R14,R18)),"") -> ΣΤΡΑΤΗ Γ
A17: 13 | B17: =10-D17+4 -> 14 | D17: 0 | E17: 0 | F17: =IF(NOT($G17="-"),VLOOKUP($G17,ALMD!$A$3:$H$18,2,FALSE),"") -> 0 | G17: =VLOOKUP($B17,Setup!$G$12:$H$27,2,FALSE) -> 8 | H17: =IF($G17>0,VLOOKUP($G17,ALMD!$A$3:$H$18,7,FALSE),0) -> 28.5 | I17: =IF(Setup!$B$24="",0,IF($G17>0,VLOOKUP($G17,ALMD!$A$3:$H$18,3,FALSE),0)) -> 39327 | J17: =IF($I17>0,VLOOKUP($I17,ALMD!$C$3:$H$18,2,FALSE),"bye") -> ΜΠΟΥΖΟΥ ΕΛΕΝΗ-ΙΩΑΝΝΑ | K17: ΜΠΟΥΖΟΥ Ε | L17: =IF($I17>0,VLOOKUP($I17,ALMD!$C$3:$H$18,4,FALSE),"") -> ΣΑ ΤΡΙΠΟΛΗΣ | M17: 2 | N17: =IF(OR(M17=1,M17=2),IF(M17=1,I17,I18),"") -> 40340 | O17: =IF(OR(M17=1,M17=2),IF(M17=1,K17,K18),"") -> ΝΙΚΟΛΑΚΟΠΟΥΛΟΥ Α | U17: 62 62
A18: 14 | B18: =11-D18+4 -> 15 | C18: 8 | D18: 0 | E18: =IF($B$2>=C18,1,0) -> 0 | F18: =IF(NOT($G18="-"),VLOOKUP($G18,ALMD!$A$3:$H$18,2,FALSE),"") -> 0 | G18: =IF($B$2>=C18,"-",VLOOKUP($B18,Setup!$G$12:$H$27,2,FALSE)) -> 13 | H18: =IF(NOT($G18="-"),VLOOKUP($G18,ALMD!$A$3:$H$18,7,FALSE),0) -> 13.8 | I18: =IF(Setup!$B$24="",0,IF(NOT($G18="-"),VLOOKUP($G18,ALMD!$A$3:$H$18,3,FALSE),0)) -> 40340 | J18: =IF($I18>0,VLOOKUP($I18,ALMD!$C$3:$H$18,2,FALSE),"bye") -> ΝΙΚΟΛΑΚΟΠΟΥΛΟΥ ΑΝΝΑ-ΜΑΡΙΑ | K18: ΝΙΚΟΛΑΚΟΠΟΥΛΟΥ Α | L18: =IF($I18>0,VLOOKUP($I18,ALMD!$C$3:$H$18,4,FALSE),"") -> ΧΡΥΣΟΣ ΟΑ | O18: 40 42 | P18: 2 | Q18: =IF(OR(P18=1,P18=2),IF(P18=1,N17,N19),"") -> 37585 | R18: =IF(OR(P18=1,P18=2),IF(OR(AND(O18="",I17>0,I18>0),AND(O20="",I19>0,I20>0)),"* αποτέλεσμα! *",IF(P18=1,O17,O19)),"") -> ΣΤΡΑΤΗ Γ
A19: 15 | B19: =12-D19+4 -> 16 | C19: 2 | D19: 0 | E19: =IF($B$2>=C19,1,0) -> 0 | F19: =IF(NOT($G19="-"),VLOOKUP($G19,ALMD!$A$3:$H$18,2,FALSE),"") -> 0 | G19: =IF($B$2>=C19,"-",VLOOKUP($B19,Setup!$G$12:$H$27,2,FALSE)) -> 5 | H19: =IF(NOT($G19="-"),VLOOKUP($G19,ALMD!$A$3:$H$18,7,FALSE),0) -> 45.5 | I19: =IF(Setup!$B$24="",0,IF(NOT($G19="-"),VLOOKUP($G19,ALMD!$A$3:$H$18,3,FALSE),0)) -> 33668 | J19: =IF($I19>0,VLOOKUP($I19,ALMD!$C$3:$H$18,2,FALSE),"bye") -> ΚΑΛΤΕΖΙΩΤΗ ΕΛΕΝΗ-ΜΑΡΙΑ | K19: ΚΑΛΤΕΖΙΩΤΗ Ε | L19: =IF($I19>0,VLOOKUP($I19,ALMD!$C$3:$H$18,4,FALSE),"") -> ΣΑ ΤΡΙΠΟΛΗΣ | M19: 2 | N19: =IF(OR(M19=1,M19=2),IF(M19=1,I19,I20),"") -> 37585 | O19: =IF(OR(M19=1,M19=2),IF(M19=1,K19,K20),"") -> ΣΤΡΑΤΗ Γ | R19: 40 40
A20: 16 | B20: 2 | D20: 0 | E20: 0 | F20: =IF(NOT($G20="-"),VLOOKUP($G20,ALMD!$A$3:$H$18,2,FALSE),"") -> 0 | G20: =VLOOKUP($B20,Setup!$G$12:$H$27,2,FALSE) -> 2 | H20: =IF($G20>0,VLOOKUP($G20,ALMD!$A$3:$H$18,7,FALSE),0) -> 95 | I20: =IF(Setup!$B$24="",0,IF($G20>0,VLOOKUP($G20,ALMD!$A$3:$H$18,3,FALSE),0)) -> 37585 | J20: =IF($I20>0,VLOOKUP($I20,ALMD!$C$3:$H$18,2,FALSE),"bye") -> ΣΤΡΑΤΗ ΓΕΩΡΓΙΑ-ΑΝΔΡΙΑΝΑ | K20: ΣΤΡΑΤΗ Γ | L20: =IF($I20>0,VLOOKUP($I20,ALMD!$C$3:$H$18,4,FALSE),"") -> ΑΟΑ ΠΑΤΡΩΝ | O20: 41 41
J24: seeded players
J25: ="1. " & IF(Setup!B19>0,LEFT(ALMD!D3,FIND(" ",ALMD!D3)+1),"") -> 1. ΛΑΜΠΡΟΠΟΥΛΟΥ Β
J26: ="2. " & IF(Setup!B19>1,LEFT(ALMD!D4,FIND(" ",ALMD!D4)+1),"") -> 2. ΣΤΡΑΤΗ Γ | R26: επιδιαιτητής
J27: ="3. " & IF(Setup!B19>2,LEFT(ALMD!D5,FIND(" ",ALMD!D5)+1),"") -> 3. ΔΕΛΗ Μ | R27: =IF(Setup!$B$11>" ",Setup!$B$11,"ΧΩΡΙΣ ΑΔΕΙΑ ΧΡΗΣΗΣ") -> ΚΑΛΟΓΡΗ Σ
J28: ="4. " & IF(Setup!B19>3,LEFT(ALMD!D6,FIND(" ",ALMD!D6)+1),"") -> 4. ΑΣΕΝΟΒΑ Γ
J40: BoldPlayers
J41: =IF(Setup!$B$19>0,LEFT(ALMD!D3,FIND(" ",ALMD!D3)+1)) -> ΛΑΜΠΡΟΠΟΥΛΟΥ Β
J42: =IF(Setup!$B$19>1,LEFT(ALMD!D4,FIND(" ",ALMD!D4)+1)) -> ΣΤΡΑΤΗ Γ
J43: =IF(Setup!$B$19>2,LEFT(ALMD!D5,FIND(" ",ALMD!D5)+1)) -> ΔΕΛΗ Μ
J44: =IF(Setup!$B$19>3,LEFT(ALMD!D6,FIND(" ",ALMD!D6)+1)) -> ΑΣΕΝΟΒΑ Γ

Sheet OoP
A1: ΣΤ' ΕΝΩΣΗ, Ε3 19η, ΣΑ ΤΡΙΠΟΛΗΣ, 12/5-13/5 (Κ14)
A2: ΚΑΛΟΓΡΗ Σ
C3: Πρόγραμμα αγώνων
C5: Round 16 | F5: info
A6: ΩΡΑ | B6: Κτγρ. | C6: Αθλητής-Σύλλογος | E6: Αθλητής-Σύλλογος
A7: Έναρξη | B7: Κ14 R16 | C7: ΛΑΜΠΡΟΠΟΥΛΟΥ Β (ΑΕΚ ΤΡΙΠΟΛΗΣ) | D7: - | E7: ΤΟΥΜΠΑΝΙΑΡΗ Μ (ΟΑ ΚΟΡΙΝΘΟΥ)
B8: Κ14 R16 | C8: ΣΑΚΚΕΛΑΡΟΠΟΥΛΟΥ Ε (ΧΡΥΣΟΣ ΟΑ) | D8: - | E8: ΜΑΚΡΥΓΕΩΡΓΟΥ Χ (ΑΟΑ ΠΑΤΡΩΝ)
B9: Κ14 R16 | C9: ΑΣΕΝΟΒΑ Γ (ΟΑ ΚΑΛΑΜΑΤΑΣ) | D9: - | E9: ΚΟΚΚΙΝΟΥ Α (ΧΡΥΣΟΣ ΟΑ)
B10: Κ14 R16 | C10: ΜΗΤΡΟΠΟΥΛΟΥ Α (ΣΑ ΤΡΙΠΟΛΗΣ) | D10: - | E10: ΤΣΙΛΙΜΠΗ Δ (ΡΗΓΑΣ ΑΟΑ ΑΡ)
A11: όχι πριν | B11: Κ14 R16 | C11: ΔΕΛΗ Μ (ΡΗΓΑΣ ΑΟΑ ΑΡ) | E11: ΠΑΠΑΚΩΝΣΤΑΝΤΙΝΟΥ Μ (ΟΑ ΚΑΛΑΜΑΤΑΣ)
B12: Κ14 R16 | C12: ΚΛΑΟΥΔΑΤΟΥ Δ (ΧΡΥΣΟΣ ΟΑ) | E12: ΣΤΟΚΑ Ε (ΑΟ ΠΟΣΕΙΔΩΝ )
B13: Κ14 R16 | C13: ΜΠΟΥΖΟΥ Ε (ΣΑ ΤΡΙΠΟΛΗΣ) | E13: ΝΙΚΟΛΑΚΟΠΟΥΛΟΥ Α (ΧΡΥΣΟΣ ΟΑ)
B14: Κ14 R16 | C14: ΚΑΛΤΕΖΙΩΤΗ Ε (ΣΑ ΤΡΙΠΟΛΗΣ) | E14: ΣΤΡΑΤΗ Γ (ΑΟΑ ΠΑΤΡΩΝ)
C16: Round 8 | F16: info
A17: ΩΡΑ | B17: Κτγρ. | C17: Αθλητής-Σύλλογος | E17: Αθλητής-Σύλλογος
A18: Έναρξη | B18: Κ14 R8 | C18: ΛΑΜΠΡΟΠΟΥΛΟΥ Β (ΑΕΚ ΤΡΙΠΟΛΗΣ) | D18: - | E18: ΜΑΚΡΥΓΕΩΡΓΟΥ Χ (ΑΟΑ ΠΑΤΡΩΝ)
B19: Κ14 R8 | C19: ΑΣΕΝΟΒΑ Γ (ΟΑ ΚΑΛΑΜΑΤΑΣ) | D19: - | E19: ΜΗΤΡΟΠΟΥΛΟΥ Α (ΣΑ ΤΡΙΠΟΛΗΣ)
B20: Κ14 R8 | C20: ΠΑΠΑΚΩΝΣΤΑΝΤΙΝΟΥ Μ (ΟΑ ΚΑΛΑΜΑΤΑΣ) | D20: - | E20: ΚΛΑΟΥΔΑΤΟΥ Δ (ΧΡΥΣΟΣ ΟΑ)
B21: Κ14 R8 | C21: ΝΙΚΟΛΑΚΟΠΟΥΛΟΥ Α (ΧΡΥΣΟΣ ΟΑ) | D21: - | E21: ΣΤΡΑΤΗ Γ (ΑΟΑ ΠΑΤΡΩΝ)
C23: Ημιτελικοί | F23: info
A24: ΩΡΑ | B24: Κτγρ. | C24: Αθλητής-Σύλλογος | E24: Αθλητής-Σύλλογος
A25: Έναρξη | B25: Κ14 Ημιτελ | C25: ΛΑΜΠΡΟΠΟΥΛΟΥ Β (ΑΕΚ ΤΡΙΠΟΛΗΣ) | E25: ΑΣΕΝΟΒΑ Γ (ΟΑ ΚΑΛΑΜΑΤΑΣ)
B26: Κ14 Ημιτελ | C26: ΠΑΠΑΚΩΝΣΤΑΝΤΙΝΟΥ Μ (ΟΑ ΚΑΛΑΜΑΤΑΣ) | E26: ΣΤΡΑΤΗ Γ (ΑΟΑ ΠΑΤΡΩΝ)
C28: Τελικός | F28: info
A29: ΩΡΑ | B29: Κτγρ. | C29: Αθλητής-Σύλλογος | E29: Αθλητής-Σύλλογος
A30: Έναρξη | B30: Κ14 Τελ. | C30: ΛΑΜΠΡΟΠΟΥΛΟΥ Β (ΑΕΚ ΤΡΙΠΟΛΗΣ) | E30: ΣΤΡΑΤΗ Γ (ΑΟΑ ΠΑΤΡΩΝ)

Sheet PrepOP (hidden)
A1: =Setup!$B$3&", "&Setup!$B$7&", "&Setup!$B$4&", "&DAY(Setup!$B$8)&"/"&MONTH(Setup!$B$8)&"-"&DAY(Setup!$B$9)&"/"&MONTH(Setup!$B$9)& " (" & Setup!B6 & ")" -> ΣΤ' ΕΝΩΣΗ, Ε3 19η, ΣΑ ΤΡΙΠΟΛΗΣ, 12/5-13/5 (Κ14)
A2: =Setup!$B$11 -> ΚΑΛΟΓΡΗ Σ
C3: Πρόγραμμα αγώνων
C5: Round 16 | F5: info
A6: ΩΡΑ | B6: Κτγρ. | C6: Αθλητής-Σύλλογος | E6: Αθλητής-Σύλλογος
A7: Έναρξη | B7: =Setup!$B$6&" R16" -> Κ14 R16 | C7: =IF(LEN(MD!I5)<2,"",VLOOKUP(MD!I5,ALMD!$C:$L,10,FALSE)) -> ΛΑΜΠΡΟΠΟΥΛΟΥ Β (ΑΕΚ ΤΡΙΠΟΛΗΣ) | D7: =IF(OR(C7="",E7="")," ","-") -> - | E7: =IF(LEN(MD!I6)<2, "",VLOOKUP(MD!I6,ALMD!$C:$L,10,FALSE)) -> ΤΟΥΜΠΑΝΙΑΡΗ Μ (ΟΑ ΚΟΡΙΝΘΟΥ)
B8: =Setup!$B$6&" R16" -> Κ14 R16 | C8: =IF(LEN(MD!I7)<2,"",VLOOKUP(MD!I7,ALMD!$C:$L,10,FALSE)) -> ΣΑΚΚΕΛΑΡΟΠΟΥΛΟΥ Ε (ΧΡΥΣΟΣ ΟΑ) | D8: =IF(OR(C8="",E8="")," ","-") -> - | E8: =IF(LEN(MD!I8)<2, "",VLOOKUP(MD!I8,ALMD!$C:$L,10,FALSE)) -> ΜΑΚΡΥΓΕΩΡΓΟΥ Χ (ΑΟΑ ΠΑΤΡΩΝ)
B9: =Setup!$B$6&" R16" -> Κ14 R16 | C9: =IF(LEN(MD!I9)<2,"",VLOOKUP(MD!I9,ALMD!$C:$L,10,FALSE)) -> ΑΣΕΝΟΒΑ Γ (ΟΑ ΚΑΛΑΜΑΤΑΣ) | D9: - | E9: =IF(LEN(MD!I10)<2,"",VLOOKUP(MD!I10,ALMD!$C:$L,10,FALSE)) -> ΚΟΚΚΙΝΟΥ Α (ΧΡΥΣΟΣ ΟΑ)
B10: =Setup!$B$6&" R16" -> Κ14 R16 | C10: =IF(LEN(MD!I11)<2,"",VLOOKUP(MD!I11,ALMD!$C:$L,10,FALSE)) -> ΜΗΤΡΟΠΟΥΛΟΥ Α (ΣΑ ΤΡΙΠΟΛΗΣ) | D10: - | E10: =IF(LEN(MD!I12)<2,"",VLOOKUP(MD!I12,ALMD!$C:$L,10,FALSE)) -> ΤΣΙΛΙΜΠΗ Δ (ΡΗΓΑΣ ΑΟΑ ΑΡ)
A11: όχι πριν | B11: =Setup!$B$6&" R16" -> Κ14 R16 | C11: =IF(LEN(MD!I13)<2,"",VLOOKUP(MD!I13,ALMD!$C:$L,10,FALSE)) -> ΔΕΛΗ Μ (ΡΗΓΑΣ ΑΟΑ ΑΡ) | E11: =IF(LEN(MD!I14)<2,"",VLOOKUP(MD!I14,ALMD!$C:$L,10,FALSE)) -> ΠΑΠΑΚΩΝΣΤΑΝΤΙΝΟΥ Μ (ΟΑ ΚΑΛΑΜΑΤΑΣ)
B12: =Setup!$B$6&" R16" -> Κ14 R16 | C12: =IF(LEN(MD!I15)<2,"",VLOOKUP(MD!I15,ALMD!$C:$L,10,FALSE)) -> ΚΛΑΟΥΔΑΤΟΥ Δ (ΧΡΥΣΟΣ ΟΑ) | E12: =IF(LEN(MD!I16)<2,"",VLOOKUP(MD!I16,ALMD!$C:$L,10,FALSE)) -> ΣΤΟΚΑ Ε (ΑΟ ΠΟΣΕΙΔΩΝ )
B13: =Setup!$B$6&" R16" -> Κ14 R16 | C13: =IF(LEN(MD!I17)<2,"",VLOOKUP(MD!I17,ALMD!$C:$L,10,FALSE)) -> ΜΠΟΥΖΟΥ Ε (ΣΑ ΤΡΙΠΟΛΗΣ) | E13: =IF(LEN(MD!I18)<2,"",VLOOKUP(MD!I18,ALMD!$C:$L,10,FALSE)) -> ΝΙΚΟΛΑΚΟΠΟΥΛΟΥ Α (ΧΡΥΣΟΣ ΟΑ)
B14: =Setup!$B$6&" R16" -> Κ14 R16 | C14: =IF(LEN(MD!I19)<2,"",VLOOKUP(MD!I19,ALMD!$C:$L,10,FALSE)) -> ΚΑΛΤΕΖΙΩΤΗ Ε (ΣΑ ΤΡΙΠΟΛΗΣ) | E14: =IF(LEN(MD!I20)<2,"",VLOOKUP(MD!I20,ALMD!$C:$L,10,FALSE)) -> ΣΤΡΑΤΗ Γ (ΑΟΑ ΠΑΤΡΩΝ)
C16: Round 8 | F16: info
A17: ΩΡΑ | B17: Κτγρ. | C17: Αθλητής-Σύλλογος | E17: Αθλητής-Σύλλογος
A18: Έναρξη | B18: =Setup!$B$6&" R8" -> Κ14 R8 | C18: =IF(LEN(MD!N5)<2,"",VLOOKUP(MD!N5,ALMD!$C:$L,10,FALSE)) -> ΛΑΜΠΡΟΠΟΥΛΟΥ Β (ΑΕΚ ΤΡΙΠΟΛΗΣ) | D18: =IF(OR(C18="",E18="")," ","-") -> - | E18: =IF(LEN(MD!N7)<2,"",VLOOKUP(MD!N7,ALMD!$C:$L,10,FALSE)) -> ΜΑΚΡΥΓΕΩΡΓΟΥ Χ (ΑΟΑ ΠΑΤΡΩΝ)
B19: =Setup!$B$6&" R8" -> Κ14 R8 | C19: =IF(LEN(MD!N9)<2,"",VLOOKUP(MD!N9,ALMD!$C:$L,10,FALSE)) -> ΑΣΕΝΟΒΑ Γ (ΟΑ ΚΑΛΑΜΑΤΑΣ) | D19: =IF(OR(C19="",E19="")," ","-") -> - | E19: =IF(LEN(MD!N11)<2,"",VLOOKUP(MD!N11,ALMD!$C:$L,10,FALSE)) -> ΜΗΤΡΟΠΟΥΛΟΥ Α (ΣΑ ΤΡΙΠΟΛΗΣ)
B20: =Setup!$B$6&" R8" -> Κ14 R8 | C20: =IF(LEN(MD!N13)<2,"",VLOOKUP(MD!N13,ALMD!$C:$L,10,FALSE)) -> ΠΑΠΑΚΩΝΣΤΑΝΤΙΝΟΥ Μ (ΟΑ ΚΑΛΑΜΑΤΑΣ) | D20: =IF(OR(C20="",E20="")," ","-") -> - | E20: =IF(LEN(MD!N15)<2,"",VLOOKUP(MD!N15,ALMD!$C:$L,10,FALSE)) -> ΚΛΑΟΥΔΑΤΟΥ Δ (ΧΡΥΣΟΣ ΟΑ)
B21: =Setup!$B$6&" R8" -> Κ14 R8 | C21: =IF(LEN(MD!N17)<2,"",VLOOKUP(MD!N17,ALMD!$C:$L,10,FALSE)) -> ΝΙΚΟΛΑΚΟΠΟΥΛΟΥ Α (ΧΡΥΣΟΣ ΟΑ) | D21: =IF(OR(C21="",E21="")," ","-") -> - | E21: =IF(LEN(MD!N19)<2,"",VLOOKUP(MD!N19,ALMD!$C:$L,10,FALSE)) -> ΣΤΡΑΤΗ Γ (ΑΟΑ ΠΑΤΡΩΝ)
C23: Ημιτελικοί | F23: info
A24: ΩΡΑ | B24: Κτγρ. | C24: Αθλητής-Σύλλογος | E24: Αθλητής-Σύλλογος
A25: Έναρξη | B25: =Setup!$B$6&" Ημιτελ" -> Κ14 Ημιτελ | C25: =IF(LEN(MD!Q6)<2,"",VLOOKUP(MD!Q6,ALMD!$C:$L,10,FALSE)) -> ΛΑΜΠΡΟΠΟΥΛΟΥ Β (ΑΕΚ ΤΡΙΠΟΛΗΣ) | E25: =IF(LEN(MD!Q10)<2,"",VLOOKUP(MD!Q10,ALMD!$C:$L,10,FALSE)) -> ΑΣΕΝΟΒΑ Γ (ΟΑ ΚΑΛΑΜΑΤΑΣ)
B26: =Setup!$B$6&" Ημιτελ" -> Κ14 Ημιτελ | C26: =IF(LEN(MD!Q14)<2,"",VLOOKUP(MD!Q14,ALMD!$C:$L,10,FALSE)) -> ΠΑΠΑΚΩΝΣΤΑΝΤΙΝΟΥ Μ (ΟΑ ΚΑΛΑΜΑΤΑΣ) | E26: =IF(LEN(MD!Q18)<2,"",VLOOKUP(MD!Q18,ALMD!$C:$L,10,FALSE)) -> ΣΤΡΑΤΗ Γ (ΑΟΑ ΠΑΤΡΩΝ)
C28: Τελικός | F28: info
A29: ΩΡΑ | B29: Κτγρ. | C29: Αθλητής-Σύλλογος | E29: Αθλητής-Σύλλογος
A30: Έναρξη | B30: =Setup!$B$6&" Τελ." -> Κ14 Τελ. | C30: =IF(LEN(MD!T8)<2,"",VLOOKUP(MD!T8,ALMD!$C:$L,10,FALSE)) -> ΛΑΜΠΡΟΠΟΥΛΟΥ Β (ΑΕΚ ΤΡΙΠΟΛΗΣ) | E30: =IF(LEN(MD!T16)<2,"",VLOOKUP(MD!T16,ALMD!$C:$L,10,FALSE)) -> ΣΤΡΑΤΗ Γ (ΑΟΑ ΠΑΤΡΩΝ)

Sheet tables (hidden)
A1: RndIndx | B1: random | C1: FixRandom | G1: 33-64 | H1: 17-32 | I1: 9-16 | J1: 5-8 | K1: 3-4 | L1: 2ος | M1: 1ος | P1: Categories | Q1: Juniors | R1: Serniors | V1: Tours | X1: Clubs | Y1: Id | Z1: Union | AB1: Organizers | AD1: Referees | AF1: key | AG1: pts18 | AI1: KEY TourDetails | AJ1: Date | AK1: TourName | AL1: CLUBid | AM1: CLUB | AN1: TYPE | AO1: GRP | AP1: GRPid | AQ1: TDid | AS1: Group | AT1: GroupID
A2: 1 | B2: =RAND()/222 -> 0.002455905948 | C2: 0.004262552663 | F2: Ε1-12 | H2: 5 | I2: 7.5 | J2: 10 | K2: 15 | L2: 25 | M2: 30 | Q2: Α10 | R2: m35 | V2: Παν | AF2: Ε1S-12-1st | AG2: 30 | AI2: =AJ2&AK2&AL2&AN2&AO2 -> 43113Ε3 2η (Β)152Sα12 | AJ2: 2018-01-13 | AK2: Ε3 2η (Β) | AL2: 152 | AM2: ΟΑ ΚΑΛΑΜΑΡΙΑΣ | AN2: S | AO2: α12 | AP2: 5 | AQ2: 3305 | AS2: Α10 | AT2: 3
A3: 2 | B3: =RAND()/222 -> 0.003203563455 | C3: 0.00436055152 | F3: Ε1-14 | H3: 10 | I3: 15 | J3: 20 | K3: 30 | L3: 50 | M3: 60 | P3: Α12 | Q3: Α12 | R3: m40 | V3: Ε3 | X3: ΑΑ ΑΙΓΑΛΕΩ | Y3: 366 | Z3: Θ | AB3: ΕΦΟΑ | AD3: Θα-ανακοινωθεί | AF3: Ε1S-12-2nd | AG3: 25 | AI3: =AJ3&AK3&AL3&AN3&AO3 -> 43113Ε3 2η (Β)152Sα16 | AJ3: 2018-01-13 | AK3: Ε3 2η (Β) | AL3: 152 | AM3: ΟΑ ΚΑΛΑΜΑΡΙΑΣ | AN3: S | AO3: α16 | AP3: 7 | AQ3: 3306 | AS3: Κ10 | AT3: 4
A4: 3 | B4: =RAND()/222 -> 0.0006193134402 | C4: 0.002882863069 | F4: Ε1-16 | H4: 20 | I4: 30 | J4: 40 | K4: 60 | L4: 100 | M4: 120 | P4: Α14 | Q4: Α14 | R4: m45 | V4: Ε4 | X4: ΑΑ ΑΛΜΠΑΤΡΟΣ | Y4: 124 | Z4: Β | AB4: Α' ΕΝΩΣΗ | AD4: ΑΛΕΞΙΟΥ Δ | AF4: Ε1S-12-3_4 | AG4: 15 | AI4: 43113Ε3 2η (Β)152Sκ12 | AJ4: 2018-01-13 | AK4: Ε3 2η (Β) | AL4: 152 | AM4: ΟΑ ΚΑΛΑΜΑΡΙΑΣ | AN4: S | AO4: κ12 | AP4: 9 | AQ4: 3307 | AS4: Α12 | AT4: 5
A5: 4 | B5: =RAND()/222 -> 0.00164320325 | C5: 0.001346797691 | F5: Ε1-18 | H5: 25 | I5: 37.5 | J5: 50 | K5: 75 | L5: 125 | M5: 150 | P5: Α16 | Q5: Α16 | R5: m50 | V5: Open | X5: ΑΑ ΚΕΡΚΥΡΑΣ | Y5: 201 | Z5: Δ | AB5: Β' ΕΝΩΣΗ | AD5: ΑΜΟΥΤΖΟΓΛΟΥ Κ | AF5: Ε1S-12-5_8 | AG5: 10 | AI5: 43113Ε3 2η (Β)152Sκ16 | AJ5: 2018-01-13 | AK5: Ε3 2η (Β) | AL5: 152 | AM5: ΟΑ ΚΑΛΑΜΑΡΙΑΣ | AN5: S | AO5: κ16 | AP5: 11 | AQ5: 3308 | AS5: Α14 | AT5: 6
A6: 5 | B6: =RAND()/222 -> 0.004137389214 | C6: 0.001014334363 | F6: Ε2-12 | H6: 2.5 | I6: 4 | J6: 5 | K6: 7.5 | L6: 12.5 | M6: 15 | P6: Α18 | Q6: Α18 | R6: m55 | V6: ΠανΑΓ | X6: ΑΑ ΝΑΟΥΣΑΣ | Y6: 169 | Z6: Γ | AB6: Γ' ΕΝΩΣΗ | AD6: ΑΞΑΡΛΗ Ν | AF6: Ε1S-12-9_16 | AG6: 7.5 | AI6: 43120Ε3 4η (Δ)217Sα12 | AJ6: 2018-01-20 | AK6: Ε3 4η (Δ) | AL6: 217 | AM6: ΟΑ ΑΡΤΑΣ | AN6: S | AO6: α12 | AP6: 5 | AQ6: 3309 | AS6: Α16 | AT6: 7
A7: 6 | B7: =RAND()/222 -> 0.001145021182 | C7: 0.0003506675601 | F7: Ε2-14 | H7: 5 | I7: 7.5 | J7: 10 | K7: 15 | L7: 25 | M7: 30 | P7: Κ12 | Q7: Κ10 | R7: m60 | V7: OpenΑΓ | X7: ΑΑΑ ΑΛΙΜΟΥ | Y7: 407 | Z7: ΙΑ | AB7: Δ' ΕΝΩΣΗ | AD7: ΒΑΒΙΤΣΑ Π | AF7: Ε1S-12-17_32 | AG7: 1 | AI7: 43120Ε3 4η (Δ)217Sα16 | AJ7: 2018-01-20 | AK7: Ε3 4η (Δ) | AL7: 217 | AM7: ΟΑ ΑΡΤΑΣ | AN7: S | AO7: α16 | AP7: 7 | AQ7: 3310 | AS7: Α18 | AT7: 8
A8: 7 | B8: 0.001244658335 | C8: 7.11289637e-05 | F8: Ε2-16 | H8: 10 | I8: 16 | J8: 20 | K8: 30 | L8: 50 | M8: 60 | P8: Κ14 | Q8: Κ12 | R8: m65 | X8: ΑΓΟ ΒΟΛΟΥ | Y8: 470 | Z8: Ε | AB8: Ε' ΕΝΩΣΗ | AD8: ΒΑΒΟΥΡΑΚΗ Ε | AF8: Ε1S-12-q8 | AG8: 2 | AI8: 43120Ε3 4η (Δ)217Sκ12 | AJ8: 2018-01-20 | AK8: Ε3 4η (Δ) | AL8: 217 | AM8: ΟΑ ΑΡΤΑΣ | AN8: S | AO8: κ12 | AP8: 9 | AQ8: 3311 | AS8: Κ12 | AT8: 9
A9: 8 | B9: 0.002958575184 | C9: 0.0001672249229 | F9: Ε3-12 | G9: 0.5 | H9: 1.5 | I9: 2.4 | J9: 3 | K9: 4.5 | L9: 7.5 | M9: 9 | P9: Κ16 | Q9: Κ14 | R9: m70 | X9: ΑΓΟ ΕΥΡΥΑΛΗ ΓΛΥΦΑΔΑΣ | Y9: 408 | Z9: ΙΑ | AB9: ΣΤ' ΕΝΩΣΗ | AD9: ΒΑΚΟΥΦΑΡΗΣ Δ | AF9: Ε1S-12-q16 | AG9: 2 | AI9: 43120Ε3 4η (Δ)217Sκ16 | AJ9: 2018-01-20 | AK9: Ε3 4η (Δ) | AL9: 217 | AM9: ΟΑ ΑΡΤΑΣ | AN9: S | AO9: κ16 | AP9: 11 | AQ9: 3312 | AS9: Κ14 | AT9: 10
A10: 9 | B10: 0.0009692823996 | C10: 0.003266814777 | F10: Ε3-14 | G10: 1 | H10: 3 | I10: 4.5 | J10: 6 | K10: 9 | L10: 15 | M10: 18 | P10: Κ18 | Q10: Κ16 | R10: m75 | X10: ΑΓΟ ΘΕΣΠΡΩΤΙΚΟΥ | Y10: 202 | Z10: Δ | AB10: Ζ' ΕΝΩΣΗ | AD10: ΒΑΛΤΑΔΩΡΟΣ Δ | AF10: Ε1S-12-q8/2 | AG10: 1 | AI10: 43120Ε3 3η (Ε)244Sα12 | AJ10: 2018-01-20 | AK10: Ε3 3η (Ε) | AL10: 244 | AM10: ΟΑ ΜΑΓΝΗΣΙΑΣ | AN10: S | AO10: α12 | AP10: 5 | AQ10: 3313 | AS10: Κ16 | AT10: 11
A11: 10 | B11: 0.004060789578 | C11: 0.003606599166 | F11: Ε3-16 | G11: 2 | H11: 6 | I11: 9.6 | J11: 12 | K11: 18 | L11: 30 | M11: 36 | P11: Α10 | Q11: Κ18 | R11: w35 | X11: ΑΓΟ ΝΑΥΠΑΚΤΟΥ | Y11: 203 | Z11: Δ | AB11: Η' ΕΝΩΣΗ | AD11: ΒΑΛΤΑΔΩΡΟΣ Μ | AF11: Ε1S-12-q32 | AG11: 1 | AI11: 43120Ε3 3η (Ε)244Sα16 | AJ11: 2018-01-20 | AK11: Ε3 3η (Ε) | AL11: 244 | AM11: ΟΑ ΜΑΓΝΗΣΙΑΣ | AN11: S | AO11: α16 | AP11: 7 | AQ11: 3314 | AS11: Κ18 | AT11: 12
A12: 11 | B12: 0.0004068280428 | C12: 0.00265468216 | F12: Ε4-12 | G12: 0.2 | H12: 0.5 | I12: 1 | J12: 1.2 | K12: 1.7 | L12: 3.2 | M12: 3.7 | P12: Κ10 | Q12: ΑΝΔ | R12: w40 | X12: ΑΓΟ ΦΙΛΙΠΠΙΑΔΑΣ | Y12: 204 | Z12: Δ | AB12: Θ' ΕΝΩΣΗ | AD12: ΒΑΧΑΡΙΔΗΣ Γ | AF12: Ε1S-12-33_64 | AG12: 0 | AI12: 43120Ε3 3η (Ε)244Sκ12 | AJ12: 2018-01-20 | AK12: Ε3 3η (Ε) | AL12: 244 | AM12: ΟΑ ΜΑΓΝΗΣΙΑΣ | AN12: S | AO12: κ12 | AP12: 9 | AQ12: 3315 | AS12: Α12 Δ | AT12: 13
A13: 12 | B13: 0.0007064284358 | C13: 0.000168296628 | F13: Ε4-14 | G13: 0.5 | H13: 1.2 | I13: 1.8 | J13: 2.5 | K13: 3.7 | L13: 6.2 | M13: 7.5 | P13: Ανδ | Q13: ΓΥΝ | R13: w45 | V13: Παν | X13: ΑΓΣ ΜΥΛΩΝ Ο ΛΕΡΝΟΣ | Y13: 258 | Z13: ΣΤ | AB13: ΙΑ' ΕΝΩΣΗ | AD13: ΒΟΥΡΟΥΚΟΣ Κ | AF13: Ε1S-12-q | AG13: 0 | AI13: 43120Ε3 3η (Ε)244Sκ16 | AJ13: 2018-01-20 | AK13: Ε3 3η (Ε) | AL13: 244 | AM13: ΟΑ ΜΑΓΝΗΣΙΑΣ | AN13: S | AO13: κ16 | AP13: 11 | AQ13: 3316 | AS13: Α14 Δ | AT13: 14
A14: 13 | B14: 0.001236493198 | C14: 0.002883644554 | F14: Ε4-16 | G14: 1 | H14: 2.5 | I14: 4 | J14: 5 | K14: 7.5 | L14: 12.5 | M14: 15 | P14: Γυν | Q14: - | R14: w50 | V14: Ε1 | X14: ΑΕ ΒΟΥΛΑΣ | Y14: 496 | Z14: ΙΑ | AB14: ΣΒΑΕ | AD14: ΓΑΛΑΤΙΔΗΣ Α | AF14: Ε1S-12-q64 | AG14: 0 | AI14: 43126Ε3 4η (Η)336Sα12 | AJ14: 2018-01-26 | AK14: Ε3 4η (Η) | AL14: 336 | AM14: ΑΟΑ ΦΙΛΟΘΕΗΣ | AN14: S | AO14: α12 | AP14: 5 | AQ14: 3317 | AS14: Α16 Δ | AT14: 15
A15: 14 | B15: 0.0007718702467 | C15: 0.001027572822 | F15: Παν-12 | G15: 5 | H15: 10 | I15: 15 | J15: 20 | K15: 30 | L15: 50 | M15: 60 | Q15: - | R15: w55 | V15: Ε2 | X15: ΑΕ ΚΑΛΑΒΡΥΤΩΝ | Y15: 259 | Z15: ΣΤ | AB15: ITF & ΣΒΑΕ | AD15: ΓΕΡΑΡΔΟΣ Γ | AF15: Ε1S-12-q128 | AG15: 0 | AI15: 43126Ε3 4η (Η)336Sκ12 | AJ15: 2018-01-26 | AK15: Ε3 4η (Η) | AL15: 336 | AM15: ΑΟΑ ΦΙΛΟΘΕΗΣ | AN15: S | AO15: κ12 | AP15: 9 | AQ15: 3318 | AS15: Α18 Δ | AT15: 16
A16: 15 | B16: 0.00268771353 | C16: 0.004432771317 | F16: Παν-14 | G16: 10 | H16: 20 | I16: 30 | J16: 40 | K16: 60 | L16: 100 | M16: 120 | Q16: - | R16: - | V16: Ε3 | X16: ΑΕ ΠΟΡΤΟ ΡΑΦΤΗ | Y16: 313 | Z16: Η | AB16: INTERSPORT | AD16: ΓΕΩΡΓΑΚΗΣ Κ | AF16: Ε1S-12-q256 | AG16: 0 | AI16: 43126Ε3 4η (Η)336Sα14 | AJ16: 2018-01-26 | AK16: Ε3 4η (Η) | AL16: 336 | AM16: ΑΟΑ ΦΙΛΟΘΕΗΣ | AN16: S | AO16: α14 | AP16: 6 | AQ16: 3319 | AS16: Κ12 Δ | AT16: 17
A17: 16 | B17: 0.004189188257 | C17: 6.622421487e-05 | F17: Παν-16 | G17: 20 | H17: 40 | I17: 60 | J17: 80 | K17: 120 | L17: 200 | M17: 240 | V17: Ε4 | X17: ΑΕΚ ΤΡΙΠΟΛΗΣ | Y17: 260 | Z17: ΣΤ | AD17: ΓΕΩΡΓΑΡΑ Ε | AF17: Ε1S-12-wo | AG17: 0 | AI17: 43126Ε3 4η (Η)336Sκ14 | AJ17: 2018-01-26 | AK17: Ε3 4η (Η) | AL17: 336 | AM17: ΑΟΑ ΦΙΛΟΘΕΗΣ | AN17: S | AO17: κ14 | AP17: 10 | AQ17: 3320 | AS17: Κ14 Δ | AT17: 18
F18: Παν-18 | G18: 25 | H18: 50 | I18: 75 | J18: 100 | K18: 150 | L18: 250 | M18: 300 | X18: ΑΕΣΑ Φ ΚΟΥΡΟΣ | Y18: 478 | Z18: Η | AD18: ΓΕΩΡΓΑΤΗΣ Ι | AF18: Ε1D-12-1st | AG18: 7.5 | AI18: 43126Ε3 4η (Η)336Sκ16 | AJ18: 2018-01-26 | AK18: Ε3 4η (Η) | AL18: 336 | AM18: ΑΟΑ ΦΙΛΟΘΕΗΣ | AN18: S | AO18: κ16 | AP18: 11 | AQ18: 3321 | AS18: Κ16 Δ | AT18: 19
V19: G1 | X19: ΑΕΤ ΝΙΚΗ ΠΑΤΡΩΝ | Y19: 261 | Z19: ΣΤ | AD19: ΓΕΩΡΓΙΑΔΗΣ Σ | AF19: Ε1D-12-2nd | AG19: 6.5 | AI19: 43126Ε3 4η (Η)336Sα16 | AJ19: 2018-01-26 | AK19: Ε3 4η (Η) | AL19: 336 | AM19: ΑΟΑ ΦΙΛΟΘΕΗΣ | AN19: S | AO19: α16 | AP19: 7 | AQ19: 3322 | AS19: Κ18 Δ | AT19: 20
G20: q256 | H20: q128 | I20: q64 | J20: q32 | K20: q16 | L20: q8 | V20: G2 | X20: ΑΘΛ ΑΚΑΔ ΙΩΑΝΝΙΝΩΝ | Y20: 205 | Z20: Δ | AD20: ΓΙΑΝΝΟΥΛΟΠΟΥΛΟΥ Α | AF20: Ε1D-12-3_4 | AG20: 4 | AI20: 43141Ε3 6η (Δ)217Sα14 | AJ20: 2018-02-10 | AK20: Ε3 6η (Δ) | AL20: 217 | AM20: ΟΑ ΑΡΤΑΣ | AN20: S | AO20: α14 | AP20: 6 | AQ20: 3323 | AS20: Μ12 Δ | AT20: 21
F21: Ε1-12 | J21: 1 | K21: 2 | L21: 2 | V21: G3 | X21: ΑΘΛ ΚΕΝΤΡΟ ΑΝΤΙΣΦ ΛΑΜΙΑΣ | Y21: 223 | Z21: Ε | AD21: ΓΙΑΤΣΟΣ Β | AF21: Ε1D-12-5_8 | AG21: 2.5 | AI21: 43141Ε3 6η (Δ)217Sκ14 | AJ21: 2018-02-10 | AK21: Ε3 6η (Δ) | AL21: 217 | AM21: ΟΑ ΑΡΤΑΣ | AN21: S | AO21: κ14 | AP21: 10 | AQ21: 3324 | AS21: Μ14 Δ | AT21: 22
F22: Ε1-14 | J22: 2 | K22: 4 | L22: 4 | V22: G4 | X22: ΑΙΟΛΟΣ ΑΛ ΙΛΙΟΥ | Y22: 367 | Z22: Θ | AD22: ΓΙΩΓΙΑ Π | AF22: Ε1D-12-9_16 | AG22: 2 | AI22: 43119Ε3 3η (Θ)374Sα12 | AJ22: 2018-01-19 | AK22: Ε3 3η (Θ) | AL22: 374 | AM22: ΑΟΑ ΧΑΪΔΑΡΙΟΥ | AN22: S | AO22: α12 | AP22: 5 | AQ22: 3325 | AS22: Μ16 Δ | AT22: 23
F23: Ε1-16 | J23: 4 | K23: 8 | L23: 8 | V23: G5 | X23: ΑΚ ΖΩΓΡΑΦΟΥ | Y23: 410 | Z23: ΙΑ | AD23: ΓΚΟΓΚΟΥ Κ | AF23: Ε1D-12-17_32 | AG23: 0 | AI23: 43119Ε3 3η (Θ)374Sκ12 | AJ23: 2018-01-19 | AK23: Ε3 3η (Θ) | AL23: 374 | AM23: ΑΟΑ ΧΑΪΔΑΡΙΟΥ | AN23: S | AO23: κ12 | AP23: 9 | AQ23: 3326 | AS23: Μ18 Δ | AT23: 24
F24: Ε1-18 | J24: 5 | K24: 10 | L24: 10 | X24: ΑΚΑ Α ΠΑΝΤΑΛΚΗΣ | Y24: 487 | Z24: Θ | AD24: ΓΚΟΥΝΤΑΝΗ Γ | AF24: Ε1D-12-wo | AG24: 0 | AI24: 43119Ε3 3η (Θ)374Sα16 | AJ24: 2018-01-19 | AK24: Ε3 3η (Θ) | AL24: 374 | AM24: ΑΟΑ ΧΑΪΔΑΡΙΟΥ | AN24: S | AO24: α16 | AP24: 7 | AQ24: 3327 | AS24: ΑΝΔ | AT24: 25
F25: Ε2-12 | J25: 0.5 | K25: 1 | L25: 1 | X25: ΑΚΑ ΜΑΡΑΘΩΝΑ | Y25: 315 | Z25: Η | AD25: ΔΑΜΙΑΝΟΥ Α | AF25: Ε1S-14-1st | AG25: 60 | AI25: 43119Ε3 3η (Θ)374Sκ16 | AJ25: 2018-01-19 | AK25: Ε3 3η (Θ) | AL25: 374 | AM25: ΑΟΑ ΧΑΪΔΑΡΙΟΥ | AN25: S | AO25: κ16 | AP25: 11 | AQ25: 3328 | AS25: ΓΥΝ | AT25: 26
F26: Ε2-14 | J26: 1 | K26: 2 | L26: 2 | X26: ΑΚΑΔ ΑΝΤΙΣΦ ΙΩΑΝΝΙΝΩΝ | Y26: 206 | Z26: Δ | AD26: ΔΕΡΜΙΤΖΑΚΗ Ε | AF26: Ε1S-14-2nd | AG26: 50 | AI26: 43126Ε3 4η (Θ)374Sα14 | AJ26: 2018-01-26 | AK26: Ε3 4η (Θ) | AL26: 374 | AM26: ΑΟΑ ΧΑΪΔΑΡΙΟΥ | AN26: S | AO26: α14 | AP26: 6 | AQ26: 3329 | AS26: ΑΝΔ Δ | AT26: 27
F27: Ε2-16 | J27: 2 | K27: 4 | L27: 4 | P27: Ναι | X27: ΑΚΑΔ ΑΝΤΙΣΦ ΣΕΡΡΩΝ 2008 | Y27: 101 | Z27: Α | AD27: ΔΗΜΗΤΡΙΟΥ Ε | AF27: Ε1S-14-3_4 | AG27: 30 | AI27: 43126Ε3 4η (Θ)374Sκ14 | AJ27: 2018-01-26 | AK27: Ε3 4η (Θ) | AL27: 374 | AM27: ΑΟΑ ΧΑΪΔΑΡΙΟΥ | AN27: S | AO27: κ14 | AP27: 10 | AQ27: 3330 | AS27: ΓΥΝ Δ | AT27: 28
F28: Ε3-12 | P28: Όχι | X28: ΑΚΑΔ ΑΝΤΙΣΦ ΧΑΝΙΩΝ | Y28: 298 | Z28: Ζ | AD28: ΔΡΑΓΟΥΜΗΣ Π | AF28: Ε1S-14-5_8 | AG28: 20 | AI28: 43127Ε3 4η (Α)107Sα12 | AJ28: 2018-01-27 | AK28: Ε3 4η (Α) | AL28: 107 | AM28: ΑΟΑ Ν ΠΕΡΑΜΟΥ ΤΙΤΑΝΕΣ | AN28: S | AO28: α12 | AP28: 5 | AQ28: 3331 | AS28: ΜΙΚΤ Α/Γ | AT28: 29
F29: Ε3-14 | X29: ΑΜΕΣ Ν ΕΡΥΘΡΑΙΑΣ | Y29: 316 | Z29: Η | AD29: ΘΕΟΔΩΡΟΠΟΥΛΟΥ Α | AF29: Ε1S-14-9_16 | AG29: 15 | AI29: 43127Ε3 4η (Α)107Sκ12 | AJ29: 2018-01-27 | AK29: Ε3 4η (Α) | AL29: 107 | AM29: ΑΟΑ Ν ΠΕΡΑΜΟΥ ΤΙΤΑΝΕΣ | AN29: S | AO29: κ12 | AP29: 9 | AQ29: 3332
F30: Ε3-16 | P30: από values | X30: ΑΜΣ ΠΑΝΟΡΑΜΑΤΟΣ | Y30: 458 | Z30: Β | AD30: ΙΩΑΝΝΙΔΗΣ Ι | AF30: Ε1S-14-17_32 | AG30: 2 | AI30: 43127Ε3 4η (Α)108Sα14 | AJ30: 2018-01-27 | AK30: Ε3 4η (Α) | AL30: 108 | AM30: ΑΟΑ ΠΡΩΤΑΘΛ ΚΑΒΑΛΑΣ | AN30: S | AO30: α14 | AP30: 6 | AQ30: 3333
F31: Ε4-12 | X31: ΑΝΟ ΓΛΥΦΑΔΑΣ | Y31: 411 | Z31: ΙΑ | AD31: ΚΑΔΟΓΛΟΥ Κ | AF31: Ε1S-14-q8 | AG31: 4 | AI31: 43127Ε3 4η (Α)108Sκ14 | AJ31: 2018-01-27 | AK31: Ε3 4η (Α) | AL31: 108 | AM31: ΑΟΑ ΠΡΩΤΑΘΛ ΚΑΒΑΛΑΣ | AN31: S | AO31: κ14 | AP31: 10 | AQ31: 3334
F32: Ε4-14 | P32: alt | X32: ΑΝΣ ΕΛΛΗΝΙΚΙΩΤΩΝ | Y32: 412 | Z32: ΙΑ | AD32: ΚΑΖΑΝΗΣ Γ | AF32: Ε1S-14-q16 | AG32: 4 | AI32: 43127Ε3 4η (Α)108Sα16 | AJ32: 2018-01-27 | AK32: Ε3 4η (Α) | AL32: 108 | AM32: ΑΟΑ ΠΡΩΤΑΘΛ ΚΑΒΑΛΑΣ | AN32: S | AO32: α16 | AP32: 7 | AQ32: 3335
F33: Ε4-16 | P33: Q | X33: ΑΟ ΑΘΗΝΑΪΚΗ | Y33: 488 | Z33: Θ | AD33: ΚΑΚΚΑΛΟΣ Γ | AF33: Ε1S-14-q8/2 | AG33: 2 | AI33: 43127Ε3 4η (Α)108Sκ16 | AJ33: 2018-01-27 | AK33: Ε3 4η (Α) | AL33: 108 | AM33: ΑΟΑ ΠΡΩΤΑΘΛ ΚΑΒΑΛΑΣ | AN33: S | AO33: κ16 | AP33: 11 | AQ33: 3336
F34: Παν-12 | G34: 0.5 | H34: 1 | I34: 1.5 | J34: 2.5 | K34: 2.5 | P34: LL | X34: ΑΟ ΑΙΓΙΟΥ ΜΟΡΕΑΣ | Y34: 262 | Z34: ΣΤ | AD34: ΚΑΛΟΓΡΗ Σ | AF34: Ε1S-14-q32 | AG34: 2 | AI34: 43126Ε3 4η (ΙΑ)442Sα12 | AJ34: 2018-01-26 | AK34: Ε3 4η (ΙΑ) | AL34: 442 | AM34: ΑΟΑ ΚΑΒΟΥΡΙΟΥ | AN34: S | AO34: α12 | AP34: 5 | AQ34: 3337
F35: Παν-14 | G35: 1 | H35: 2 | I35: 3 | J35: 5 | K35: 5 | P35: DQ | X35: ΑΟ ΑΛΦΕΙΟΣ ΕΠΙΤΑΛΙΟΥ | Y35: 501 | Z35: ΣΤ | AD35: ΚΑΜΙΛΗ Α | AF35: Ε1S-14-33_64 | AG35: 0 | AI35: 43126Ε3 4η (ΙΑ)442Sκ12 | AJ35: 2018-01-26 | AK35: Ε3 4η (ΙΑ) | AL35: 442 | AM35: ΑΟΑ ΚΑΒΟΥΡΙΟΥ | AN35: S | AO35: κ12 | AP35: 9 | AQ35: 3338
F36: Παν-16 | G36: 2 | H36: 4 | I36: 6 | J36: 10 | K36: 10 | X36: ΑΟ ΑΣΤΕΡΑΣ ΗΛΙΟΥΠΟΛΗΣ | Y36: 497 | Z36: ΙΑ | AD36: ΚΑΡΑΜΗΤΡΟΣ Κ | AF36: Ε1S-14-q | AG36: 0 | AI36: 43126Ε3 4η (ΙΑ)442Sα14 | AJ36: 2018-01-26 | AK36: Ε3 4η (ΙΑ) | AL36: 442 | AM36: ΑΟΑ ΚΑΒΟΥΡΙΟΥ | AN36: S | AO36: α14 | AP36: 6 | AQ36: 3339
F37: Παν-18 | G37: 2.5 | H37: 5 | I37: 7.5 | J37: 12.5 | K37: 12.5 | X37: ΑΟ ΑΤΛΑΝΤΙΣ | Y37: 317 | Z37: Η | AD37: ΚΑΡΑΤΑΣΟΣ Κ | AF37: Ε1S-14-q64 | AG37: 0 | AI37: 43126Ε3 4η (ΙΑ)442Sκ14 | AJ37: 2018-01-26 | AK37: Ε3 4η (ΙΑ) | AL37: 442 | AM37: ΑΟΑ ΚΑΒΟΥΡΙΟΥ | AN37: S | AO37: κ14 | AP37: 10 | AQ37: 3340
X38: ΑΟ ΒΑΡΗΣ ΑΝΑΓΥΡΟΥΣ | Y38: 318 | Z38: Η | AD38: ΚΑΦΕΤΖΟΠΟΥΛΟΣ Π | AF38: Ε1S-14-q128 | AG38: 0 | AI38: 43126Ε3 4η (ΙΑ)442Sα16 | AJ38: 2018-01-26 | AK38: Ε3 4η (ΙΑ) | AL38: 442 | AM38: ΑΟΑ ΚΑΒΟΥΡΙΟΥ | AN38: S | AO38: α16 | AP38: 7 | AQ38: 3341
X39: ΑΟ ΒΟΥΛΙΑΓΜΕΝΗΣ | Y39: 415 | Z39: ΙΑ | AD39: ΚΑΦΦΕ Μ | AF39: Ε1S-14-q256 | AG39: 0 | AI39: 43126Ε3 4η (ΙΑ)442Sκ16 | AJ39: 2018-01-26 | AK39: Ε3 4η (ΙΑ) | AL39: 442 | AM39: ΑΟΑ ΚΑΒΟΥΡΙΟΥ | AN39: S | AO39: κ16 | AP39: 11 | AQ39: 3342
X40: ΑΟ ΓΛΥΦΑΔΑΣ ΦΙΛΙΑ 2000 | Y40: 416 | Z40: ΙΑ | AD40: ΚΙΜΟΓΛΟΥ Ε | AF40: Ε1S-14-wo | AG40: 0 | AI40: 43127Ε3 4η (Ε)244Sα14 | AJ40: 2018-01-27 | AK40: Ε3 4η (Ε) | AL40: 244 | AM40: ΟΑ ΜΑΓΝΗΣΙΑΣ | AN40: S | AO40: α14 | AP40: 6 | AQ40: 3343
X41: ΑΟ ΔΑΣΟΣ ΧΑΪΔΑΡΙΟΥ | Y41: 489 | Z41: Θ | AD41: ΚΟΣΚΙΝΑΣ Ι | AF41: Ε1D-14-1st | AG41: 15 | AI41: 43127Ε3 4η (Ε)244Sκ14 | AJ41: 2018-01-27 | AK41: Ε3 4η (Ε) | AL41: 244 | AM41: ΟΑ ΜΑΓΝΗΣΙΑΣ | AN41: S | AO41: κ14 | AP41: 10 | AQ41: 3344
X42: ΑΟ ΔΙΑΣ ΠΟΛΙΧΝΗΣ | Y42: 126 | Z42: Β | AD42: ΚΟΤΣΑΡΙΝΗΣ Β | AF42: Ε1D-14-2nd | AG42: 13 | AI42: 43127Ε3 4η (Ζ)309Sα12 | AJ42: 2018-01-27 | AK42: Ε3 4η (Ζ) | AL42: 309 | AM42: ΟΑ ΣΟΥΔΑΣ | AN42: S | AO42: α12 | AP42: 5 | AQ42: 3345
X43: ΑΟ ΔΙΛΟΦΟ ΒΑΡΗΣ | Y43: 319 | Z43: Η | AD43: ΚΟΤΣΩΝΗΣ Ε | AF43: Ε1D-14-3_4 | AG43: 8 | AI43: 43127Ε3 4η (Ζ)309Sκ12 | AJ43: 2018-01-27 | AK43: Ε3 4η (Ζ) | AL43: 309 | AM43: ΟΑ ΣΟΥΔΑΣ | AN43: S | AO43: κ12 | AP43: 9 | AQ43: 3346
X44: ΑΟ ΕΜΙΛΕΟΝ | Y44: 207 | Z44: Δ | AD44: ΚΟΥΚΟΥΒΙΤΑΚΗ Γ | AF44: Ε1D-14-5_8 | AG44: 5 | AI44: 43127Ε3 4η (Ζ)298Sα14 | AJ44: 2018-01-27 | AK44: Ε3 4η (Ζ) | AL44: 298 | AM44: ΑΚΑΔ ΑΝΤΙΣΦ ΧΑΝΙΩΝ | AN44: S | AO44: α14 | AP44: 6 | AQ44: 3347
X45: ΑΟ ΘΕΡΜΗΣ ΘΕΡΜΑΙΟΣ | Y45: 127 | Z45: Β | AD45: ΚΟΥΚΟΥΝΙΑΣ Χ | AF45: Ε1D-14-9_16 | AG45: 4 | AI45: 43127Ε3 4η (Ζ)298Sκ14 | AJ45: 2018-01-27 | AK45: Ε3 4η (Ζ) | AL45: 298 | AM45: ΑΚΑΔ ΑΝΤΙΣΦ ΧΑΝΙΩΝ | AN45: S | AO45: κ14 | AP45: 10 | AQ45: 3348
X46: ΑΟ ΚΑΒΑΛΑΣ ΜΑΚΕΔΟΝΙΚΟΣ | Y46: 102 | Z46: Α | AD46: ΚΟΥΛΟΥΡΗΣ Π | AF46: Ε1D-14-17_32 | AG46: 0 | AI46: 43127Ε3 4η (Ζ)310Sα16 | AJ46: 2018-01-27 | AK46: Ε3 4η (Ζ) | AL46: 310 | AM46: ΟΑ ΧΑΝΙΩΝ | AN46: S | AO46: α16 | AP46: 7 | AQ46: 3349
X47: ΑΟ ΚΑΛΛΙΤΕΧΝΟΥΠΟΛΗΣ | Y47: 320 | Z47: Η | AD47: ΚΟΥΜΑΝΤΑΣ Κ | AF47: Ε1D-14-wo | AG47: 0 | AI47: 43127Ε3 4η (Ζ)310Sκ16 | AJ47: 2018-01-27 | AK47: Ε3 4η (Ζ) | AL47: 310 | AM47: ΟΑ ΧΑΝΙΩΝ | AN47: S | AO47: κ16 | AP47: 11 | AQ47: 3350
X48: ΑΟ ΚΗΦΙΣΙΑΣ | Y48: 321 | Z48: Η | AD48: ΚΟΥΤΣΟΛΑΜΠΡΟΥ Α | AF48: Ε1S-16-1st | AG48: 120 | AI48: 43127Ε3 4η (ΣΤ)261Sα12 | AJ48: 2018-01-27 | AK48: Ε3 4η (ΣΤ) | AL48: 261 | AM48: ΑΕΤ ΝΙΚΗ ΠΑΤΡΩΝ | AN48: S | AO48: α12 | AP48: 5 | AQ48: 3351
X49: ΑΟ ΚΡΑΝΙΔΙΟΥ | Y49: 264 | Z49: ΣΤ | AD49: ΚΡΑΝΙΩΤΗ Σ | AF49: Ε1S-16-2nd | AG49: 100 | AI49: 43127Ε3 4η (ΣΤ)261Sα16 | AJ49: 2018-01-27 | AK49: Ε3 4η (ΣΤ) | AL49: 261 | AM49: ΑΕΤ ΝΙΚΗ ΠΑΤΡΩΝ | AN49: S | AO49: α16 | AP49: 7 | AQ49: 3380
X50: ΑΟ ΚΥΔΩΝΙΑΣ | Y50: 299 | Z50: Ζ | AD50: ΚΩΝΣΤΑΝΤΙΝΟΥ Κ | AF50: Ε1S-16-3_4 | AG50: 60 | AI50: 43127Ε3 4η (ΣΤ)261Sκ12 | AJ50: 2018-01-27 | AK50: Ε3 4η (ΣΤ) | AL50: 261 | AM50: ΑΕΤ ΝΙΚΗ ΠΑΤΡΩΝ | AN50: S | AO50: κ12 | AP50: 9 | AQ50: 3381
X51: ΑΟ ΛΑΓΟΝΗΣΙΟΥ | Y51: 322 | Z51: Η | AD51: ΚΩΣΤΙΔΟΥ Χ | AF51: Ε1S-16-5_8 | AG51: 40 | AI51: 43127Ε3 4η (ΣΤ)261Sκ16 | AJ51: 2018-01-27 | AK51: Ε3 4η (ΣΤ) | AL51: 261 | AM51: ΑΕΤ ΝΙΚΗ ΠΑΤΡΩΝ | AN51: S | AO51: κ16 | AP51: 11 | AQ51: 3382
X52: ΑΟ ΛΑΤΩ ΑΓ ΝΙΚΟΛΑΟΥ | Y52: 300 | Z52: Ζ | AD52: ΛΑΖΑΡΙΔΗΣ Ι | AF52: Ε1S-16-9_16 | AG52: 30 | AI52: 43127Ε3 4η (Β)124Sα14 | AJ52: 2018-01-27 | AK52: Ε3 4η (Β) | AL52: 124 | AM52: ΑΑ ΑΛΜΠΑΤΡΟΣ | AN52: S | AO52: α14 | AP52: 6 | AQ52: 3352
X53: ΑΟ ΛΙΒΑΔΕΙΩΝ ΒΟΥΡΕΙΟΣ | Y53: 323 | Z53: Η | AD53: ΛΑΛΟΥΜΗΣ Λ | AF53: Ε1S-16-17_32 | AG53: 4 | AI53: 43127Ε3 4η (Β)124Sκ14 | AJ53: 2018-01-27 | AK53: Ε3 4η (Β) | AL53: 124 | AM53: ΑΑ ΑΛΜΠΑΤΡΟΣ | AN53: S | AO53: κ14 | AP53: 10 | AQ53: 3353
X54: ΑΟ ΜΑΡΚΟΠΟΥΛΟΥ | Y54: 479 | Z54: Η | AD54: ΛΑΜΠΡΟΥ Μ | AF54: Ε1S-16-q8 | AG54: 8 | AI54: 43127Ε3 4η (Γ)171Sα14 | AJ54: 2018-01-27 | AK54: Ε3 4η (Γ) | AL54: 171 | AM54: ΑΟΑ ΚΑΤΕΡΙΝΗΣ | AN54: S | AO54: α14 | AP54: 6 | AQ54: 3354
X55: ΑΟ ΜΕΓΑΣ ΑΛΕΞΑΝΔΡΟΣ | Y55: 418 | Z55: ΙΑ | AD55: ΛΙΓΓΟΣ Ι | AF55: Ε1S-16-q16 | AG55: 8 | AI55: 43127Ε3 4η (Γ)171Sκ14 | AJ55: 2018-01-27 | AK55: Ε3 4η (Γ) | AL55: 171 | AM55: ΑΟΑ ΚΑΤΕΡΙΝΗΣ | AN55: S | AO55: κ14 | AP55: 10 | AQ55: 3355
X56: ΑΟ ΜΟΡΤΕΡΟΥ | Y56: 480 | Z56: Η | AD56: ΜΕΛΛΙΟΣ Α | AF56: Ε1S-16-q8/2 | AG56: 4 | AI56: 43133Ε2 5η (ΣΤ)294Sα12 | AJ56: 2018-02-02 | AK56: Ε2 5η (ΣΤ) | AL56: 294 | AM56: ΣΑ ΤΡΙΠΟΛΗΣ | AN56: S | AO56: α12 | AP56: 5 | AQ56: 3362
X57: ΑΟ ΜΥΤΙΛΗΝΗΣ | Y57: 371 | Z57: Θ | AD57: ΜΙΧΑΗΛΙΔΗΣ Σ | AF57: Ε1S-16-q32 | AG57: 4 | AI57: 43133Ε2 5η (ΣΤ)294Sκ12 | AJ57: 2018-02-02 | AK57: Ε2 5η (ΣΤ) | AL57: 294 | AM57: ΣΑ ΤΡΙΠΟΛΗΣ | AN57: S | AO57: κ12 | AP57: 9 | AQ57: 3363
X58: ΑΟ Ν ΣΜΥΡΝΗΣ ΜΙΛΩΝ | Y58: 419 | Z58: ΙΑ | AD58: ΜΟΥΡΒΑΤΗΣ Π | AF58: Ε1S-16-33_64 | AG58: 0 | AI58: 43133Ε2 5η (ΣΤ)294Sα16 | AJ58: 2018-02-02 | AK58: Ε2 5η (ΣΤ) | AL58: 294 | AM58: ΣΑ ΤΡΙΠΟΛΗΣ | AN58: S | AO58: α16 | AP58: 7 | AQ58: 3364
X59: ΑΟ ΝΕΟΥ ΦΑΛΗΡΟΥ | Y59: 490 | Z59: Θ | AD59: ΜΟΥΡΤΖΙΟΥ Ι | AF59: Ε1S-16-q | AG59: 0 | AI59: 43133Ε2 5η (ΣΤ)294Sκ16 | AJ59: 2018-02-02 | AK59: Ε2 5η (ΣΤ) | AL59: 294 | AM59: ΣΑ ΤΡΙΠΟΛΗΣ | AN59: S | AO59: κ16 | AP59: 11 | AQ59: 3365
X60: ΑΟ ΝΦ ΑΤΤΑΛΟΣ | Y60: 326 | Z60: Η | AD60: ΜΠΑΛΑΦΑΣ Σ | AF60: Ε1S-16-q64 | AG60: 0 | AI60: 43133Ε2 5η (ΣΤ)270Sα14 | AJ60: 2018-02-02 | AK60: Ε2 5η (ΣΤ) | AL60: 270 | AM60: ΑΡΚΑΔΙΚΟΣ ΟΑ ΑΤΛΑΣ | AN60: S | AO60: α14 | AP60: 6 | AQ60: 3366
X61: ΑΟ ΟΛΥΜΠΙΑΔΑ ΒΥΡΩΝΑ | Y61: 481 | Z61: Η | AD61: ΜΠΑΡΚΑΣ Α | AF61: Ε1S-16-q128 | AG61: 0 | AI61: 43133Ε2 5η (ΣΤ)270Sκ14 | AJ61: 2018-02-02 | AK61: Ε2 5η (ΣΤ) | AL61: 270 | AM61: ΑΡΚΑΔΙΚΟΣ ΟΑ ΑΤΛΑΣ | AN61: S | AO61: κ14 | AP61: 10 | AQ61: 3367
X62: ΑΟ ΟΡΕΣΤΙΑΔΑΣ | Y62: 103 | Z62: Α | AD62: ΜΠΑΡΜΠΟΠΟΥΛΟΣ Κ | AF62: Ε1S-16-q256 | AG62: 0 | AI62: 43133Ε2 5η (Ζ)305Sα12 | AJ62: 2018-02-02 | AK62: Ε2 5η (Ζ) | AL62: 305 | AM62: ΗΡΑΚΛΕΙΟ ΟΑΑ | AN62: S | AO62: α12 | AP62: 5 | AQ62: 3368
X63: ΑΟ Π ΦΑΛΗΡΟΥ | Y63: 420 | Z63: ΙΑ | AD63: ΜΠΑΤΣΙΟΣ Κ | AF63: Ε1S-16-wo | AG63: 0 | AI63: 43133Ε2 5η (Ζ)305Sκ12 | AJ63: 2018-02-02 | AK63: Ε2 5η (Ζ) | AL63: 305 | AM63: ΗΡΑΚΛΕΙΟ ΟΑΑ | AN63: S | AO63: κ12 | AP63: 9 | AQ63: 3369
X64: ΑΟ ΠΑΡΑΔΕΙΣΟΣ ΑΜΑΡΟΥΣΙΟΥ | Y64: 482 | Z64: Η | AD64: ΝΙΚΗΦΟΡΑΚΗΣ Σ | AF64: Ε1D-16-1st | AG64: 30 | AI64: 43133Ε2 5η (Ζ)305Sα14 | AJ64: 2018-02-02 | AK64: Ε2 5η (Ζ) | AL64: 305 | AM64: ΗΡΑΚΛΕΙΟ ΟΑΑ | AN64: S | AO64: α14 | AP64: 6 | AQ64: 3370
X65: ΑΟ ΠΑΡΓΑΣ | Y65: 468 | Z65: Δ | AD65: ΝΤΑΛΑΜΑΓΚΑ Β | AF65: Ε1D-16-2nd | AG65: 26 | AI65: 43133Ε2 5η (Ζ)305Sκ14 | AJ65: 2018-02-02 | AK65: Ε2 5η (Ζ) | AL65: 305 | AM65: ΗΡΑΚΛΕΙΟ ΟΑΑ | AN65: S | AO65: κ14 | AP65: 10 | AQ65: 3371
X66: ΑΟ ΠΕΥΚΗΣ TIE BREAK | Y66: 329 | Z66: Η | AD66: ΝΤΙΝΟΠΟΥΛΟΣ Π | AF66: Ε1D-16-3_4 | AG66: 16 | AI66: 43133Ε2 5η (Ζ)305Sα16 | AJ66: 2018-02-02 | AK66: Ε2 5η (Ζ) | AL66: 305 | AM66: ΗΡΑΚΛΕΙΟ ΟΑΑ | AN66: S | AO66: α16 | AP66: 7 | AQ66: 3372
X67: ΑΟ ΠΟΣΕΙΔΩΝ ΛΟΥΤΡΑΚΙΟΥ | Y67: 265 | Z67: ΣΤ | AD67: ΟΥΛΑΣΟΓΛΟΥ Ν | AF67: Ε1D-16-5_8 | AG67: 10 | AI67: =AJ67&AK67&AL67&AN67&AO67 -> 43133Ε2 5η (Ζ)305Sκ16 | AJ67: 2018-02-02 | AK67: Ε2 5η (Ζ) | AL67: 305 | AM67: ΗΡΑΚΛΕΙΟ ΟΑΑ | AN67: S | AO67: κ16 | AP67: 11 | AQ67: 3373
X68: ΑΟ ΣΙΚΥΩΝΟΣ ΚΙΑΤΟΥ | Y68: 266 | Z68: ΣΤ | AD68: ΟΥΝΑΝΙΔΟΥ Λ | AF68: Ε1D-16-9_16 | AG68: 8 | AI68: 43133Ε2 5η (Ζ)305Dα12 | AJ68: 2018-02-02 | AK68: Ε2 5η (Ζ) | AL68: 305 | AM68: ΗΡΑΚΛΕΙΟ ΟΑΑ | AN68: D | AO68: α12 | AP68: 13 | AQ68: 3403
X69: ΑΟ ΤΑΤΑΥΛΑ ΚΩΝΣΤ | Y69: 421 | Z69: ΙΑ | AD69: ΟΥΡΑΝΙΔΗΣ Φ | AF69: Ε1D-16-17_32 | AG69: 0 | AI69: 43133Ε2 5η (Ζ)305Dα14 | AJ69: 2018-02-02 | AK69: Ε2 5η (Ζ) | AL69: 305 | AM69: ΗΡΑΚΛΕΙΟ ΟΑΑ | AN69: D | AO69: α14 | AP69: 14 | AQ69: 3404
X70: ΑΟ ΤΑΤΟΪΟΥ | Y70: 330 | Z70: Η | AD70: ΠΑΛΑΙΣΤΗ Γ | AF70: Ε1D-16-wo | AG70: 0 | AI70: 43133Ε2 5η (Ζ)305Dα16 | AJ70: 2018-02-02 | AK70: Ε2 5η (Ζ) | AL70: 305 | AM70: ΗΡΑΚΛΕΙΟ ΟΑΑ | AN70: D | AO70: α16 | AP70: 15 | AQ70: 3405
X71: ΑΟ ΤΕΡΨΙΘΕΑΣ ΓΛΥΦΑΔΑΣ | Y71: 422 | Z71: ΙΑ | AD71: ΠΑΛΑΙΣΤΗ Ν | AF71: Ε1S-18-1st | AG71: 150 | AI71: 43133Ε2 5η (Ζ)305Dκ12 | AJ71: 2018-02-02 | AK71: Ε2 5η (Ζ) | AL71: 305 | AM71: ΗΡΑΚΛΕΙΟ ΟΑΑ | AN71: D | AO71: κ12 | AP71: 17 | AQ71: 3406
X72: ΑΟ ΦΙΛΙΠΠΟΣ ΠΟΛΥΔΡΟΣΟΥ | Y72: 331 | Z72: Η | AD72: ΠΑΛΑΙΣΤΗ Χ | AF72: Ε1S-18-2nd | AG72: 125 | AI72: 43133Ε2 5η (Ζ)305Dκ14 | AJ72: 2018-02-02 | AK72: Ε2 5η (Ζ) | AL72: 305 | AM72: ΗΡΑΚΛΕΙΟ ΟΑΑ | AN72: D | AO72: κ14 | AP72: 18 | AQ72: 3407
X73: ΑΟ ΦΟΥΡΕΣΙ ΓΛ ΝΕΡΩΝ | Y73: 483 | Z73: Η | AD73: ΠΑΝΤΕΛΙΔΗΣ Σ | AF73: Ε1S-18-3_4 | AG73: 75 | AI73: 43133Ε2 5η (Ζ)305Dκ16 | AJ73: 2018-02-02 | AK73: Ε2 5η (Ζ) | AL73: 305 | AM73: ΗΡΑΚΛΕΙΟ ΟΑΑ | AN73: D | AO73: κ16 | AP73: 19 | AQ73: 3408
X74: ΑΟ ΧΡΥΣΟΥΠΟΛΗΣ | Y74: 104 | Z74: Α | AD74: ΠΑΠΑΒΑΣΙΛΕΙΟΥ Χ | AF74: Ε1S-18-5_8 | AG74: 50 | AI74: 43133Ε2 5η (Ε)256Sα12 | AJ74: 2018-02-02 | AK74: Ε2 5η (Ε) | AL74: 256 | AM74: ΦΘΙΩΤΙΚΟΣ ΟΑ | AN74: S | AO74: α12 | AP74: 5 | AQ74: 3374
X75: ΑΟΑ ΑΙΓΑΛΕΩ 92 | Y75: 373 | Z75: Θ | AD75: ΠΑΠΑΝΙΚΟΛΑΟΥ Γ | AF75: Ε1S-18-9_16 | AG75: 37.5 | AI75: 43133Ε2 5η (Ε)256Sκ12 | AJ75: 2018-02-02 | AK75: Ε2 5η (Ε) | AL75: 256 | AM75: ΦΘΙΩΤΙΚΟΣ ΟΑ | AN75: S | AO75: κ12 | AP75: 9 | AQ75: 3375
X76: ΑΟΑ ΑΛΕΞΑΝΔΡΟΣ Β | Y76: 333 | Z76: Η | AD76: ΠΑΠΑΧΡΗΣΤΟΥ Δ | AF76: Ε1S-18-17_32 | AG76: 5 | AI76: 43133Ε2 5η (Ε)256Dα12 | AJ76: 2018-02-02 | AK76: Ε2 5η (Ε) | AL76: 256 | AM76: ΦΘΙΩΤΙΚΟΣ ΟΑ | AN76: D | AO76: α12 | AP76: 13 | AQ76: 3413
X77: ΑΟΑ ΑΜΠΕΛ ΜΕΝΕΜΕΝΗΣ | Y77: 128 | Z77: Β | AD77: ΠΑΠΠΑΣ Α | AF77: Ε1S-18-q8 | AG77: 10 | AI77: 43133Ε2 5η (Ε)256Dκ12 | AJ77: 2018-02-02 | AK77: Ε2 5η (Ε) | AL77: 256 | AM77: ΦΘΙΩΤΙΚΟΣ ΟΑ | AN77: D | AO77: κ12 | AP77: 17 | AQ77: 3414
X78: ΑΟΑ ΑΡΓΥΡΟΥΠΟΛΗΣ | Y78: 423 | Z78: ΙΑ | AD78: ΠΑΠΠΑΣ Π | AF78: Ε1S-18-q16 | AG78: 10 | AI78: 43133Ε2 5η (Ε)244Sα14 | AJ78: 2018-02-02 | AK78: Ε2 5η (Ε) | AL78: 244 | AM78: ΟΑ ΜΑΓΝΗΣΙΑΣ | AN78: S | AO78: α14 | AP78: 6 | AQ78: 3376
X79: ΑΟΑ ΑΣΤΕΡΑΣ ΘΕΣ | Y79: 129 | Z79: Β | AD79: ΠΑΤΡΙΚΙΟΣ Ν | AF79: Ε1S-18-q8/2 | AG79: 5 | AI79: 43133Ε2 5η (Ε)244Sκ14 | AJ79: 2018-02-02 | AK79: Ε2 5η (Ε) | AL79: 244 | AM79: ΟΑ ΜΑΓΝΗΣΙΑΣ | AN79: S | AO79: κ14 | AP79: 10 | AQ79: 3377
X80: ΑΟΑ ΑΤΤΙΚΟΣ ΗΛΙΟΣ | Y80: 334 | Z80: Η | AD80: ΠΑΤΣΟΥΡΑΚΟΥ Δ | AF80: Ε1S-18-q32 | AG80: 5 | AI80: 43133Ε2 5η (Ε)244Sα16 | AJ80: 2018-02-02 | AK80: Ε2 5η (Ε) | AL80: 244 | AM80: ΟΑ ΜΑΓΝΗΣΙΑΣ | AN80: S | AO80: α16 | AP80: 7 | AQ80: 3378
X81: ΑΟΑ ΔΗΜΟΥ ΕΛΕΥΘΕΡΩΝ | Y81: 105 | Z81: Α | AD81: ΠΕΡΝΑΓΚΙΔΗ Γ | AF81: Ε1S-18-33_64 | AG81: 0 | AI81: 43133Ε2 5η (Ε)244Sκ16 | AJ81: 2018-02-02 | AK81: Ε2 5η (Ε) | AL81: 244 | AM81: ΟΑ ΜΑΓΝΗΣΙΑΣ | AN81: S | AO81: κ16 | AP81: 11 | AQ81: 3379
X82: ΑΟΑ ΕΛΕΥΣΙΝΑΣ | Y82: 441 | Z82: Θ | AD82: ΠΟΝΤΙΔΑΣ Α | AF82: Ε1S-18-q | AG82: 0 | AI82: 43133Ε2 5η (Ε)244Dα14 | AJ82: 2018-02-02 | AK82: Ε2 5η (Ε) | AL82: 244 | AM82: ΟΑ ΜΑΓΝΗΣΙΑΣ | AN82: D | AO82: α14 | AP82: 14 | AQ82: 3409
X83: ΑΟΑ ΗΛΙΟΥΠΟΛΗΣ | Y83: 424 | Z83: ΙΑ | AD83: ΠΡΑΣΙΝΟΣ Β | AF83: Ε1S-18-q64 | AG83: 0 | AI83: 43133Ε2 5η (Ε)244Dα16 | AJ83: 2018-02-02 | AK83: Ε2 5η (Ε) | AL83: 244 | AM83: ΟΑ ΜΑΓΝΗΣΙΑΣ | AN83: D | AO83: α16 | AP83: 15 | AQ83: 3410
X84: ΑΟΑ ΚΑΒΑΛΑΣ | Y84: 106 | Z84: Α | AD84: ΠΡΙΤΣΚΑΣ Π | AF84: Ε1S-18-q128 | AG84: 0 | AI84: 43133Ε2 5η (Ε)244Dκ14 | AJ84: 2018-02-02 | AK84: Ε2 5η (Ε) | AL84: 244 | AM84: ΟΑ ΜΑΓΝΗΣΙΑΣ | AN84: D | AO84: κ14 | AP84: 18 | AQ84: 3411
X85: ΑΟΑ ΚΑΒΟΥΡΙΟΥ | Y85: 442 | Z85: ΙΑ | AD85: ΣΑΚΚΑΣ Β | AF85: Ε1S-18-q256 | AG85: 0 | AI85: 43133Ε2 5η (Ε)244Dκ16 | AJ85: 2018-02-02 | AK85: Ε2 5η (Ε) | AL85: 244 | AM85: ΟΑ ΜΑΓΝΗΣΙΑΣ | AN85: D | AO85: κ16 | AP85: 19 | AQ85: 3412
X86: ΑΟΑ ΚΑΙΣΑΡΙΑΝΗΣ | Y86: 390 | Z86: Θ | AD86: ΣΑΜΑΡΑ Ε | AF86: Ε1S-18-wo | AG86: 0 | AI86: 43120Ε3 3η (Γ)192Sα12 | AJ86: 2018-01-20 | AK86: Ε3 3η (Γ) | AL86: 192 | AM86: ΟΑ ΛΙΤΟΧΩΡΟΥ | AN86: S | AO86: α12 | AP86: 5 | AQ86: 3383
X87: ΑΟΑ ΚΑΣΤΟΡΙΑΣ | Y87: 463 | Z87: Γ | AD87: ΣΑΡΑΤΖΙΔΗΣ Δ | AF87: Ε1D-18-1st | AG87: 37.5 | AI87: 43120Ε3 3η (Γ)192Sκ12 | AJ87: 2018-01-20 | AK87: Ε3 3η (Γ) | AL87: 192 | AM87: ΟΑ ΛΙΤΟΧΩΡΟΥ | AN87: S | AO87: κ12 | AP87: 9 | AQ87: 3384
X88: ΑΟΑ ΚΑΤΕΡΙΝΗΣ | Y88: 171 | Z88: Γ | AD88: ΣΑΧΠΑΤΖΙΔΗΣ Γ | AF88: Ε1D-18-2nd | AG88: 32.5 | AI88: 43120Ε3 3η (Γ)171Sα16 | AJ88: 2018-01-20 | AK88: Ε3 3η (Γ) | AL88: 171 | AM88: ΑΟΑ ΚΑΤΕΡΙΝΗΣ | AN88: S | AO88: α16 | AP88: 7 | AQ88: 3385
X89: ΑΟΑ ΚΟΖΑΝΗΣ | Y89: 464 | Z89: Γ | AD89: ΣΙΑΠΑΤΗΣ Γ | AF89: Ε1D-18-3_4 | AG89: 20 | AI89: 43120Ε3 3η (Γ)171Sκ16 | AJ89: 2018-01-20 | AK89: Ε3 3η (Γ) | AL89: 171 | AM89: ΑΟΑ ΚΑΤΕΡΙΝΗΣ | AN89: S | AO89: κ16 | AP89: 11 | AQ89: 3386
X90: ΑΟΑ ΛΕ ΡΑΚΕΤ | Y90: 130 | Z90: Β | AD90: ΣΙΟΝΤΗ Η | AF90: Ε1D-18-5_8 | AG90: 12.5 | AI90: 43140Ε3 6η (Η)363Sα12 | AJ90: 2018-02-09 | AK90: Ε3 6η (Η) | AL90: 363 | AM90: ΣΑ ΡΑΦΗΝΑΣ | AN90: S | AO90: α12 | AP90: 5 | AQ90: 3387
X91: ΑΟΑ ΜΕΓΑΛΟΠΟΛΗΣ | Y91: 267 | Z91: ΣΤ | AD91: ΣΙΡΠΟΣ Π | AF91: Ε1D-18-9_16 | AG91: 10 | AI91: 43140Ε3 6η (Η)363Sκ12 | AJ91: 2018-02-09 | AK91: Ε3 6η (Η) | AL91: 363 | AM91: ΣΑ ΡΑΦΗΝΑΣ | AN91: S | AO91: κ12 | AP91: 9 | AQ91: 3388
X92: ΑΟΑ Ν ΠΕΡΑΜΟΥ ΤΙΤΑΝΕΣ | Y92: 107 | Z92: Α | AD92: ΣΚΟΥΡΤΙΑΣ Ε | AF92: Ε1D-18-wo | AG92: 0 | AI92: 43140Ε3 6η (Η)363Sα16 | AJ92: 2018-02-09 | AK92: Ε3 6η (Η) | AL92: 363 | AM92: ΣΑ ΡΑΦΗΝΑΣ | AN92: S | AO92: α16 | AP92: 7 | AQ92: 3389
X93: ΑΟΑ ΠΑΠΑΓΟΥ | Y93: 425 | Z93: ΙΑ | AD93: ΣΠΑΘΗΣ Μ | AF93: Ε1D-18-17_32 | AG93: 0 | AI93: 43140Ε3 6η (Η)363Sκ16 | AJ93: 2018-02-09 | AK93: Ε3 6η (Η) | AL93: 363 | AM93: ΣΑ ΡΑΦΗΝΑΣ | AN93: S | AO93: κ16 | AP93: 11 | AQ93: 3390
X94: ΑΟΑ ΠΑΤΡΩΝ | Y94: 268 | Z94: ΣΤ | AD94: ΣΤΑΜΑΤΙΑΔΗΣ Γ | AF94: Ε2S-12-1st | AG94: 15 | AI94: 43147Ε1 7η (ΙΑ)424Sα12 | AJ94: 2018-02-16 | AK94: Ε1 7η (ΙΑ) | AL94: 424 | AM94: ΑΟΑ ΗΛΙΟΥΠΟΛΗΣ | AN94: S | AO94: α12 | AP94: 5 | AQ94: 3429
X95: ΑΟΑ ΠΟΣΕΙΔΩΝ ΘΕΣ | Y95: 131 | Z95: Β | AD95: ΣΤΑΜΑΤΙΑΔΟΥ Ε | AF95: Ε2S-12-2nd | AG95: 12.5 | AI95: 43147Ε1 7η (ΙΑ)424Sκ12 | AJ95: 2018-02-16 | AK95: Ε1 7η (ΙΑ) | AL95: 424 | AM95: ΑΟΑ ΗΛΙΟΥΠΟΛΗΣ | AN95: S | AO95: κ12 | AP95: 9 | AQ95: 3430
X96: ΑΟΑ ΠΡΩΤΑΘΛ ΚΑΒΑΛΑΣ | Y96: 108 | Z96: Α | AD96: ΣΤΑΦΥΛΙΔΗΣ Α | AF96: Ε2S-12-3_4 | AG96: 7.5 | AI96: 43147Ε1 7η (ΙΑ)424Sα14 | AJ96: 2018-02-16 | AK96: Ε1 7η (ΙΑ) | AL96: 424 | AM96: ΑΟΑ ΗΛΙΟΥΠΟΛΗΣ | AN96: S | AO96: α14 | AP96: 6 | AQ96: 3431
X97: ΑΟΑ ΡΕΘΥΜΝΟ ΤΚ | Y97: 476 | Z97: Ζ | AD97: ΣΤΕΦΑΝΙΔΗΣ Γ | AF97: Ε2S-12-5_8 | AG97: 5 | AI97: 43147Ε1 7η (ΙΑ)424Sκ14 | AJ97: 2018-02-16 | AK97: Ε1 7η (ΙΑ) | AL97: 424 | AM97: ΑΟΑ ΗΛΙΟΥΠΟΛΗΣ | AN97: S | AO97: κ14 | AP97: 10 | AQ97: 3432
X98: ΑΟΑ ΣΤΑΥΡΟΥΠΟΛΗΣ ΙΦΙΤΟΣ | Y98: 132 | Z98: Β | AD98: ΣΤΟΛΗ Κ | AF98: Ε2S-12-9_16 | AG98: 4 | AI98: 43147Ε1 7η (ΙΑ)424Dα12 | AJ98: 2018-02-16 | AK98: Ε1 7η (ΙΑ) | AL98: 424 | AM98: ΑΟΑ ΗΛΙΟΥΠΟΛΗΣ | AN98: D | AO98: α12 | AP98: 13 | AQ98: 3433
X99: ΑΟΑ ΥΕΛΟΥ | Y99: 335 | Z99: Η | AD99: ΤΑΜΠΟΣΗ Τ | AF99: Ε2S-12-17_32 | AG99: 0.5 | AI99: 43147Ε1 7η (ΙΑ)424Dκ12 | AJ99: 2018-02-16 | AK99: Ε1 7η (ΙΑ) | AL99: 424 | AM99: ΑΟΑ ΗΛΙΟΥΠΟΛΗΣ | AN99: D | AO99: κ12 | AP99: 17 | AQ99: 3434
X100: ΑΟΑ ΦΙΛΟΘΕΗΣ | Y100: 336 | Z100: Η | AD100: ΤΑΡΑΜΟΝΛΗΣ Ι | AF100: Ε2S-12-q8 | AG100: 1 | AI100: 43147Ε1 7η (ΙΑ)424Dα14 | AJ100: 2018-02-16 | AK100: Ε1 7η (ΙΑ) | AL100: 424 | AM100: ΑΟΑ ΗΛΙΟΥΠΟΛΗΣ | AN100: D | AO100: α14 | AP100: 14 | AQ100: 3435
X101: ΑΟΑ Χ ΤΡΙΠΟΛΗΣ | Y101: 500 | Z101: ΣΤ | AD101: ΤΖΙΓΚΟΥΝΑΚΗΣ Κ | AF101: Ε2S-12-q16 | AG101: 1 | AI101: 43147Ε1 7η (ΙΑ)424Dκ14 | AJ101: 2018-02-16 | AK101: Ε1 7η (ΙΑ) | AL101: 424 | AM101: ΑΟΑ ΗΛΙΟΥΠΟΛΗΣ | AN101: D | AO101: κ14 | AP101: 18 | AQ101: 3436
X102: ΑΟΑ ΧΑΪΔΑΡΙΟΥ | Y102: 374 | Z102: Θ | AD102: ΤΖΟΒΑΡΑΣ Ν | AF102: Ε2S-12-q8/2 | AG102: 0.5 | AI102: 43147Ε1 7η (ΙΑ)435Sα16 | AJ102: 2018-02-16 | AK102: Ε1 7η (ΙΑ) | AL102: 435 | AM102: ΟΑ ΓΛΥΦΑΔΑΣ | AN102: S | AO102: α16 | AP102: 7 | AQ102: 3437
X103: ΑΠΜΣ ΑΣΚΗΣΗ ΗΡΑΚΛΕΙΟΥ | Y103: 302 | Z103: Ζ | AD103: ΤΟΚΑΤΛΙΔΗΣ Χ | AF103: Ε2S-12-q32 | AG103: 0.5 | AI103: 43147Ε1 7η (ΙΑ)435Sκ16 | AJ103: 2018-02-16 | AK103: Ε1 7η (ΙΑ) | AL103: 435 | AM103: ΟΑ ΓΛΥΦΑΔΑΣ | AN103: S | AO103: κ16 | AP103: 11 | AQ103: 3438
X104: ΑΠΟ ΣΑΝΗ | Y104: 337 | Z104: Η | AD104: ΤΟΥΤΟΥΚΤΣΗΣ Ε | AF104: Ε2S-12-33_64 | AG104: 0 | AI104: 43147Ε1 7η (ΙΑ)435Sα18 | AJ104: 2018-02-16 | AK104: Ε1 7η (ΙΑ) | AL104: 435 | AM104: ΟΑ ΓΛΥΦΑΔΑΣ | AN104: S | AO104: α18 | AP104: 8 | AQ104: 3439
X105: ΑΡΚΑΔΙΚΟΣ ΟΑ ΑΤΛΑΣ | Y105: 270 | Z105: ΣΤ | AD105: ΤΡΙΚΚΑ-ΨΩΜΑ Δ | AF105: Ε2S-12-q | AG105: 0 | AI105: 43147Ε1 7η (ΙΑ)435Sκ18 | AJ105: 2018-02-16 | AK105: Ε1 7η (ΙΑ) | AL105: 435 | AM105: ΟΑ ΓΛΥΦΑΔΑΣ | AN105: S | AO105: κ18 | AP105: 12 | AQ105: 3440
X106: ΑΣ ΑΘΛΟΠΑΙΔΕΙΑ ΝΑΞΟΥ | Y106: 509 | Z106: Η | AD106: ΤΣΑΓΛΙΩΤΗΣ Ε | AF106: Ε2S-12-q64 | AG106: 0 | AI106: 43147Ε1 7η (ΙΑ)435Dα16 | AJ106: 2018-02-16 | AK106: Ε1 7η (ΙΑ) | AL106: 435 | AM106: ΟΑ ΓΛΥΦΑΔΑΣ | AN106: D | AO106: α16 | AP106: 15 | AQ106: 3441
X107: ΑΣ ΑΚΑΔ ΠΡΩΤΑΘΛ ΠΕΥΚΩΝ | Y107: 133 | Z107: Β | AD107: ΤΣΑΡΚΝΙΑΣ Π | AF107: Ε2S-12-q128 | AG107: 0 | AI107: 43147Ε1 7η (ΙΑ)435Dκ16 | AJ107: 2018-02-16 | AK107: Ε1 7η (ΙΑ) | AL107: 435 | AM107: ΟΑ ΓΛΥΦΑΔΑΣ | AN107: D | AO107: κ16 | AP107: 19 | AQ107: 3442
X108: ΑΣ ΑΚΡΟΠΟΛΙΣ | Y108: 338 | Z108: Η | AD108: ΤΣΑΡΚΝΙΑΣ Σ | AF108: Ε2S-12-q256 | AG108: 0 | AI108: 43147Ε1 7η (ΙΑ)435Dα18 | AJ108: 2018-02-16 | AK108: Ε1 7η (ΙΑ) | AL108: 435 | AM108: ΟΑ ΓΛΥΦΑΔΑΣ | AN108: D | AO108: α18 | AP108: 16 | AQ108: 3443
X109: ΑΣ ΑΝΤΙΣΦΑΙΡΙΣΗ κ ΖΩΗ | Y109: 444 | Z109: Ε | AD109: ΤΣΙΑΡΤΑΣ Β | AF109: Ε2S-12-wo | AG109: 0 | AI109: 43147Ε1 7η (ΙΑ)435Dκ18 | AJ109: 2018-02-16 | AK109: Ε1 7η (ΙΑ) | AL109: 435 | AM109: ΟΑ ΓΛΥΦΑΔΑΣ | AN109: D | AO109: κ18 | AP109: 20 | AQ109: 3444
X110: ΑΣ ΑΠΟΛΛΩΝ ΚΑΛΥΜΝΟΥ | Y110: 375 | Z110: Θ | AD110: ΤΣΟΥΛΦΑ Α | AF110: Ε2D-12-1st | AG110: 4 | AI110: 43147Ε4 7η (ΙΑ)439Sα12 | AJ110: 2018-02-16 | AK110: Ε4 7η (ΙΑ) | AL110: 439 | AM110: ΟΑ ΧΟΛΑΡΓΟΥ | AN110: S | AO110: α12 | AP110: 5 | AQ110: 3445
X111: ΑΣ ΑΣΤΕΡΑΣ ΠΕΝΤΕΛΙΚΟΥ | Y111: 484 | Z111: Η | AD111: ΦΟΝΔΟΥΛΑΚΟΣ Μ | AF111: Ε2D-12-2nd | AG111: 3 | AI111: 43147Ε4 7η (ΙΑ)439Sκ12 | AJ111: 2018-02-16 | AK111: Ε4 7η (ΙΑ) | AL111: 439 | AM111: ΟΑ ΧΟΛΑΡΓΟΥ | AN111: S | AO111: κ12 | AP111: 9 | AQ111: 3446
X112: ΑΣ ΒΑ ΚΥΝΟΥΡΙΑΣ ΑΙΟΛΟΣ | Y112: 271 | Z112: ΣΤ | AD112: ΧΑΝΤΖΗΣ Δ | AF112: Ε2D-12-3_4 | AG112: 2 | AI112: 43147Ε4 7η (ΙΑ)439Sα14 | AJ112: 2018-02-16 | AK112: Ε4 7η (ΙΑ) | AL112: 439 | AM112: ΟΑ ΧΟΛΑΡΓΟΥ | AN112: S | AO112: α14 | AP112: 6 | AQ112: 3449
X113: ΑΣ ΒΕΡΟΙΑΣ ΗΜΑΘΙΩΝ | Y113: 173 | Z113: Γ | AD113: ΧΑΡΜΑΝΑΣ Α | AF113: Ε2D-12-5_8 | AG113: 1.5 | AI113: 43147Ε4 7η (ΙΑ)439Sκ14 | AJ113: 2018-02-16 | AK113: Ε4 7η (ΙΑ) | AL113: 439 | AM113: ΟΑ ΧΟΛΑΡΓΟΥ | AN113: S | AO113: κ14 | AP113: 10 | AQ113: 3450
X114: ΑΣ Δ ΚΟΛΛΕΓΙΟΥ ICBS 2009 | Y114: 134 | Z114: Β | AD114: ΧΑΤΖΗΜΕΝΤΩΡ Α | AF114: Ε2D-12-9_16 | AG114: 1 | AI114: 43147Ε4 7η (ΙΑ)424Sα16 | AJ114: 2018-02-16 | AK114: Ε4 7η (ΙΑ) | AL114: 424 | AM114: ΑΟΑ ΗΛΙΟΥΠΟΛΗΣ | AN114: S | AO114: α16 | AP114: 7 | AQ114: 3447
X115: ΑΣ Η ΠΑΡΝΗΘΑ | Y115: 376 | Z115: Θ | AD115: ΧΡΙΣΤΟΠΟΥΛΟΣ Χ | AF115: Ε2D-12-17_32 | AG115: 0 | AI115: 43147Ε4 7η (ΙΑ)424Sκ16 | AJ115: 2018-02-16 | AK115: Ε4 7η (ΙΑ) | AL115: 424 | AM115: ΑΟΑ ΗΛΙΟΥΠΟΛΗΣ | AN115: S | AO115: κ16 | AP115: 11 | AQ115: 3448
X116: ΑΣ ΚΑΡΠΕΝΗΣΙ ΤΕΝΙΣ ΚΛΑΜΠ | Y116: 224 | Z116: Ε | AD116: ΧΡΟΝΗ Ο | AF116: Ε2D-12-wo | AG116: 0 | AI116: 43161Ε3 9η (Θ)400Sα12 | AJ116: 2018-03-02 | AK116: Ε3 9η (Θ) | AL116: 400 | AM116: ΟΑ ΧΑΛΚΙΔΑΣ | AN116: S | AO116: α12 | AP116: 5 | AQ116: 3451
X117: ΑΣ ΚΟΛΛΕΓΙΟΥ ΝΤΕΡΗ | Y117: 340 | Z117: Η | AF117: Ε2S-14-1st | AG117: 30 | AI117: 43161Ε3 9η (Θ)400Sκ12 | AJ117: 2018-03-02 | AK117: Ε3 9η (Θ) | AL117: 400 | AM117: ΟΑ ΧΑΛΚΙΔΑΣ | AN117: S | AO117: κ12 | AP117: 9 | AQ117: 3452
X118: ΑΣ ΜΑΧΗΤΕΣ ΠΕΥΚΩΝ | Y118: 135 | Z118: Β | AF118: Ε2S-14-2nd | AG118: 25 | AI118: 43161Ε3 9η (Θ)400Sα14 | AJ118: 2018-03-02 | AK118: Ε3 9η (Θ) | AL118: 400 | AM118: ΟΑ ΧΑΛΚΙΔΑΣ | AN118: S | AO118: α14 | AP118: 6 | AQ118: 3453
X119: ΑΣ Ν ΒΟΥΤΖΑ ΠΡΟΟΔΟΣ | Y119: 341 | Z119: Η | AF119: Ε2S-14-3_4 | AG119: 15 | AI119: 43161Ε3 9η (Θ)400Sκ14 | AJ119: 2018-03-02 | AK119: Ε3 9η (Θ) | AL119: 400 | AM119: ΟΑ ΧΑΛΚΙΔΑΣ | AN119: S | AO119: κ14 | AP119: 10 | AQ119: 3454
X120: ΑΣ ΝΗΡΕΑΣ ΒΕΡΟΙΑΣ | Y120: 174 | Z120: Γ | AF120: Ε2S-14-5_8 | AG120: 10 | AI120: 43161Ε3 9η (Θ)400Sα16 | AJ120: 2018-03-02 | AK120: Ε3 9η (Θ) | AL120: 400 | AM120: ΟΑ ΧΑΛΚΙΔΑΣ | AN120: S | AO120: α16 | AP120: 7 | AQ120: 3455
X121: ΑΣ ΝΙΚΗ ΑΓ ΔΗΜΗΤΡΙΟΥ | Y121: 507 | Z121: ΙΑ | AF121: Ε2S-14-9_16 | AG121: 7.5 | AI121: 43161Ε3 9η (Θ)400Sκ16 | AJ121: 2018-03-02 | AK121: Ε3 9η (Θ) | AL121: 400 | AM121: ΟΑ ΧΑΛΚΙΔΑΣ | AN121: S | AO121: κ16 | AP121: 11 | AQ121: 3456
X122: ΑΣ ΟΛΥΜΠ ΧΩΡΙΟΥ Ο ΦΟΙΒΟΣ | Y122: 377 | Z122: Θ | AF122: Ε2S-14-17_32 | AG122: 1 | AI122: 43155Ε3 8η (Γ)195Sα12 | AJ122: 2018-02-24 | AK122: Ε3 8η (Γ) | AL122: 195 | AM122: ΟΑ ΠΤΟΛΕΜΑΪΔΑΣ | AN122: S | AO122: α12 | AP122: 5 | AQ122: 3461
X123: ΑΣ ΟΡΦΕΑΣ ΛΑΡΙΣΑΣ | Y123: 225 | Z123: Ε | AF123: Ε2S-14-q8 | AG123: 2 | AI123: 43155Ε3 8η (Γ)195Sκ12 | AJ123: 2018-02-24 | AK123: Ε3 8η (Γ) | AL123: 195 | AM123: ΟΑ ΠΤΟΛΕΜΑΪΔΑΣ | AN123: S | AO123: κ12 | AP123: 9 | AQ123: 3462
X124: ΑΣ ΠΑΝΟΡΑΜΑ | Y124: 136 | Z124: Β | AF124: Ε2S-14-q16 | AG124: 2 | AI124: 43155Ε3 8η (Γ)195Sα16 | AJ124: 2018-02-24 | AK124: Ε3 8η (Γ) | AL124: 195 | AM124: ΟΑ ΠΤΟΛΕΜΑΪΔΑΣ | AN124: S | AO124: α16 | AP124: 7 | AQ124: 3463
X125: ΑΣ ΠΑΠΑΓΟΥ | Y125: 498 | Z125: ΙΑ | AF125: Ε2S-14-q8/2 | AG125: 1 | AI125: 43155Ε3 8η (Γ)195Sκ16 | AJ125: 2018-02-24 | AK125: Ε3 8η (Γ) | AL125: 195 | AM125: ΟΑ ΠΤΟΛΕΜΑΪΔΑΣ | AN125: S | AO125: κ16 | AP125: 11 | AQ125: 3464
X126: ΑΣ ΠΕΝΤΕΛΗΣ ΑΣΤΕΡΑΣ | Y126: 445 | Z126: Η | AF126: Ε2S-14-q32 | AG126: 1 | AI126: 43155Ε3 8η (Α)112Sα12 | AJ126: 2018-02-24 | AK126: Ε3 8η (Α) | AL126: 112 | AM126: ΟΑ ΑΛΕΞΑΝΔΡΟΥΠΟΛΗΣ | AN126: S | AO126: α12 | AP126: 5 | AQ126: 3465
X127: ΑΣ ΠΕΡΑ | Y127: 427 | Z127: ΙΑ | AF127: Ε2S-14-33_64 | AG127: 0 | AI127: 43155Ε3 8η (Α)112Sκ12 | AJ127: 2018-02-24 | AK127: Ε3 8η (Α) | AL127: 112 | AM127: ΟΑ ΑΛΕΞΑΝΔΡΟΥΠΟΛΗΣ | AN127: S | AO127: κ12 | AP127: 9 | AQ127: 3466
X128: ΑΣ ΠΙΕΡΙΑ ΤΕΝΙΣ | Y128: 465 | Z128: Γ | AF128: Ε2S-14-q | AG128: 0 | AI128: 43155Ε3 8η (Α)112Sα16 | AJ128: 2018-02-24 | AK128: Ε3 8η (Α) | AL128: 112 | AM128: ΟΑ ΑΛΕΞΑΝΔΡΟΥΠΟΛΗΣ | AN128: S | AO128: α16 | AP128: 7 | AQ128: 3467
X129: ΑΣ ΣΠΑΡΤΑΚΟΣ ΓΛΥΦΑΔΑΣ | Y129: 428 | Z129: ΙΑ | AF129: Ε2S-14-q64 | AG129: 0 | AI129: 43155Ε3 8η (Α)112Sκ16 | AJ129: 2018-02-24 | AK129: Ε3 8η (Α) | AL129: 112 | AM129: ΟΑ ΑΛΕΞΑΝΔΡΟΥΠΟΛΗΣ | AN129: S | AO129: κ16 | AP129: 11 | AQ129: 3468
X130: ΑΣ ΤΕΝΙΣ ΚΛΑΜΠ ΚΟΖΑΝΗΣ | Y130: 176 | Z130: Γ | AF130: Ε2S-14-q128 | AG130: 0 | AI130: 43154Ε3 8η (ΙΑ)425Sα12 | AJ130: 2018-02-23 | AK130: Ε3 8η (ΙΑ) | AL130: 425 | AM130: ΑΟΑ ΠΑΠΑΓΟΥ | AN130: S | AO130: α12 | AP130: 5 | AQ130: 3469
X131: ΑΣ ΦΛΟΓΑ ΑΘΗΝΩΝ | Y131: 342 | Z131: Η | AF131: Ε2S-14-q256 | AG131: 0 | AI131: =AJ131&AK131&AL131&AN131&AO131 -> 43154Ε3 8η (ΙΑ)425Sκ12 | AJ131: 2018-02-23 | AK131: Ε3 8η (ΙΑ) | AL131: 425 | AM131: ΑΟΑ ΠΑΠΑΓΟΥ | AN131: S | AO131: κ12 | AP131: 9 | AQ131: 3470
X132: ΑΣ ΦΠ ΑΝΑΠΛΑΣΗΣ ΦΕΡΕΝΙΚΟΣ | Y132: 343 | Z132: Η | AF132: Ε2S-14-wo | AG132: 0 | AI132: 43154Ε3 8η (ΙΑ)425Sα14 | AJ132: 2018-02-23 | AK132: Ε3 8η (ΙΑ) | AL132: 425 | AM132: ΑΟΑ ΠΑΠΑΓΟΥ | AN132: S | AO132: α14 | AP132: 6 | AQ132: 3471
X133: ΑΣΑ ΑΓΡΙΝΙΟΥ | Y133: 209 | Z133: Δ | AF133: Ε2D-14-1st | AG133: 8 | AI133: 43154Ε3 8η (ΙΑ)425Sκ14 | AJ133: 2018-02-23 | AK133: Ε3 8η (ΙΑ) | AL133: 425 | AM133: ΑΟΑ ΠΑΠΑΓΟΥ | AN133: S | AO133: κ14 | AP133: 10 | AQ133: 3472
X134: ΑΣΑ ΓΡΕΒΕΝΩΝ | Y134: 177 | Z134: Γ | AF134: Ε2D-14-2nd | AG134: 6 | AI134: 43154Ε3 8η (ΙΑ)425Sα16 | AJ134: 2018-02-23 | AK134: Ε3 8η (ΙΑ) | AL134: 425 | AM134: ΑΟΑ ΠΑΠΑΓΟΥ | AN134: S | AO134: α16 | AP134: 7 | AQ134: 3473
X135: ΑΣΑ ΕΛΠΙΔΑ ΣΟΥΦΛΙΟΥ | Y135: 443 | Z135: Α | AF135: Ε2D-14-3_4 | AG135: 4 | AI135: 43154Ε3 8η (ΙΑ)425Sκ16 | AJ135: 2018-02-23 | AK135: Ε3 8η (ΙΑ) | AL135: 425 | AM135: ΑΟΑ ΠΑΠΑΓΟΥ | AN135: S | AO135: κ16 | AP135: 11 | AQ135: 3474
X136: ΑΣΑ ΖΕΦΥΡΟΣ | Y136: 178 | Z136: Γ | AF136: Ε2D-14-5_8 | AG136: 3 | AI136: 43155Ε3 8η (Δ)204Sα12 | AJ136: 2018-02-24 | AK136: Ε3 8η (Δ) | AL136: 204 | AM136: ΑΓΟ ΦΙΛΙΠΠΙΑΔΑΣ | AN136: S | AO136: α12 | AP136: 5 | AQ136: 3475
X137: ΑΣΑ ΘΕΣΣΑΛΟΝΙΚΗΣ | Y137: 165 | Z137: Β | AF137: Ε2D-14-9_16 | AG137: 2 | AI137: 43155Ε3 8η (Δ)204Sκ12 | AJ137: 2018-02-24 | AK137: Ε3 8η (Δ) | AL137: 204 | AM137: ΑΓΟ ΦΙΛΙΠΠΙΑΔΑΣ | AN137: S | AO137: κ12 | AP137: 9 | AQ137: 3476
X138: ΑΣΑ ΛΑΡΙΣΑΣ | Y138: 226 | Z138: Ε | AF138: Ε2D-14-17_32 | AG138: 0 | AI138: 43155Ε3 8η (Δ)204Sα16 | AJ138: 2018-02-24 | AK138: Ε3 8η (Δ) | AL138: 204 | AM138: ΑΓΟ ΦΙΛΙΠΠΙΑΔΑΣ | AN138: S | AO138: α16 | AP138: 7 | AQ138: 3477
X139: ΑΣΑ ΜΑΥΡΟΧΩΡΙΟΥ ΚΑΣΤΟΡΙΑΣ | Y139: 179 | Z139: Γ | AF139: Ε2D-14-wo | AG139: 0 | AI139: 43155Ε3 8η (Δ)204Sκ16 | AJ139: 2018-02-24 | AK139: Ε3 8η (Δ) | AL139: 204 | AM139: ΑΓΟ ΦΙΛΙΠΠΙΑΔΑΣ | AN139: S | AO139: κ16 | AP139: 11 | AQ139: 3478
X140: ΑΣΑ ΜΥΤΙΛΗΝΗΣ | Y140: 491 | Z140: Θ | AF140: Ε2S-16-1st | AG140: 60 | AI140: 43155Ε3 8η (Ζ)307Sα12 | AJ140: 2018-02-24 | AK140: Ε3 8η (Ζ) | AL140: 307 | AM140: ΟΑ ΡΕΘΥΜΝΟΥ | AN140: S | AO140: α12 | AP140: 5 | AQ140: 3479
X141: ΑΣΑ ΠΑΜΒΩΤΙΣ ΙΩΑΝΝΙΝΩΝ | Y141: 210 | Z141: Δ | AF141: Ε2S-16-2nd | AG141: 50 | AI141: 43155Ε3 8η (Ζ)307Sκ12 | AJ141: 2018-02-24 | AK141: Ε3 8η (Ζ) | AL141: 307 | AM141: ΟΑ ΡΕΘΥΜΝΟΥ | AN141: S | AO141: κ12 | AP141: 9 | AQ141: 3480
X142: ΑΣΑ ΠΑΝΟΡΑΜΑΤΟΣ ΠΥΛΑΙΑΣ | Y142: 137 | Z142: Β | AF142: Ε2S-16-3_4 | AG142: 30 | AI142: 43155Ε3 8η (Ζ)307Sα16 | AJ142: 2018-02-24 | AK142: Ε3 8η (Ζ) | AL142: 307 | AM142: ΟΑ ΡΕΘΥΜΝΟΥ | AN142: S | AO142: α16 | AP142: 7 | AQ142: 3481
X143: ΑΣΑ ΤΡΙΚΑΛΩΝ | Y143: 508 | Z143: Ε | AF143: Ε2S-16-5_8 | AG143: 20 | AI143: 43155Ε3 8η (Ζ)307Sκ16 | AJ143: 2018-02-24 | AK143: Ε3 8η (Ζ) | AL143: 307 | AM143: ΟΑ ΡΕΘΥΜΝΟΥ | AN143: S | AO143: κ16 | AP143: 11 | AQ143: 3482
X144: ΑΣΑ ΩΡΩΠΟΥ | Y144: 344 | Z144: Η | AF144: Ε2S-16-9_16 | AG144: 16 | AI144: 43162Ε3 9η (Ζ)307Sα14 | AJ144: 2018-03-03 | AK144: Ε3 9η (Ζ) | AL144: 307 | AM144: ΟΑ ΡΕΘΥΜΝΟΥ | AN144: S | AO144: α14 | AP144: 6 | AQ144: 3483
X145: ΑΣΕ ΘΗΣΕΑΣ ΑΓ ΔΗΜΗΤΡΙΟΥ | Y145: 417 | Z145: ΙΑ | AF145: Ε2S-16-17_32 | AG145: 2 | AI145: 43162Ε3 9η (Ζ)307Sκ14 | AJ145: 2018-03-03 | AK145: Ε3 9η (Ζ) | AL145: 307 | AM145: ΟΑ ΡΕΘΥΜΝΟΥ | AN145: S | AO145: κ14 | AP145: 10 | AQ145: 3484
X146: ΑΤ ΧΟΛΑΡΓΟΥ | Y146: 429 | Z146: ΙΑ | AF146: Ε2S-16-q8 | AG146: 4 | AI146: 43162Ε3 9η (Γ)185Sα14 | AJ146: 2018-03-03 | AK146: Ε3 9η (Γ) | AL146: 185 | AM146: ΟΑ ΑΡΙΔΑΙΑΣ | AN146: S | AO146: α14 | AP146: 6 | AQ146: 3485
X147: ΑΧΑΪΚΟΣ ΟΑ | Y147: 502 | Z147: ΣΤ | AF147: Ε2S-16-q16 | AG147: 4 | AI147: 43162Ε3 9η (Γ)185Sκ14 | AJ147: 2018-03-03 | AK147: Ε3 9η (Γ) | AL147: 185 | AM147: ΟΑ ΑΡΙΔΑΙΑΣ | AN147: S | AO147: κ14 | AP147: 10 | AQ147: 3486
X148: ΑΨΛ ΑΓ ΓΕΩΡΓΙΟΥ ΗΣΙΟΔΟΣ | Y148: 227 | Z148: Ε | AF148: Ε2S-16-q8/2 | AG148: 2 | AI148: 43155Ε3 8η (ΣΤ)286Sα14 | AJ148: 2018-02-24 | AK148: Ε3 8η (ΣΤ) | AL148: 286 | AM148: ΟΑ ΚΟΡΙΝΘΟΥ | AN148: S | AO148: α14 | AP148: 6 | AQ148: 3487
X149: ΑΨΛ ΜΕΔΕΩΝ | Y149: 228 | Z149: Ε | AF149: Ε2S-16-q32 | AG149: 2 | AI149: 43155Ε3 8η (ΣΤ)286Sκ14 | AJ149: 2018-02-24 | AK149: Ε3 8η (ΣΤ) | AL149: 286 | AM149: ΟΑ ΚΟΡΙΝΘΟΥ | AN149: S | AO149: κ14 | AP149: 10 | AQ149: 3488
X150: ΓΑΕ ΤΡΙΦΥΛΙΑΣ ΚΥΠΑΡΙΣΣΕΥΣ | Y150: 273 | Z150: ΣΤ | AF150: Ε2S-16-33_64 | AG150: 0
X151: ΓΑΣ ΑΛΕΞΑΝΔΡΕΙΑ | Y151: 466 | Z151: Γ | AF151: Ε2S-16-q | AG151: 0
X152: ΓΑΣ ΓΟΥΡΝΩΝ | Y152: 303 | Z152: Ζ | AF152: Ε2S-16-q64 | AG152: 0
X153: ΓΑΣ ΘΥΕΛΛΑ ΦΕΡΩΝ | Y153: 109 | Z153: Α | AF153: Ε2S-16-q128 | AG153: 0
X154: ΓΑΣ ΚΑΡΑΤΕ ΕΡΜΗΣ | Y154: 181 | Z154: Γ | AF154: Ε2S-16-q256 | AG154: 0
X155: ΓΑΣ ΜΑΓΝΗΣΙΑΣ | Y155: 229 | Z155: Ε | AF155: Ε2S-16-wo | AG155: 0
X156: ΓΑΣ ΝΙΓΡΙΤΑΣ ΒΙΣΑΛΤΗΣ | Y156: 453 | Z156: Α | AF156: Ε2D-16-1st | AG156: 16
X157: ΓΕ ΑΡΓΟΛΙΔΑΣ | Y157: 503 | Z157: ΣΤ | AF157: Ε2D-16-2nd | AG157: 12
X158: ΓΕ ΑΤΑΛΑΝΤΗΣ | Y158: 471 | Z158: Ε | AF158: Ε2D-16-3_4 | AG158: 8
X159: ΓΕ ΛΑΡΙΣΑΣ | Y159: 472 | Z159: Ε | AF159: Ε2D-16-5_8 | AG159: 6
X160: ΓΕ ΠΡΕΒΕΖΑΣ | Y160: 211 | Z160: Δ | AF160: Ε2D-16-9_16 | AG160: 4
X161: ΓΟ ΠΕΡΙΣΤΕΡΙΟΥ ΠΑΛΑΣΚΑΣ | Y161: 379 | Z161: Θ | AF161: Ε2D-16-17_32 | AG161: 0
X162: ΓΣ ΑΜΦΙΑΛΗΣ ΦΕΙΔΙΠΠΙΔΗΣ | Y162: 492 | Z162: Θ | AF162: Ε2D-16-wo | AG162: 0
X163: ΓΣ ΑΠΟΛΛΩΝ ΠΥΡΓΟΥ | Y163: 504 | Z163: ΣΤ | AF163: Ε2S-18-1st | AG163: 0
X164: ΓΣ ΕΛΕΥΘ ΚΟΡΔ ΑΡΓΟΝΑΥΤΕΣ | Y164: 138 | Z164: Β | AF164: Ε2S-18-2nd | AG164: 0
X165: ΓΣ ΗΛΙΟΥΠΟΛΗΣ | Y165: 430 | Z165: ΙΑ | AF165: Ε2S-18-3_4 | AG165: 0
X166: ΓΣ ΙΤΕΑΣ | Y166: 232 | Z166: Ε | AF166: Ε2S-18-5_8 | AG166: 0
X167: ΓΣ ΚΗΦΙΣΙΑΣ | Y167: 345 | Z167: Η | AF167: Ε2S-18-9_16 | AG167: 0
X168: ΓΣ ΚΟΡΩΠΙΟΥ | Y168: 346 | Z168: Η | AF168: Ε2S-18-17_32 | AG168: 0
X169: ΓΣ ΛΙΒΥΚΟΣ ΙΕΡΑΠΕΤΡΑΣ | Y169: 304 | Z169: Ζ | AF169: Ε2S-18-q8 | AG169: 0
X170: ΓΣ Ν ΙΩΝΙΑΣ ΑΤΤΙΚΗΣ | Y170: 381 | Z170: Θ | AF170: Ε2S-18-q16 | AG170: 0
X171: ΓΣ ΣΑΛΑΜΙΝΑΣ | Y171: 493 | Z171: Θ | AF171: Ε2S-18-q8/2 | AG171: 0
X172: ΓΣ ΩΡΩΠΟΥ | Y172: 485 | Z172: Η | AF172: Ε2S-18-q32 | AG172: 0
X173: ΔΑΣ ΑΝΩ ΛΙΟΣΙΩΝ | Y173: 383 | Z173: Θ | AF173: Ε2S-18-33_64 | AG173: 0
X174: ΕΑΟ ΗΛΙΣ | Y174: 384 | Z174: Θ | AF174: Ε2S-18-q | AG174: 0
X175: ΕΑΣ ΛΑΚΚΑΣ ΣΥΜΠΟΛΙΤΕΙΑΣ | Y175: 276 | Z175: ΣΤ | AF175: Ε2S-18-q64 | AG175: 0
X176: ΕΑΣ ΟΛΥΜΠΙΑΔΑ | Y176: 139 | Z176: Β | AF176: Ε2S-18-q128 | AG176: 0
X177: ΕΑΣΑ ΘΕΣΣΑΛΙΚΟΣ | Y177: 473 | Z177: Ε | AF177: Ε2S-18-q256 | AG177: 0
X178: ΕΑΤΕΚ ΕΛΛ ΚΟΛΛΕΓΙΟΥ | Y178: 140 | Z178: Β | AF178: Ε2S-18-wo | AG178: 0
X179: ΕΑΦΩ ΝΤΕΚΡΟΛΙ | Y179: 459 | Z179: Β | AF179: Ε2D-18-1st | AG179: 0
X180: ΕΕΠΚΑ ΕΥΡΩΪΔΕΑ ΚΑΡΔΙΤΣΑΣ | Y180: 474 | Z180: Ε | AF180: Ε2D-18-2nd | AG180: 0
X181: ΕΘΝΙΚΟΣ ΠΑΝΟΡΑΜΑΤΟΣ 2005 | Y181: 460 | Z181: Β | AF181: Ε2D-18-3_4 | AG181: 0
X182: ΕΣΟ ΕΠΙΚΟΥΡΟΣ ΠΟΛΙΧΝΗΣ | Y182: 143 | Z182: Β | AF182: Ε2D-18-5_8 | AG182: 0
X183: ΕΦΤ ΑΙΟΛΙΚΗ | Y183: 144 | Z183: Β | AF183: Ε2D-18-9_16 | AG183: 0
X184: ΖΑΚΥΝΘΙΝΟΣ ΑΟ | Y184: 505 | Z184: ΣΤ | AF184: Ε2D-18-wo | AG184: 0
X185: ΖΑΚΥΝΘΙΝΟΣ ΑΟΑ | Y185: 278 | Z185: ΣΤ | AF185: Ε2D-18-17_32 | AG185: 0
X186: ΗΠΕΙΡΩΤΙΚΟΣ ΣΑ ΙΩΑΝΝΙΝΩΝ | Y186: 469 | Z186: Δ | AF186: Ε3S-12-1st | AG186: 9
X187: ΗΡΑΚΛΕΙΟ ΟΑΑ | Y187: 305 | Z187: Ζ | AF187: Ε3S-12-2nd | AG187: 7.5
X188: ΙΚΑΡΟΣ Ν ΣΜΥΡΝΗΣ | Y188: 446 | Z188: ΙΑ | AF188: Ε3S-12-3_4 | AG188: 4.5
X189: ΚΑ ΑΓΡΙΝΙΟΥ | Y189: 213 | Z189: Δ | AF189: Ε3S-12-5_8 | AG189: 3
X190: ΚΕΝΤΡΟ ΑΝΤΙΣΦ ΛΙΒΑΔΕΙΑΣ | Y190: 235 | Z190: Ε | AF190: Ε3S-12-9_16 | AG190: 2.4
X191: ΚΕΡΚΥΡΑΪΚΗ ΑΚΑΔ ΤΕΝΝΙΣ | Y191: 214 | Z191: Δ | AF191: Ε3S-12-17_32 | AG191: 1.5
X192: ΚΕΡΚΥΡΑΪΚΗ ΛΤ | Y192: 215 | Z192: Δ | AF192: Ε3S-12-33_64 | AG192: 0.5
X193: ΚΕΦΑΛΛΗΝΙΑΚΟΣ ΟΑ | Y193: 279 | Z193: ΣΤ | AF193: Ε3S-12-65_128 | AG193: 0
X194: Λ ΠΟΛΙΤΙΣΜΟΥ ΦΛΩΡΙΝΑΣ | Y194: 182 | Z194: Γ | AF194: Ε3S-12-q8 | AG194: 0
X195: ΛΑ ΚΟΜΟΤΗΝΗΣ | Y195: 454 | Z195: Α | AF195: Ε3S-12-q16 | AG195: 0
X196: ΛΑΡΙΣΑΪΚΟΣ ΟΑ | Y196: 236 | Z196: Ε | AF196: Ε3S-12-q32 | AG196: 0
X197: ΜΑΣ ΑΕΤΟΣ ΘΕΣ | Y197: 145 | Z197: Β | AF197: Ε3S-12-q64 | AG197: 0
X198: ΜΑΣ ΑΤΡΟΜΗΤΟΣ ΤΡΙΑΔΙΟΥ | Y198: 146 | Z198: Β | AF198: Ε3S-12-q128 | AG198: 0
X199: ΜΓΣ ΑΠΟΛΛΩΝ ΚΑΛΑΜΑΡΙΑΣ | Y199: 147 | Z199: Β | AF199: Ε3S-12-q256 | AG199: 0
X200: ΝΑΣΠ ΑΙΟΛΟΣ ΜΥΤΙΛΗΝΗΣ | Y200: 494 | Z200: Θ | AF200: Ε3S-12-wo | AG200: 0
... 309 more rows

Sheet matches (hidden)
A1: round | B1: W-ID | C1: winner | D1: L-ID | E1: looser | F1: score | H1: Player | I1: Position | K1: Set-up | N1: draw# | O1: organizer | P1: club | Q1: title | R1: category | S1: drawSize
A2: 16 | B2: =IF(OR(MD!$M$5=1,MD!$M$5=2), IF(MD!$M$5=1,MD!$I$5,MD!$I$6),"#") -> 26198 | C2: =TRIM(LEFT(VLOOKUP(B2,ALMD!$C$3:$D$18,2,FALSE),FIND(" ",VLOOKUP(B2,ALMD!$C$3:$D$18,2,FALSE),1)-1)) -> ΛΑΜΠΡΟΠΟΥΛΟΥ | D2: =IF(OR(MD!$M$5 =1,MD!$M$5 =2), IF(MD!$M$5 =2,MD!$I$5,MD!$I$6),"#") -> 40747 | E2: =TRIM(LEFT(VLOOKUP(D2,ALMD!$C$3:$D$18,2,FALSE),FIND(" ",VLOOKUP(D2,ALMD!$C$3:$D$18,2,FALSE),1)-1)) -> ΤΟΥΜΠΑΝΙΑΡΗ | F2: =MD!$O6 -> 40 40 | H2: =B16 -> 26198 | I2: 1st | K2: organizer: | L2: =Setup!$B$3 -> ΣΤ' ΕΝΩΣΗ | N2: =IF(COUNTIF(MD!$I:$I,B2)>0,MATCH(B2,MD!$I:$I,0)-4,"")&" "&IF(COUNTIF(MD!$I:$I,D2)>0,MATCH(D2,MD!$I:$I,0)-4,"") -> 1 2 | O2: =Setup!$B$3 -> ΣΤ' ΕΝΩΣΗ | P2: =TRIM(LEFT($L$4,10)) -> ΣΑ ΤΡΙΠΟΛΗ | Q2: =TRIM(LEFT($L$3,10)) -> Ε3 19η | R2: =SUBSTITUTE(SUBSTITUTE(TRIM($L$7),"Κ","g"),"Α","b") -> g14 | S2: 16
A3: 16 | B3: =IF(OR(MD!$M$7=1,MD!$M$7=2), IF(MD!$M$7=1,MD!$I$7,MD!$I$8),"#") -> 35659 | C3: =TRIM(LEFT(VLOOKUP(B3,ALMD!$C$3:$D$18,2,FALSE),FIND(" ",VLOOKUP(B3,ALMD!$C$3:$D$18,2,FALSE),1)-1)) -> ΜΑΚΡΥΓΕΩΡΓΟΥ | D3: =IF(OR(MD!$M$7 =1,MD!$M$7 =2), IF(MD!$M$7 =2,MD!$I$7,MD!$I$8),"#") -> 41973 | E3: =TRIM(LEFT(VLOOKUP(D3,ALMD!$C$3:$D$18,2,FALSE),FIND(" ",VLOOKUP(D3,ALMD!$C$3:$D$18,2,FALSE),1)-1)) -> ΣΑΚΚΕΛΑΡΟΠΟΥΛΟΥ | F3: =MD!$O8 -> 40 41 | H3: =D16 -> 37585 | I3: 2nd | K3: title: | L3: =Setup!$B$7 -> Ε3 19η | N3: =IF(COUNTIF(MD!$I:$I,B3)>0,MATCH(B3,MD!$I:$I,0)-4,"")&" "&IF(COUNTIF(MD!$I:$I,D3)>0,MATCH(D3,MD!$I:$I,0)-4,"") -> 4 3 | O3: =Setup!$B$3 -> ΣΤ' ΕΝΩΣΗ | P3: =TRIM(LEFT($L$4,10)) -> ΣΑ ΤΡΙΠΟΛΗ | Q3: =TRIM(LEFT($L$3,10)) -> Ε3 19η | R3: =SUBSTITUTE(SUBSTITUTE(TRIM($L$7),"Κ","g"),"Α","b") -> g14 | S3: 16
A4: 16 | B4: =IF(OR(MD!$M$9=1,MD!$M$9=2), IF(MD!$M$9=1,MD!$I$9,MD!$I$10),"#") -> 90169 | C4: =TRIM(LEFT(VLOOKUP(B4,ALMD!$C$3:$D$18,2,FALSE),FIND(" ",VLOOKUP(B4,ALMD!$C$3:$D$18,2,FALSE),1)-1)) -> ΑΣΕΝΟΒΑ | D4: =IF(OR(MD!$M$9 =1,MD!$M$9 =2), IF(MD!$M$9 =2,MD!$I$9,MD!$I$10),"#") -> 36781 | E4: =TRIM(LEFT(VLOOKUP(D4,ALMD!$C$3:$D$18,2,FALSE),FIND(" ",VLOOKUP(D4,ALMD!$C$3:$D$18,2,FALSE),1)-1)) -> ΚΟΚΚΙΝΟΥ | F4: =MD!$O10 -> 41 40 | H4: =D14 -> 90169 | I4: 3_4 | K4: club: | L4: =Setup!$B$4 -> ΣΑ ΤΡΙΠΟΛΗΣ | N4: =IF(COUNTIF(MD!$I:$I,B4)>0,MATCH(B4,MD!$I:$I,0)-4,"")&" "&IF(COUNTIF(MD!$I:$I,D4)>0,MATCH(D4,MD!$I:$I,0)-4,"") -> 5 6 | O4: =Setup!$B$3 -> ΣΤ' ΕΝΩΣΗ | P4: ΣΑ ΤΡΙΠΟΛΗ | Q4: Ε3 19η | R4: g14 | S4: 16
A5: 16 | B5: =IF(OR(MD!$M$11=1,MD!$M$11=2), IF(MD!$M$11=1,MD!$I$11,MD!$I$12),"#") -> 34396 | C5: =TRIM(LEFT(VLOOKUP(B5,ALMD!$C$3:$D$18,2,FALSE),FIND(" ",VLOOKUP(B5,ALMD!$C$3:$D$18,2,FALSE),1)-1)) -> ΜΗΤΡΟΠΟΥΛΟΥ | D5: =IF(OR(MD!$M$11=1,MD!$M$11=2), IF(MD!$M$11=2,MD!$I$11,MD!$I$12),"#") -> 38845 | E5: =TRIM(LEFT(VLOOKUP(D5,ALMD!$C$3:$D$18,2,FALSE),FIND(" ",VLOOKUP(D5,ALMD!$C$3:$D$18,2,FALSE),1)-1)) -> ΤΣΙΛΙΜΠΗ | F5: =MD!$O12 -> 41 53 | H5: =D15 -> 38948 | I5: 3_4 | K5: grade: | L5: =Setup!$B$5 -> Ε3 | N5: =IF(COUNTIF(MD!$I:$I,B5)>0,MATCH(B5,MD!$I:$I,0)-4,"")&" "&IF(COUNTIF(MD!$I:$I,D5)>0,MATCH(D5,MD!$I:$I,0)-4,"") -> 7 8 | O5: =Setup!$B$3 -> ΣΤ' ΕΝΩΣΗ | P5: ΣΑ ΤΡΙΠΟΛΗ | Q5: Ε3 19η | R5: g14 | S5: 16
A6: 16 | B6: =IF(OR(MD!$M$13=1,MD!$M$13=2), IF(MD!$M$13=1,MD!$I$13,MD!$I$14),"#") -> 38948 | C6: =TRIM(LEFT(VLOOKUP(B6,ALMD!$C$3:$D$18,2,FALSE),FIND(" ",VLOOKUP(B6,ALMD!$C$3:$D$18,2,FALSE),1)-1)) -> ΠΑΠΑΚΩΝΣΤΑΝΤΙΝΟΥ | D6: =IF(OR(MD!$M$13=1,MD!$M$13=2), IF(MD!$M$13=2,MD!$I$13,MD!$I$14),"#") -> 37337 | E6: =TRIM(LEFT(VLOOKUP(D6,ALMD!$C$3:$D$18,2,FALSE),FIND(" ",VLOOKUP(D6,ALMD!$C$3:$D$18,2,FALSE),1)-1)) -> ΔΕΛΗ | F6: =MD!$O14 -> 54(1) 40 | H6: =D10 -> 35659 | I6: 5_8 | K6: week: | L6: =Setup!B10 -> βδ.: 19η | N6: =IF(COUNTIF(MD!$I:$I,B6)>0,MATCH(B6,MD!$I:$I,0)-4,"")&" "&IF(COUNTIF(MD!$I:$I,D6)>0,MATCH(D6,MD!$I:$I,0)-4,"") -> 10 9 | O6: =Setup!$B$3 -> ΣΤ' ΕΝΩΣΗ | P6: ΣΑ ΤΡΙΠΟΛΗ | Q6: Ε3 19η | R6: g14 | S6: 16
A7: 16 | B7: =IF(OR(MD!$M$15=1,MD!$M$15=2), IF(MD!$M$15=1,MD!$I$15,MD!$I$16),"#") -> 38401 | C7: =TRIM(LEFT(VLOOKUP(B7,ALMD!$C$3:$D$18,2,FALSE),FIND(" ",VLOOKUP(B7,ALMD!$C$3:$D$18,2,FALSE),1)-1)) -> ΚΛΑΟΥΔΑΤΟΥ | D7: =IF(OR(MD!$M$15=1,MD!$M$15=2), IF(MD!$M$15=2,MD!$I$15,MD!$I$16),"#") -> 40755 | E7: =TRIM(LEFT(VLOOKUP(D7,ALMD!$C$3:$D$18,2,FALSE),FIND(" ",VLOOKUP(D7,ALMD!$C$3:$D$18,2,FALSE),1)-1)) -> ΣΤΟΚΑ | F7: =MD!$O16 -> 41 53 | H7: =D11 -> 34396 | I7: 5_8 | K7: category: | L7: =Setup!$B$6 -> Κ14 | N7: =IF(COUNTIF(MD!$I:$I,B7)>0,MATCH(B7,MD!$I:$I,0)-4,"")&" "&IF(COUNTIF(MD!$I:$I,D7)>0,MATCH(D7,MD!$I:$I,0)-4,"") -> 11 12 | O7: =Setup!$B$3 -> ΣΤ' ΕΝΩΣΗ | P7: ΣΑ ΤΡΙΠΟΛΗ | Q7: Ε3 19η | R7: g14 | S7: 16
A8: 16 | B8: =IF(OR(MD!$M$17=1,MD!$M$17=2), IF(MD!$M$17=1,MD!$I$17,MD!$I$18),"#") -> 40340 | C8: =TRIM(LEFT(VLOOKUP(B8,ALMD!$C$3:$D$18,2,FALSE),FIND(" ",VLOOKUP(B8,ALMD!$C$3:$D$18,2,FALSE),1)-1)) -> ΝΙΚΟΛΑΚΟΠΟΥΛΟΥ | D8: =IF(OR(MD!$M$17=1,MD!$M$17=2), IF(MD!$M$17=2,MD!$I$17,MD!$I$18),"#") -> 39327 | E8: =TRIM(LEFT(VLOOKUP(D8,ALMD!$C$3:$D$18,2,FALSE),FIND(" ",VLOOKUP(D8,ALMD!$C$3:$D$18,2,FALSE),1)-1)) -> ΜΠΟΥΖΟΥ | F8: =MD!$O18 -> 40 42 | H8: =D12 -> 38401 | I8: 5_8 | K8: period: | L8: =DAY(Setup!$B$8)&"/"&MONTH(Setup!$B$8)&"-"&DAY(Setup!$B$9)&"/"&MONTH(Setup!$B$9)&"/"&YEAR(Setup!$B$9) -> 12/5-13/5/2018 | N8: =IF(COUNTIF(MD!$I:$I,B8)>0,MATCH(B8,MD!$I:$I,0)-4,"")&" "&IF(COUNTIF(MD!$I:$I,D8)>0,MATCH(D8,MD!$I:$I,0)-4,"") -> 14 13 | O8: =Setup!$B$3 -> ΣΤ' ΕΝΩΣΗ | P8: ΣΑ ΤΡΙΠΟΛΗ | Q8: Ε3 19η | R8: g14 | S8: 16
A9: 16 | B9: =IF(OR(MD!$M$19=1,MD!$M$19=2), IF(MD!$M$19=1,MD!$I$19,MD!$I$20),"#") -> 37585 | C9: =TRIM(LEFT(VLOOKUP(B9,ALMD!$C$3:$D$18,2,FALSE),FIND(" ",VLOOKUP(B9,ALMD!$C$3:$D$18,2,FALSE),1)-1)) -> ΣΤΡΑΤΗ | D9: =IF(OR(MD!$M$19=1,MD!$M$19=2), IF(MD!$M$19=2,MD!$I$19,MD!$I$20),"#") -> 33668 | E9: =TRIM(LEFT(VLOOKUP(D9,ALMD!$C$3:$D$18,2,FALSE),FIND(" ",VLOOKUP(D9,ALMD!$C$3:$D$18,2,FALSE),1)-1)) -> ΚΑΛΤΕΖΙΩΤΗ | F9: =MD!$O20 -> 41 41 | H9: =D13 -> 40340 | I9: 5_8 | K9: filename: | L9: =MID(CELL("filename"), (FIND("[",CELL("filename"))+1), FIND("]",CELL("filename"))-FIND("[",CELL("filename"))-1) -> ε3 19η στ α14 s md.xlsm | N9: =IF(COUNTIF(MD!$I:$I,B9)>0,MATCH(B9,MD!$I:$I,0)-4,"")&" "&IF(COUNTIF(MD!$I:$I,D9)>0,MATCH(D9,MD!$I:$I,0)-4,"") -> 16 15 | O9: =Setup!$B$3 -> ΣΤ' ΕΝΩΣΗ | P9: ΣΑ ΤΡΙΠΟΛΗ | Q9: Ε3 19η | R9: g14 | S9: 16
A10: 8 | B10: =IF(OR(MD!$P$6=1,MD!$P$6=2), IF(MD!$P$6 =1,MD!$N$5,MD!$N$7),"#") -> 26198 | C10: =TRIM(LEFT(VLOOKUP(B10,ALMD!$C$3:$D$18,2,FALSE),FIND(" ",VLOOKUP(B10,ALMD!$C$3:$D$18,2,FALSE),1)-1)) -> ΛΑΜΠΡΟΠΟΥΛΟΥ | D10: =IF(OR(MD!$P$6 =1,MD!$P$6 =2), IF(MD!$P$6 =2,MD!$N$5,MD!$N$7),"#") -> 35659 | E10: =TRIM(LEFT(VLOOKUP(D10,ALMD!$C$3:$D$18,2,FALSE),FIND(" ",VLOOKUP(D10,ALMD!$C$3:$D$18,2,FALSE),1)-1)) -> ΜΑΚΡΥΓΕΩΡΓΟΥ | F10: =MD!$R7 -> 41 42 | H10: =D2 -> 40747 | I10: 9_16 | N10: =IF(COUNTIF(MD!$N:$N,B10)>0,MATCH(B10,MD!$N:$N,0)-4,"")&" "&IF(COUNTIF(MD!$N:$N,D10)>0,MATCH(D10,MD!$N:$N,0)-4,"") -> 1 3 | O10: =Setup!$B$3 -> ΣΤ' ΕΝΩΣΗ | P10: ΣΑ ΤΡΙΠΟΛΗ | Q10: Ε3 19η | R10: g14 | S10: 16
A11: 8 | B11: =IF(OR(MD!$P$10=1,MD!$P$10=2), IF(MD!$P$10=1,MD!$N$9,MD!$N$11),"#") -> 90169 | C11: =TRIM(LEFT(VLOOKUP(B11,ALMD!$C$3:$D$18,2,FALSE),FIND(" ",VLOOKUP(B11,ALMD!$C$3:$D$18,2,FALSE),1)-1)) -> ΑΣΕΝΟΒΑ | D11: =IF(OR(MD!$P$10=1,MD!$P$10=2), IF(MD!$P$10=2,MD!$N$9,MD!$N$11),"#") -> 34396 | E11: =TRIM(LEFT(VLOOKUP(D11,ALMD!$C$3:$D$18,2,FALSE),FIND(" ",VLOOKUP(D11,ALMD!$C$3:$D$18,2,FALSE),1)-1)) -> ΜΗΤΡΟΠΟΥΛΟΥ | F11: =MD!$R11 -> 41 42 | H11: 41973 | I11: 9_16 | N11: =IF(COUNTIF(MD!$N:$N,B11)>0,MATCH(B11,MD!$N:$N,0)-4,"")&" "&IF(COUNTIF(MD!$N:$N,D11)>0,MATCH(D11,MD!$N:$N,0)-4,"") -> 5 7 | O11: =Setup!$B$3 -> ΣΤ' ΕΝΩΣΗ | P11: ΣΑ ΤΡΙΠΟΛΗ | Q11: Ε3 19η | R11: g14 | S11: 16
A12: 8 | B12: =IF(OR(MD!$P$14=1,MD!$P$14=2), IF(MD!$P$14=1,MD!$N$13,MD!$N$15),"#") -> 38948 | C12: =TRIM(LEFT(VLOOKUP(B12,ALMD!$C$3:$D$18,2,FALSE),FIND(" ",VLOOKUP(B12,ALMD!$C$3:$D$18,2,FALSE),1)-1)) -> ΠΑΠΑΚΩΝΣΤΑΝΤΙΝΟΥ | D12: =IF(OR(MD!$P$14=1,MD!$P$14=2), IF(MD!$P$14=2,MD!$N$13,MD!$N$15),"#") -> 38401 | E12: =TRIM(LEFT(VLOOKUP(D12,ALMD!$C$3:$D$18,2,FALSE),FIND(" ",VLOOKUP(D12,ALMD!$C$3:$D$18,2,FALSE),1)-1)) -> ΚΛΑΟΥΔΑΤΟΥ | F12: =MD!$R15 -> 40 40 | H12: 36781 | I12: 9_16 | N12: =IF(COUNTIF(MD!$N:$N,B12)>0,MATCH(B12,MD!$N:$N,0)-4,"")&" "&IF(COUNTIF(MD!$N:$N,D12)>0,MATCH(D12,MD!$N:$N,0)-4,"") -> 9 11 | O12: =Setup!$B$3 -> ΣΤ' ΕΝΩΣΗ | P12: ΣΑ ΤΡΙΠΟΛΗ | Q12: Ε3 19η | R12: g14 | S12: 16
A13: 8 | B13: =IF(OR(MD!$P$18=1,MD!$P$18=2), IF(MD!$P$18=1,MD!$N$17,MD!$N$19),"#") -> 37585 | C13: =TRIM(LEFT(VLOOKUP(B13,ALMD!$C$3:$D$18,2,FALSE),FIND(" ",VLOOKUP(B13,ALMD!$C$3:$D$18,2,FALSE),1)-1)) -> ΣΤΡΑΤΗ | D13: =IF(OR(MD!$P$18=1,MD!$P$18=2), IF(MD!$P$18=2,MD!$N$17,MD!$N$19),"#") -> 40340 | E13: =TRIM(LEFT(VLOOKUP(D13,ALMD!$C$3:$D$18,2,FALSE),FIND(" ",VLOOKUP(D13,ALMD!$C$3:$D$18,2,FALSE),1)-1)) -> ΝΙΚΟΛΑΚΟΠΟΥΛΟΥ | F13: =MD!$R19 -> 40 40 | H13: 38845 | I13: 9_16 | N13: =IF(COUNTIF(MD!$N:$N,B13)>0,MATCH(B13,MD!$N:$N,0)-4,"")&" "&IF(COUNTIF(MD!$N:$N,D13)>0,MATCH(D13,MD!$N:$N,0)-4,"") -> 15 13 | O13: =Setup!$B$3 -> ΣΤ' ΕΝΩΣΗ | P13: ΣΑ ΤΡΙΠΟΛΗ | Q13: Ε3 19η | R13: g14 | S13: 16
A14: 4 | B14: =IF(OR(MD!$S$8=1,MD!$S$8=2), IF(MD!$S$8=1,MD!$Q$6,MD!$Q$10),"#") -> 26198 | C14: =TRIM(LEFT(VLOOKUP(B14,ALMD!$C$3:$D$18,2,FALSE),FIND(" ",VLOOKUP(B14,ALMD!$C$3:$D$18,2,FALSE),1)-1)) -> ΛΑΜΠΡΟΠΟΥΛΟΥ | D14: =IF(OR(MD!$S$8 =1,MD!$S$8 =2), IF(MD!$S$8 =2,MD!$Q$6,MD!$Q$10),"#") -> 90169 | E14: =TRIM(LEFT(VLOOKUP(D14,ALMD!$C$3:$D$18,2,FALSE),FIND(" ",VLOOKUP(D14,ALMD!$C$3:$D$18,2,FALSE),1)-1)) -> ΑΣΕΝΟΒΑ | F14: =MD!$U9 -> 61 61 | H14: 37337 | I14: 9_16 | N14: =IF(COUNTIF(MD!$Q:$Q,B14)>0,MATCH(B14,MD!$Q:$Q,0)-4,"")&" "&IF(COUNTIF(MD!$Q:$Q,D14)>0,MATCH(D14,MD!$Q:$Q,0)-4,"") -> 2 6 | O14: =Setup!$B$3 -> ΣΤ' ΕΝΩΣΗ | P14: ΣΑ ΤΡΙΠΟΛΗ | Q14: Ε3 19η | R14: g14 | S14: 16
A15: 4 | B15: =IF(OR(MD!$S$16=1,MD!$S$16=2), IF(MD!$S$16=1,MD!$Q$14,MD!$Q$18),"#") -> 37585 | C15: =TRIM(LEFT(VLOOKUP(B15,ALMD!$C$3:$D$18,2,FALSE),FIND(" ",VLOOKUP(B15,ALMD!$C$3:$D$18,2,FALSE),1)-1)) -> ΣΤΡΑΤΗ | D15: =IF(OR(MD!$S$16=1,MD!$S$16=2), IF(MD!$S$16=2,MD!$Q$14,MD!$Q$18),"#") -> 38948 | E15: =TRIM(LEFT(VLOOKUP(D15,ALMD!$C$3:$D$18,2,FALSE),FIND(" ",VLOOKUP(D15,ALMD!$C$3:$D$18,2,FALSE),1)-1)) -> ΠΑΠΑΚΩΝΣΤΑΝΤΙΝΟΥ | F15: =MD!$U17 -> 62 62 | H15: 40755 | I15: 9_16 | N15: =IF(COUNTIF(MD!$Q:$Q,B15)>0,MATCH(B15,MD!$Q:$Q,0)-4,"")&" "&IF(COUNTIF(MD!$Q:$Q,D15)>0,MATCH(D15,MD!$Q:$Q,0)-4,"") -> 14 10 | O15: =Setup!$B$3 -> ΣΤ' ΕΝΩΣΗ | P15: ΣΑ ΤΡΙΠΟΛΗ | Q15: Ε3 19η | R15: g14 | S15: 16
A16: 2 | B16: =IF(OR(MD!$S$12=1,MD!$S$12=2), IF(MD!$S$12=1,MD!$T$8,MD!$T$16),"#") -> 26198 | C16: =TRIM(LEFT(VLOOKUP(B16,ALMD!$C$3:$D$18,2,FALSE),FIND(" ",VLOOKUP(B16,ALMD!$C$3:$D$18,2,FALSE),1)-1)) -> ΛΑΜΠΡΟΠΟΥΛΟΥ | D16: =IF(OR(MD!$S$12=1,MD!$S$12=2), IF(MD!$S$12=2,MD!$T$8,MD!$T$16),"#") -> 37585 | E16: =TRIM(LEFT(VLOOKUP(D16,ALMD!$C$3:$D$18,2,FALSE),FIND(" ",VLOOKUP(D16,ALMD!$C$3:$D$18,2,FALSE),1)-1)) -> ΣΤΡΑΤΗ | F16: =MD!$U13 -> 61 64 | H16: 39327 | I16: 9_16 | N16: =IF(COUNTIF(MD!$T:$T,B16)>0,MATCH(B16,MD!$T:$T,0)-4,"")&" "&IF(COUNTIF(MD!$T:$T,D16)>0,MATCH(D16,MD!$T:$T,0)-4,"") -> 4 12 | O16: =Setup!$B$3 -> ΣΤ' ΕΝΩΣΗ | P16: ΣΑ ΤΡΙΠΟΛΗ | Q16: Ε3 19η | R16: g14 | S16: 16
H17: 33668 | I17: 9_16 | O17: =Setup!$B$3 -> ΣΤ' ΕΝΩΣΗ | P17: ΣΑ ΤΡΙΠΟΛΗ | Q17: Ε3 19η | R17: g14 | S17: 16

Sheet e-efoa (hidden)
A1: organizer | B1: club | C1: title | D1: group | E1: Dsize | F1: MStartDate | G1: TournamentDetailsId | H1: round | I1: WPlayerCode | J1: LPlayerCode | K1: Score | L1: WRow | M1: LRow | N1: WSeed | O1: LSeed | P1: W | Q1: L | R1: n/m | T1: seed | U1: cmnt | V1: TournamentDetailsId | W1: PlayerCode | X1: Round | Y1: Wins | Z1: Matches | AA1: PtsQ | AB1: PtsM | AC1: Age | AE1: ID | AF1: name | AG1: row | AH1: seed | AJ1: RankKey | AL1: MatcheNames | AM1: key | AN1: PlayerName 1 | AO1: PlayerName 2
A2: =Setup!$B$3 -> ΣΤ' ΕΝΩΣΗ | B2: =Setup!$Z$6 -> 294 | C2: =Setup!$Z$5 -> Ε3 19η (ΣΤ) | D2: =SUBSTITUTE(TRIM(Setup!$B$6),"-","") -> Κ14 | E2: Smd16 | F2: =TEXT(Setup!$B$8,"ΕΕΕΕ-ΜΜ-ΗΗ") -> 2018-05-12 | G2: =Setup!$T$7 ->  | H2: R16 | I2: =IF(OR(MD!$M$5=1,MD!$M$5=2), IF(MD!$M$5=1,MD!$I$5,MD!$I$6),"") -> 26198 | J2: =IF(OR(MD!$M$5 =1,MD!$M$5 =2), IF(MD!$M$5 =2,MD!$I$5,MD!$I$6),"") -> 40747 | K2: =TRIM(MD!$O6) -> 40 40 | L2: =IF(AND(I2<>"",I2>0),IF(VALUE(I2)>0,VLOOKUP(I2,$AE:$AH,3,FALSE),0),0) -> 1 | M2: =IF(AND(J2<>"",J2>0),IF(VALUE(J2)>0,VLOOKUP(J2,$AE:$AH,3,FALSE),0),0) -> 2 | N2: =IF(AND(I2<>"",I2>0),IF(VALUE(I2)>0,VLOOKUP(I2,$AE:$AH,4,FALSE),0),0) -> 1 | O2: =IF(AND(J2<>"",J2>0),IF(VALUE(J2)>0,VLOOKUP(J2,$AE:$AH,4,FALSE),0),0) -> 14 | P2: =IF(R2="",I2,"") -> 26198 | Q2: =IF(R2="",J2,"") -> 40747 | R2: =IF(OR(J2=0,K2=""),1,IF(TEXT(K2,"0")=SUBSTITUTE(LOWER(K2),"m",""),"",1)) ->  | T2: =IF(W2<>"",IF(VALUE(W2)>0,VLOOKUP(W2,$AE:$AH,4,FALSE),""),"") -> 1 | U2: =IF(NOT(OR(W2=0,W2=" ",W2="")),IF(INDIRECT("ALMD!B"&MATCH(W2,ALMD!$C$3:$C$18,0)+2)>0,INDIRECT("ALMD!B"&MATCH(W2,ALMD!$C$3:$C$18,0)+2),""),"") ->  | V2: =Setup!$T$7 ->  | W2: =I16 -> 26198 | X2: 1st | Y2: =IF($W2>0,COUNTIF($P$2:$P$16,$W2),0) -> 4 | Z2: =IF($W2>0,COUNTIF($P$2:$P$16,$W2)+COUNTIF($Q$2:$Q$16,$W2),0) -> 4 | AA2: 0 | AB2: =IF(OR($Z2=0,$Z2="",$U2="DQ"),0,VLOOKUP($AJ2,tables!$AF:$AG,2,FALSE)) -> 18 | AC2: =IF(W2>0,YEAR(Setup!$B$8)-YEAR(VLOOKUP(W2,ALMD!$C:$F,3,FALSE)),0) -> 14 | AE2: =MD!$I5 -> 26198 | AF2: =MD!$K5 -> ΛΑΜΠΡΟΠΟΥΛΟΥ Β | AG2: =IF(AE2>0,MD!$A5,"") -> 1 | AH2: =MD!$G5 -> 1 | AJ2: =SUBSTITUTE(SUBSTITUTE(Setup!$B$5&"S-"&Setup!$B$13&"-"&X2,"Ανδ-",""),"Γυν-","") -> Ε3S-14-1st | AL2: =IF(AO2>" ", IF(OR(AM2=AM3,AM2=AM1), IF(AM2=AM3,AN2&"/"&AN3&" - "&AO2&"/"&AO3, AN1&"/"&AN2&" - "&AO1&"/"&AO2),AN2&" - "&AO2), IF(OR(AM2=AM3,AM2=AM1), IF(AM2=AM3,AN2&"/"&AN3, AN1&"/"&AN2),AN2)) ->  | AM2: =G2&H2&L2 ->  | AN2: =IF(I2<=0,"",TRIM(LEFT(LEFT(VLOOKUP(I2,$AE:$AF,2,FALSE),FIND(" ",VLOOKUP(I2,$AE:$AF,2,FALSE),1)-1),15)&" "&LEFT(MID(VLOOKUP(I2,$AE:$AF,2,FALSE),FIND(" ",VLOOKUP(I2,$AE:$AF,2,FALSE),1)+1,20),3))) -> ΛΑΜΠΡΟΠΟΥΛΟΥ Β | AO2: =IF(J2<=0,"",TRIM(LEFT(LEFT(VLOOKUP(J2,$AE:$AF,2,FALSE),FIND(" ",VLOOKUP(J2,$AE:$AF,2,FALSE),1)-1),15)&" "&LEFT(MID(VLOOKUP(J2,$AE:$AF,2,FALSE),FIND(" ",VLOOKUP(J2,$AE:$AF,2,FALSE),1)+1,20),3))) -> ΤΟΥΜΠΑΝΙΑΡΗ Μ
A3: =Setup!$B$3 -> ΣΤ' ΕΝΩΣΗ | B3: =Setup!$Z$6 -> 294 | C3: =Setup!$Z$5 -> Ε3 19η (ΣΤ) | D3: =SUBSTITUTE(TRIM(Setup!$B$6),"-","") -> Κ14 | E3: Smd16 | F3: =TEXT(Setup!$B$8,"ΕΕΕΕ-ΜΜ-ΗΗ") -> 2018-05-12 | G3: =Setup!$T$7 ->  | H3: R16 | I3: =IF(OR(MD!$M$7=1,MD!$M$7=2), IF(MD!$M$7=1,MD!$I$7,MD!$I$8),"") -> 35659 | J3: =IF(OR(MD!$M$7 =1,MD!$M$7 =2), IF(MD!$M$7 =2,MD!$I$7,MD!$I$8),"") -> 41973 | K3: =TRIM(MD!$O8) -> 40 41 | L3: 4 | M3: 3 | N3: 7 | O3: 15 | P3: =IF(R3="",I3,"") -> 35659 | Q3: =IF(R3="",J3,"") -> 41973 | R3: =IF(OR(J3=0,K3=""),1,IF(TEXT(K3,"0")=SUBSTITUTE(LOWER(K3),"m",""),"",1)) ->  | T3: 2 | U3: =IF(NOT(OR(W3=0,W3=" ",W3="")),IF(INDIRECT("ALMD!B"&MATCH(W3,ALMD!$C$3:$C$18,0)+2)>0,INDIRECT("ALMD!B"&MATCH(W3,ALMD!$C$3:$C$18,0)+2),""),"") ->  | V3: =Setup!$T$7 ->  | W3: =J16 -> 37585 | X3: 2nd | Y3: =IF($W3>0,COUNTIF($P$2:$P$16,$W3),0) -> 3 | Z3: =IF($W3>0,COUNTIF($P$2:$P$16,$W3)+COUNTIF($Q$2:$Q$16,$W3),0) -> 4 | AA3: 0 | AB3: =IF(OR($Z3=0,$Z3="",$U3="DQ"),0,VLOOKUP($AJ3,tables!$AF:$AG,2,FALSE)) -> 15 | AC3: =IF(W3>0,YEAR(Setup!$B$8)-YEAR(VLOOKUP(W3,ALMD!$C:$F,3,FALSE)),0) -> 13 | AE3: =MD!$I6 -> 40747 | AF3: =MD!$K6 -> ΤΟΥΜΠΑΝΙΑΡΗ Μ | AG3: =IF(AE3>0,MD!$A6,"") -> 2 | AH3: =MD!$G6 -> 14 | AJ3: =SUBSTITUTE(SUBSTITUTE(Setup!$B$5&"S-"&Setup!$B$13&"-"&X3,"Ανδ-",""),"Γυν-","") -> Ε3S-14-2nd | AN3: ΜΑΚΡΥΓΕΩΡΓΟΥ Χ | AO3: ΣΑΚΚΕΛΑΡΟΠΟΥΛΟΥ Ε
A4: =Setup!$B$3 -> ΣΤ' ΕΝΩΣΗ | B4: =Setup!$Z$6 -> 294 | C4: =Setup!$Z$5 -> Ε3 19η (ΣΤ) | D4: =SUBSTITUTE(TRIM(Setup!$B$6),"-","") -> Κ14 | E4: Smd16 | F4: =TEXT(Setup!$B$8,"ΕΕΕΕ-ΜΜ-ΗΗ") -> 2018-05-12 | G4: =Setup!$T$7 ->  | H4: R16 | I4: =IF(OR(MD!$M$9=1,MD!$M$9=2), IF(MD!$M$9=1,MD!$I$9,MD!$I$10),"") -> 90169 | J4: =IF(OR(MD!$M$9 =1,MD!$M$9 =2), IF(MD!$M$9 =2,MD!$I$9,MD!$I$10),"") -> 36781 | K4: =TRIM(MD!$O10) -> 41 40 | L4: 5 | M4: 6 | N4: 4 | O4: 9 | P4: 90169 | Q4: 36781 | T4: 4 | U4: =IF(NOT(OR(W4=0,W4=" ",W4="")),IF(INDIRECT("ALMD!B"&MATCH(W4,ALMD!$C$3:$C$18,0)+2)>0,INDIRECT("ALMD!B"&MATCH(W4,ALMD!$C$3:$C$18,0)+2),""),"") -> alt | V4: =Setup!$T$7 ->  | W4: =J14 -> 90169 | X4: 3_4 | Y4: 2 | Z4: 3 | AA4: 0 | AB4: =IF(OR($Z4=0,$Z4="",$U4="DQ"),0,VLOOKUP($AJ4,tables!$AF:$AG,2,FALSE)) -> 9 | AC4: =IF(W4>0,YEAR(Setup!$B$8)-YEAR(VLOOKUP(W4,ALMD!$C:$F,3,FALSE)),0) -> 13 | AE4: =MD!$I7 -> 41973 | AF4: =MD!$K7 -> ΣΑΚΚΕΛΑΡΟΠΟΥΛΟΥ Ε | AG4: =IF(AE4>0,MD!$A7,"") -> 3 | AH4: =MD!$G7 -> 15 | AJ4: =SUBSTITUTE(SUBSTITUTE(Setup!$B$5&"S-"&Setup!$B$13&"-"&X4,"Ανδ-",""),"Γυν-","") -> Ε3S-14-3_4 | AN4: ΑΣΕΝΟΒΑ Γ | AO4: ΚΟΚΚΙΝΟΥ Α
A5: =Setup!$B$3 -> ΣΤ' ΕΝΩΣΗ | B5: =Setup!$Z$6 -> 294 | C5: =Setup!$Z$5 -> Ε3 19η (ΣΤ) | D5: =SUBSTITUTE(TRIM(Setup!$B$6),"-","") -> Κ14 | E5: Smd16 | F5: =TEXT(Setup!$B$8,"ΕΕΕΕ-ΜΜ-ΗΗ") -> 2018-05-12 | G5: =Setup!$T$7 ->  | H5: R16 | I5: =IF(OR(MD!$M$11=1,MD!$M$11=2), IF(MD!$M$11=1,MD!$I$11,MD!$I$12),"") -> 34396 | J5: =IF(OR(MD!$M$11=1,MD!$M$11=2), IF(MD!$M$11=2,MD!$I$11,MD!$I$12),"") -> 38845 | K5: =TRIM(MD!$O12) -> 41 53 | L5: 7 | M5: 8 | N5: 12 | O5: 10 | P5: 34396 | Q5: 38845 | T5: 6 | U5: =IF(NOT(OR(W5=0,W5=" ",W5="")),IF(INDIRECT("ALMD!B"&MATCH(W5,ALMD!$C$3:$C$18,0)+2)>0,INDIRECT("ALMD!B"&MATCH(W5,ALMD!$C$3:$C$18,0)+2),""),"") -> alt | V5: =Setup!$T$7 ->  | W5: =J15 -> 38948 | X5: 3_4 | Y5: 2 | Z5: 3 | AA5: 0 | AB5: =IF(OR($Z5=0,$Z5="",$U5="DQ"),0,VLOOKUP($AJ5,tables!$AF:$AG,2,FALSE)) -> 9 | AC5: =IF(W5>0,YEAR(Setup!$B$8)-YEAR(VLOOKUP(W5,ALMD!$C:$F,3,FALSE)),0) -> 12 | AE5: =MD!$I8 -> 35659 | AF5: =MD!$K8 -> ΜΑΚΡΥΓΕΩΡΓΟΥ Χ | AG5: =IF(AE5>0,MD!$A8,"") -> 4 | AH5: =MD!$G8 -> 7 | AJ5: =SUBSTITUTE(SUBSTITUTE(Setup!$B$5&"S-"&Setup!$B$13&"-"&X5,"Ανδ-",""),"Γυν-","") -> Ε3S-14-3_4 | AN5: ΜΗΤΡΟΠΟΥΛΟΥ Α | AO5: ΤΣΙΛΙΜΠΗ Δ
A6: =Setup!$B$3 -> ΣΤ' ΕΝΩΣΗ | B6: =Setup!$Z$6 -> 294 | C6: =Setup!$Z$5 -> Ε3 19η (ΣΤ) | D6: =SUBSTITUTE(TRIM(Setup!$B$6),"-","") -> Κ14 | E6: Smd16 | F6: =TEXT(Setup!$B$8,"ΕΕΕΕ-ΜΜ-ΗΗ") -> 2018-05-12 | G6: =Setup!$T$7 ->  | H6: R16 | I6: =IF(OR(MD!$M$13=1,MD!$M$13=2), IF(MD!$M$13=1,MD!$I$13,MD!$I$14),"") -> 38948 | J6: =IF(OR(MD!$M$13=1,MD!$M$13=2), IF(MD!$M$13=2,MD!$I$13,MD!$I$14),"") -> 37337 | K6: =TRIM(MD!$O14) -> 54(1) 40 | L6: 10 | M6: 9 | N6: 6 | O6: 3 | P6: 38948 | Q6: 37337 | T6: 7 | U6: =IF(NOT(OR(W6=0,W6=" ",W6="")),IF(INDIRECT("ALMD!B"&MATCH(W6,ALMD!$C$3:$C$18,0)+2)>0,INDIRECT("ALMD!B"&MATCH(W6,ALMD!$C$3:$C$18,0)+2),""),"") ->  | V6: =Setup!$T$7 ->  | W6: =J10 -> 35659 | X6: 5_8 | Y6: 1 | Z6: 2 | AA6: 0 | AB6: =IF(OR($Z6=0,$Z6="",$U6="DQ"),0,VLOOKUP($AJ6,tables!$AF:$AG,2,FALSE)) -> 6 | AC6: =IF(W6>0,YEAR(Setup!$B$8)-YEAR(VLOOKUP(W6,ALMD!$C:$F,3,FALSE)),0) -> 13 | AE6: =MD!$I9 -> 90169 | AF6: =MD!$K9 -> ΑΣΕΝΟΒΑ Γ | AG6: =IF(AE6>0,MD!$A9,"") -> 5 | AH6: =MD!$G9 -> 4 | AJ6: =IF(AND(OR(Y6=0,Y6=""), Setup!$B$17>""), Setup!$B$5&"S-"&Setup!$B$13&"-"&Setup!$B$17, Setup!$B$5&"S-"&Setup!$B$13&"-"&X6) -> Ε3S-14-5_8 | AN6: ΠΑΠΑΚΩΝΣΤΑΝΤΙΝΟ Μ | AO6: ΔΕΛΗ Μ
A7: =Setup!$B$3 -> ΣΤ' ΕΝΩΣΗ | B7: =Setup!$Z$6 -> 294 | C7: =Setup!$Z$5 -> Ε3 19η (ΣΤ) | D7: =SUBSTITUTE(TRIM(Setup!$B$6),"-","") -> Κ14 | E7: Smd16 | F7: =TEXT(Setup!$B$8,"ΕΕΕΕ-ΜΜ-ΗΗ") -> 2018-05-12 | G7: =Setup!$T$7 ->  | H7: R16 | I7: =IF(OR(MD!$M$15=1,MD!$M$15=2), IF(MD!$M$15=1,MD!$I$15,MD!$I$16),"") -> 38401 | J7: =IF(OR(MD!$M$15=1,MD!$M$15=2), IF(MD!$M$15=2,MD!$I$15,MD!$I$16),"") -> 40755 | K7: =TRIM(MD!$O16) -> 41 53 | L7: 11 | M7: 12 | N7: 11 | O7: 16 | P7: 38401 | Q7: 40755 | T7: 12 | U7: =IF(NOT(OR(W7=0,W7=" ",W7="")),IF(INDIRECT("ALMD!B"&MATCH(W7,ALMD!$C$3:$C$18,0)+2)>0,INDIRECT("ALMD!B"&MATCH(W7,ALMD!$C$3:$C$18,0)+2),""),"") ->  | V7: =Setup!$T$7 ->  | W7: =J11 -> 34396 | X7: 5_8 | Y7: 1 | Z7: 2 | AA7: 0 | AB7: =IF(OR($Z7=0,$Z7="",$U7="DQ"),0,VLOOKUP($AJ7,tables!$AF:$AG,2,FALSE)) -> 6 | AC7: =IF(W7>0,YEAR(Setup!$B$8)-YEAR(VLOOKUP(W7,ALMD!$C:$F,3,FALSE)),0) -> 13 | AE7: =MD!$I10 -> 36781 | AF7: =MD!$K10 -> ΚΟΚΚΙΝΟΥ Α | AG7: =IF(AE7>0,MD!$A10,"") -> 6 | AH7: =MD!$G10 -> 9 | AJ7: =IF(AND(OR(Y7=0,Y7=""), Setup!$B$17>""), Setup!$B$5&"S-"&Setup!$B$13&"-"&Setup!$B$17, Setup!$B$5&"S-"&Setup!$B$13&"-"&X7) -> Ε3S-14-5_8 | AN7: ΚΛΑΟΥΔΑΤΟΥ Δ | AO7: ΣΤΟΚΑ Ε
A8: =Setup!$B$3 -> ΣΤ' ΕΝΩΣΗ | B8: =Setup!$Z$6 -> 294 | C8: =Setup!$Z$5 -> Ε3 19η (ΣΤ) | D8: =SUBSTITUTE(TRIM(Setup!$B$6),"-","") -> Κ14 | E8: Smd16 | F8: =TEXT(Setup!$B$8,"ΕΕΕΕ-ΜΜ-ΗΗ") -> 2018-05-12 | G8: =Setup!$T$7 ->  | H8: R16 | I8: =IF(OR(MD!$M$17=1,MD!$M$17=2), IF(MD!$M$17=1,MD!$I$17,MD!$I$18),"") -> 40340 | J8: =IF(OR(MD!$M$17=1,MD!$M$17=2), IF(MD!$M$17=2,MD!$I$17,MD!$I$18),"") -> 39327 | K8: =TRIM(MD!$O18) -> 40 42 | L8: 14 | M8: 13 | N8: 13 | O8: 8 | P8: 40340 | Q8: 39327 | T8: 11 | U8: =IF(NOT(OR(W8=0,W8=" ",W8="")),IF(INDIRECT("ALMD!B"&MATCH(W8,ALMD!$C$3:$C$18,0)+2)>0,INDIRECT("ALMD!B"&MATCH(W8,ALMD!$C$3:$C$18,0)+2),""),"") ->  | V8: =Setup!$T$7 ->  | W8: =J12 -> 38401 | X8: 5_8 | Y8: 1 | Z8: 2 | AA8: 0 | AB8: =IF(OR($Z8=0,$Z8="",$U8="DQ"),0,VLOOKUP($AJ8,tables!$AF:$AG,2,FALSE)) -> 6 | AC8: =IF(W8>0,YEAR(Setup!$B$8)-YEAR(VLOOKUP(W8,ALMD!$C:$F,3,FALSE)),0) -> 11 | AE8: =MD!$I11 -> 34396 | AF8: =MD!$K11 -> ΜΗΤΡΟΠΟΥΛΟΥ Α | AG8: =IF(AE8>0,MD!$A11,"") -> 7 | AH8: =MD!$G11 -> 12 | AJ8: =IF(AND(OR(Y8=0,Y8=""), Setup!$B$17>""), Setup!$B$5&"S-"&Setup!$B$13&"-"&Setup!$B$17, Setup!$B$5&"S-"&Setup!$B$13&"-"&X8) -> Ε3S-14-5_8 | AN8: ΝΙΚΟΛΑΚΟΠΟΥΛΟΥ Α | AO8: ΜΠΟΥΖΟΥ Ε
A9: =Setup!$B$3 -> ΣΤ' ΕΝΩΣΗ | B9: =Setup!$Z$6 -> 294 | C9: =Setup!$Z$5 -> Ε3 19η (ΣΤ) | D9: =SUBSTITUTE(TRIM(Setup!$B$6),"-","") -> Κ14 | E9: Smd16 | F9: =TEXT(Setup!$B$8,"ΕΕΕΕ-ΜΜ-ΗΗ") -> 2018-05-12 | G9: =Setup!$T$7 ->  | H9: R16 | I9: =IF(OR(MD!$M$19=1,MD!$M$19=2), IF(MD!$M$19=1,MD!$I$19,MD!$I$20),"") -> 37585 | J9: =IF(OR(MD!$M$19=1,MD!$M$19=2), IF(MD!$M$19=2,MD!$I$19,MD!$I$20),"") -> 33668 | K9: =TRIM(MD!$O20) -> 41 41 | L9: 16 | M9: 15 | N9: 2 | O9: 5 | P9: 37585 | Q9: 33668 | T9: 13 | U9: =IF(NOT(OR(W9=0,W9=" ",W9="")),IF(INDIRECT("ALMD!B"&MATCH(W9,ALMD!$C$3:$C$18,0)+2)>0,INDIRECT("ALMD!B"&MATCH(W9,ALMD!$C$3:$C$18,0)+2),""),"") ->  | V9: =Setup!$T$7 ->  | W9: =J13 -> 40340 | X9: 5_8 | Y9: 1 | Z9: 2 | AA9: 0 | AB9: =IF(OR($Z9=0,$Z9="",$U9="DQ"),0,VLOOKUP($AJ9,tables!$AF:$AG,2,FALSE)) -> 6 | AC9: =IF(W9>0,YEAR(Setup!$B$8)-YEAR(VLOOKUP(W9,ALMD!$C:$F,3,FALSE)),0) -> 12 | AE9: =MD!$I12 -> 38845 | AF9: =MD!$K12 -> ΤΣΙΛΙΜΠΗ Δ | AG9: =IF(AE9>0,MD!$A12,"") -> 8 | AH9: =MD!$G12 -> 10 | AJ9: =IF(AND(OR(Y9=0,Y9=""), Setup!$B$17>""), Setup!$B$5&"S-"&Setup!$B$13&"-"&Setup!$B$17, Setup!$B$5&"S-"&Setup!$B$13&"-"&X9) -> Ε3S-14-5_8 | AL9: =IF(AO9>" ", IF(OR(AM9=AM10,AM9=AM8), IF(AM9=AM10,AN9&"/"&AN10&" - "&AO9&"/"&AO10, AN8&"/"&AN9&" - "&AO8&"/"&AO9),AN9&" - "&AO9), IF(OR(AM9=AM10,AM9=AM8), IF(AM9=AM10,AN9&"/"&AN10, AN8&"/"&AN9),AN9)) ->  | AM9: =G9&H9&L9 ->  | AN9: ΣΤΡΑΤΗ Γ | AO9: ΚΑΛΤΕΖΙΩΤΗ Ε
A10: =Setup!$B$3 -> ΣΤ' ΕΝΩΣΗ | B10: =Setup!$Z$6 -> 294 | C10: =Setup!$Z$5 -> Ε3 19η (ΣΤ) | D10: =SUBSTITUTE(TRIM(Setup!$B$6),"-","") -> Κ14 | E10: Smd16 | F10: =TEXT(Setup!$B$8,"ΕΕΕΕ-ΜΜ-ΗΗ") -> 2018-05-12 | G10: =Setup!$T$7 ->  | H10: R08 | I10: =IF(OR(MD!$P$6=1,MD!$P$6=2), IF(MD!$P$6 =1,MD!$N$5,MD!$N$7),"") -> 26198 | J10: =IF(OR(MD!$P$6 =1,MD!$P$6 =2), IF(MD!$P$6 =2,MD!$N$5,MD!$N$7),"") -> 35659 | K10: =TRIM(MD!$R7) -> 41 42 | L10: 1 | M10: 4 | N10: 1 | O10: 7 | P10: 26198 | Q10: 35659 | T10: 14 | U10: =IF(NOT(OR(W10=0,W10=" ",W10="")),IF(INDIRECT("ALMD!B"&MATCH(W10,ALMD!$C$3:$C$18,0)+2)>0,INDIRECT("ALMD!B"&MATCH(W10,ALMD!$C$3:$C$18,0)+2),""),"") ->  | V10: =Setup!$T$7 ->  | W10: =J2 -> 40747 | X10: 9_16 | Y10: 0 | Z10: 1 | AA10: 0 | AB10: =IF(OR($Z10=0,$Z10="",$U10="DQ"),0,VLOOKUP($AJ10,tables!$AF:$AG,2,FALSE)) -> 3 | AC10: =IF(W10>0,YEAR(Setup!$B$8)-YEAR(VLOOKUP(W10,ALMD!$C:$F,3,FALSE)),0) -> 13 | AE10: =MD!$I13 -> 37337 | AF10: =MD!$K13 -> ΔΕΛΗ Μ | AG10: =IF(AE10>0,MD!$A13,"") -> 9 | AH10: =MD!$G13 -> 3 | AJ10: =IF(AND(OR(Y10=0,Y10=""), Setup!$B$17>""), Setup!$B$5&"S-"&Setup!$B$13&"-"&Setup!$B$17, Setup!$B$5&"S-"&Setup!$B$13&"-"&X10) -> Ε3S-14-17_32 | AN10: ΛΑΜΠΡΟΠΟΥΛΟΥ Β | AO10: ΜΑΚΡΥΓΕΩΡΓΟΥ Χ
A11: =Setup!$B$3 -> ΣΤ' ΕΝΩΣΗ | B11: =Setup!$Z$6 -> 294 | C11: =Setup!$Z$5 -> Ε3 19η (ΣΤ) | D11: =SUBSTITUTE(TRIM(Setup!$B$6),"-","") -> Κ14 | E11: Smd16 | F11: =TEXT(Setup!$B$8,"ΕΕΕΕ-ΜΜ-ΗΗ") -> 2018-05-12 | G11: =Setup!$T$7 ->  | H11: R08 | I11: =IF(OR(MD!$P$10=1,MD!$P$10=2), IF(MD!$P$10=1,MD!$N$9,MD!$N$11),"") -> 90169 | J11: =IF(OR(MD!$P$10=1,MD!$P$10=2), IF(MD!$P$10=2,MD!$N$9,MD!$N$11),"") -> 34396 | K11: =TRIM(MD!$R11) -> 41 42 | L11: 5 | M11: 7 | N11: 4 | O11: 12 | P11: 90169 | Q11: 34396 | T11: 15 | U11: =IF(NOT(OR(W11=0,W11=" ",W11="")),IF(INDIRECT("ALMD!B"&MATCH(W11,ALMD!$C$3:$C$18,0)+2)>0,INDIRECT("ALMD!B"&MATCH(W11,ALMD!$C$3:$C$18,0)+2),""),"") ->  | V11: =Setup!$T$7 ->  | W11: 41973 | X11: 9_16 | Y11: 0 | Z11: 1 | AA11: 0 | AB11: =IF(OR($Z11=0,$Z11="",$U11="DQ"),0,VLOOKUP($AJ11,tables!$AF:$AG,2,FALSE)) -> 3 | AC11: =IF(W11>0,YEAR(Setup!$B$8)-YEAR(VLOOKUP(W11,ALMD!$C:$F,3,FALSE)),0) -> 12 | AE11: =MD!$I14 -> 38948 | AF11: =MD!$K14 -> ΠΑΠΑΚΩΝΣΤΑΝΤΙΝΟ Μ | AG11: =IF(AE11>0,MD!$A14,"") -> 10 | AH11: =MD!$G14 -> 6 | AJ11: =IF(AND(OR(Y11=0,Y11=""), Setup!$B$17>""), Setup!$B$5&"S-"&Setup!$B$13&"-"&Setup!$B$17, Setup!$B$5&"S-"&Setup!$B$13&"-"&X11) -> Ε3S-14-17_32 | AN11: ΑΣΕΝΟΒΑ Γ | AO11: ΜΗΤΡΟΠΟΥΛΟΥ Α
A12: =Setup!$B$3 -> ΣΤ' ΕΝΩΣΗ | B12: =Setup!$Z$6 -> 294 | C12: =Setup!$Z$5 -> Ε3 19η (ΣΤ) | D12: =SUBSTITUTE(TRIM(Setup!$B$6),"-","") -> Κ14 | E12: Smd16 | F12: =TEXT(Setup!$B$8,"ΕΕΕΕ-ΜΜ-ΗΗ") -> 2018-05-12 | G12: =Setup!$T$7 ->  | H12: R08 | I12: =IF(OR(MD!$P$14=1,MD!$P$14=2), IF(MD!$P$14=1,MD!$N$13,MD!$N$15),"") -> 38948 | J12: =IF(OR(MD!$P$14=1,MD!$P$14=2), IF(MD!$P$14=2,MD!$N$13,MD!$N$15),"") -> 38401 | K12: =TRIM(MD!$R15) -> 40 40 | L12: 10 | M12: 11 | N12: 6 | O12: 11 | P12: 38948 | Q12: 38401 | T12: 9 | U12: =IF(NOT(OR(W12=0,W12=" ",W12="")),IF(INDIRECT("ALMD!B"&MATCH(W12,ALMD!$C$3:$C$18,0)+2)>0,INDIRECT("ALMD!B"&MATCH(W12,ALMD!$C$3:$C$18,0)+2),""),"") ->  | V12: =Setup!$T$7 ->  | W12: 36781 | X12: 9_16 | Y12: 0 | Z12: 1 | AA12: 0 | AB12: =IF(OR($Z12=0,$Z12="",$U12="DQ"),0,VLOOKUP($AJ12,tables!$AF:$AG,2,FALSE)) -> 3 | AC12: =IF(W12>0,YEAR(Setup!$B$8)-YEAR(VLOOKUP(W12,ALMD!$C:$F,3,FALSE)),0) -> 14 | AE12: =MD!$I15 -> 38401 | AF12: =MD!$K15 -> ΚΛΑΟΥΔΑΤΟΥ Δ | AG12: =IF(AE12>0,MD!$A15,"") -> 11 | AH12: =MD!$G15 -> 11 | AJ12: =IF(AND(OR(Y12=0,Y12=""), Setup!$B$17>""), Setup!$B$5&"S-"&Setup!$B$13&"-"&Setup!$B$17, Setup!$B$5&"S-"&Setup!$B$13&"-"&X12) -> Ε3S-14-17_32 | AN12: ΠΑΠΑΚΩΝΣΤΑΝΤΙΝΟ Μ | AO12: ΚΛΑΟΥΔΑΤΟΥ Δ
A13: =Setup!$B$3 -> ΣΤ' ΕΝΩΣΗ | B13: =Setup!$Z$6 -> 294 | C13: =Setup!$Z$5 -> Ε3 19η (ΣΤ) | D13: =SUBSTITUTE(TRIM(Setup!$B$6),"-","") -> Κ14 | E13: Smd16 | F13: =TEXT(Setup!$B$8,"ΕΕΕΕ-ΜΜ-ΗΗ") -> 2018-05-12 | G13: =Setup!$T$7 ->  | H13: R08 | I13: =IF(OR(MD!$P$18=1,MD!$P$18=2), IF(MD!$P$18=1,MD!$N$17,MD!$N$19),"") -> 37585 | J13: =IF(OR(MD!$P$18=1,MD!$P$18=2), IF(MD!$P$18=2,MD!$N$17,MD!$N$19),"") -> 40340 | K13: =TRIM(MD!$R19) -> 40 40 | L13: 16 | M13: 14 | N13: 2 | O13: 13 | P13: 37585 | Q13: 40340 | T13: 10 | U13: =IF(NOT(OR(W13=0,W13=" ",W13="")),IF(INDIRECT("ALMD!B"&MATCH(W13,ALMD!$C$3:$C$18,0)+2)>0,INDIRECT("ALMD!B"&MATCH(W13,ALMD!$C$3:$C$18,0)+2),""),"") ->  | V13: =Setup!$T$7 ->  | W13: 38845 | X13: 9_16 | Y13: 0 | Z13: 1 | AA13: 0 | AB13: =IF(OR($Z13=0,$Z13="",$U13="DQ"),0,VLOOKUP($AJ13,tables!$AF:$AG,2,FALSE)) -> 3 | AC13: =IF(W13>0,YEAR(Setup!$B$8)-YEAR(VLOOKUP(W13,ALMD!$C:$F,3,FALSE)),0) -> 13 | AE13: =MD!$I16 -> 40755 | AF13: =MD!$K16 -> ΣΤΟΚΑ Ε | AG13: =IF(AE13>0,MD!$A16,"") -> 12 | AH13: =MD!$G16 -> 16 | AJ13: =IF(AND(OR(Y13=0,Y13=""), Setup!$B$17>""), Setup!$B$5&"S-"&Setup!$B$13&"-"&Setup!$B$17, Setup!$B$5&"S-"&Setup!$B$13&"-"&X13) -> Ε3S-14-17_32 | AN13: ΣΤΡΑΤΗ Γ | AO13: ΝΙΚΟΛΑΚΟΠΟΥΛΟΥ Α
A14: =Setup!$B$3 -> ΣΤ' ΕΝΩΣΗ | B14: =Setup!$Z$6 -> 294 | C14: =Setup!$Z$5 -> Ε3 19η (ΣΤ) | D14: =SUBSTITUTE(TRIM(Setup!$B$6),"-","") -> Κ14 | E14: Smd16 | F14: =TEXT(Setup!$B$8,"ΕΕΕΕ-ΜΜ-ΗΗ") -> 2018-05-12 | G14: =Setup!$T$7 ->  | H14: Ημιτελ | I14: =IF(OR(MD!$S$8=1,MD!$S$8=2), IF(MD!$S$8=1,MD!$Q$6,MD!$Q$10),"") -> 26198 | J14: =IF(OR(MD!$S$8 =1,MD!$S$8 =2), IF(MD!$S$8 =2,MD!$Q$6,MD!$Q$10),"") -> 90169 | K14: =TRIM(MD!$U9) -> 61 61 | L14: 1 | M14: 5 | N14: 1 | O14: 4 | P14: 26198 | Q14: 90169 | T14: 3 | U14: =IF(NOT(OR(W14=0,W14=" ",W14="")),IF(INDIRECT("ALMD!B"&MATCH(W14,ALMD!$C$3:$C$18,0)+2)>0,INDIRECT("ALMD!B"&MATCH(W14,ALMD!$C$3:$C$18,0)+2),""),"") ->  | V14: =Setup!$T$7 ->  | W14: 37337 | X14: 9_16 | Y14: 0 | Z14: 1 | AA14: 0 | AB14: =IF(OR($Z14=0,$Z14="",$U14="DQ"),0,VLOOKUP($AJ14,tables!$AF:$AG,2,FALSE)) -> 3 | AC14: =IF(W14>0,YEAR(Setup!$B$8)-YEAR(VLOOKUP(W14,ALMD!$C:$F,3,FALSE)),0) -> 14 | AE14: =MD!$I17 -> 39327 | AF14: =MD!$K17 -> ΜΠΟΥΖΟΥ Ε | AG14: =IF(AE14>0,MD!$A17,"") -> 13 | AH14: =MD!$G17 -> 8 | AJ14: =IF(AND(OR(Y14=0,Y14=""), Setup!$B$17>""), Setup!$B$5&"S-"&Setup!$B$13&"-"&Setup!$B$17, Setup!$B$5&"S-"&Setup!$B$13&"-"&X14) -> Ε3S-14-17_32 | AN14: ΛΑΜΠΡΟΠΟΥΛΟΥ Β | AO14: ΑΣΕΝΟΒΑ Γ
A15: =Setup!$B$3 -> ΣΤ' ΕΝΩΣΗ | B15: =Setup!$Z$6 -> 294 | C15: =Setup!$Z$5 -> Ε3 19η (ΣΤ) | D15: =SUBSTITUTE(TRIM(Setup!$B$6),"-","") -> Κ14 | E15: Smd16 | F15: =TEXT(Setup!$B$8,"ΕΕΕΕ-ΜΜ-ΗΗ") -> 2018-05-12 | G15: =Setup!$T$7 ->  | H15: Ημιτελ | I15: =IF(OR(MD!$S$16=1,MD!$S$16=2), IF(MD!$S$16=1,MD!$Q$14,MD!$Q$18),"") -> 37585 | J15: =IF(OR(MD!$S$16=1,MD!$S$16=2), IF(MD!$S$16=2,MD!$Q$14,MD!$Q$18),"") -> 38948 | K15: =TRIM(MD!$U17) -> 62 62 | L15: 16 | M15: 10 | N15: 2 | O15: 6 | P15: 37585 | Q15: 38948 | T15: 16 | U15: =IF(NOT(OR(W15=0,W15=" ",W15="")),IF(INDIRECT("ALMD!B"&MATCH(W15,ALMD!$C$3:$C$18,0)+2)>0,INDIRECT("ALMD!B"&MATCH(W15,ALMD!$C$3:$C$18,0)+2),""),"") ->  | V15: =Setup!$T$7 ->  | W15: 40755 | X15: 9_16 | Y15: 0 | Z15: 1 | AA15: 0 | AB15: =IF(OR($Z15=0,$Z15="",$U15="DQ"),0,VLOOKUP($AJ15,tables!$AF:$AG,2,FALSE)) -> 3 | AC15: =IF(W15>0,YEAR(Setup!$B$8)-YEAR(VLOOKUP(W15,ALMD!$C:$F,3,FALSE)),0) -> 11 | AE15: =MD!$I18 -> 40340 | AF15: =MD!$K18 -> ΝΙΚΟΛΑΚΟΠΟΥΛΟΥ Α | AG15: =IF(AE15>0,MD!$A18,"") -> 14 | AH15: =MD!$G18 -> 13 | AJ15: =IF(AND(OR(Y15=0,Y15=""), Setup!$B$17>""), Setup!$B$5&"S-"&Setup!$B$13&"-"&Setup!$B$17, Setup!$B$5&"S-"&Setup!$B$13&"-"&X15) -> Ε3S-14-17_32 | AN15: ΣΤΡΑΤΗ Γ | AO15: ΠΑΠΑΚΩΝΣΤΑΝΤΙΝΟ Μ
A16: =Setup!$B$3 -> ΣΤ' ΕΝΩΣΗ | B16: =Setup!$Z$6 -> 294 | C16: =Setup!$Z$5 -> Ε3 19η (ΣΤ) | D16: =SUBSTITUTE(TRIM(Setup!$B$6),"-","") -> Κ14 | E16: Smd16 | F16: =TEXT(Setup!$B$8,"ΕΕΕΕ-ΜΜ-ΗΗ") -> 2018-05-12 | G16: =Setup!$T$7 ->  | H16: Τελικός | I16: =IF(OR(MD!$S$12=1,MD!$S$12=2), IF(MD!$S$12=1,MD!$T$8,MD!$T$16),"") -> 26198 | J16: =IF(OR(MD!$S$12=1,MD!$S$12=2), IF(MD!$S$12=2,MD!$T$8,MD!$T$16),"") -> 37585 | K16: =TRIM(MD!$U13) -> 61 64 | L16: 1 | M16: 16 | N16: 1 | O16: 2 | P16: 26198 | Q16: 37585 | T16: 8 | U16: =IF(NOT(OR(W16=0,W16=" ",W16="")),IF(INDIRECT("ALMD!B"&MATCH(W16,ALMD!$C$3:$C$18,0)+2)>0,INDIRECT("ALMD!B"&MATCH(W16,ALMD!$C$3:$C$18,0)+2),""),"") ->  | V16: =Setup!$T$7 ->  | W16: 39327 | X16: 9_16 | Y16: 0 | Z16: 1 | AA16: 0 | AB16: =IF(OR($Z16=0,$Z16="",$U16="DQ"),0,VLOOKUP($AJ16,tables!$AF:$AG,2,FALSE)) -> 3 | AC16: =IF(W16>0,YEAR(Setup!$B$8)-YEAR(VLOOKUP(W16,ALMD!$C:$F,3,FALSE)),0) -> 13 | AE16: =MD!$I19 -> 33668 | AF16: =MD!$K19 -> ΚΑΛΤΕΖΙΩΤΗ Ε | AG16: =IF(AE16>0,MD!$A19,"") -> 15 | AH16: =MD!$G19 -> 5 | AJ16: =IF(AND(OR(Y16=0,Y16=""), Setup!$B$17>""), Setup!$B$5&"S-"&Setup!$B$13&"-"&Setup!$B$17, Setup!$B$5&"S-"&Setup!$B$13&"-"&X16) -> Ε3S-14-17_32 | AN16: ΛΑΜΠΡΟΠΟΥΛΟΥ Β | AO16: ΣΤΡΑΤΗ Γ
A17: =Setup!$B$3 -> ΣΤ' ΕΝΩΣΗ | B17: =Setup!$Z$6 -> 294 | C17: =Setup!$Z$5 -> Ε3 19η (ΣΤ) | D17: =SUBSTITUTE(TRIM(Setup!$B$6),"-","") -> Κ14 | E17: Smd16 | F17: =TEXT(Setup!$B$8,"ΕΕΕΕ-ΜΜ-ΗΗ") -> 2018-05-12 | T17: 5 | U17: =IF(NOT(OR(W17=0,W17=" ",W17="")),IF(INDIRECT("ALMD!B"&MATCH(W17,ALMD!$C$3:$C$18,0)+2)>0,INDIRECT("ALMD!B"&MATCH(W17,ALMD!$C$3:$C$18,0)+2),""),"") ->  | V17: =Setup!$T$7 ->  | W17: 33668 | X17: 9_16 | Y17: 0 | Z17: 1 | AA17: 0 | AB17: =IF(OR($Z17=0,$Z17="",$U17="DQ"),0,VLOOKUP($AJ17,tables!$AF:$AG,2,FALSE)) -> 3 | AC17: =IF(W17>0,YEAR(Setup!$B$8)-YEAR(VLOOKUP(W17,ALMD!$C:$F,3,FALSE)),0) -> 14 | AE17: =MD!$I20 -> 37585 | AF17: =MD!$K20 -> ΣΤΡΑΤΗ Γ | AG17: =IF(AE17>0,MD!$A20,"") -> 16 | AH17: =MD!$G20 -> 2 | AJ17: =IF(AND(OR(Y17=0,Y17=""), Setup!$B$17>""), Setup!$B$5&"S-"&Setup!$B$13&"-"&Setup!$B$17, Setup!$B$5&"S-"&Setup!$B$13&"-"&X17) -> Ε3S-14-17_32
